{"text_format":"1","workbook":"xlsx","n_sheets":2,"sheets":["koeficienty","Jihočeský"],"not_rendered":{"charts":0,"images":0,"macros":1,"external_links":0,"defined_names":19,"comments":0,"pivot_tables":0},"unopened":[],"bounds":{"document_bytes":16777216,"sheet_cells":100000,"rows_first":2000,"rows_last":500,"rows_between":2000,"halvings":0,"cell_chars":16384,"cell_head_chars":4096},"cells_cut":0,"cells_raw":0,"read":"whole","date_system":"1900"}

{"sheet":"koeficienty","index":0,"n_rows":17,"n_cols":12,"rows_kept":17,"cut":false,"hidden":false,"merged":[]}
["Koeficienty (obec bez ORP)","A","B",null,null,null,"Zadání Součty Kč (obce bez ORP)","Kč",null,"Součty Kč (obce bez ORP)","Kč","Rozdíl"]
["ZP",27.455263268704783,6715271.2110000001,null,null,null,"Obce se základní působností",null,null,"Obce se základní působností"]
["MÚ",324.04656388772491,17712745.600000001,null,null,null,"Obce s matričním úřadem",null,null,"Obce s matričním úřadem"]
["SÚ",122.4161185,15576113.800000001,null,null,null,"Obce se stavebním úřadem",null,null,"Obce se stavebním úřadem"]
["POÚ",179.64037537828381,20553712.210000001,null,null,null,"Obce s pověřeným obecním úřadem",null,null,"Obce s pověřeným obecním úřadem"]
[]
["Koeficienty (ORP)","A","B","C",null,null,"Zadání Součty Kč (ORP)","Kč",null,"Součty Kč (ORP)",null,"Kč"]
["ZP",29.444117192108621,1516954.287,0,null,null,"Obce se základní působností",null,null,"Obce se základní působností"]
["MÚ",369.64275975863825,7678337.0109999999,5209.1457849999997,null,null,"Obce s matričním úřadem",null,null,"Obce s matričním úřadem"]
["SÚ",75.3806238533233,4812568.5439999998,9799.9041120000002,null,null,"Obce se stavebním úřadem",null,null,"Obce se stavebním úřadem"]
["SÚ ORP",83.335408082439926,4965458.4740000004,8823.1295740000005,null,null,"Obec se stavebním úřadem ORP",null,null,"Obec se stavebním úřadem ORP"]
["POÚ",47.811506905538238,8854670.9600000009,11678.856239999999,null,null,"Obce s pověřeným obecním úřadem",null,null,"Obce s pověřeným obecním úřadem"]
["ORP",1.2713920650133517,3526294.41,40565.241629999997,null,null,"Obce s rozšířenou působností",null,null,"Obce s rozšířenou působností"]
[]
["Limity obyvatel",null,null,null,null,null,null,{"$f":"SUM(H2:H5)+SUM(H8:H13)","v":0},null,null,null,{"$f":"SUM(L2:L5)+SUM(L8:L13)","v":0}]
["Obec",300]
["Obec s rozšířenou působností",15000]

{"sheet":"Jihočeský","index":1,"n_rows":626,"n_cols":65,"rows_kept":626,"cut":false,"hidden":false,"merged":[[0,37,0,40],[0,18,0,27],[0,28,0,29],[0,30,0,31],[0,32,0,33],[0,34,0,35],[0,63,0,64],[0,41,0,42],[0,43,0,44],[0,45,0,48],[0,49,0,50],[0,51,0,52],[0,53,0,62]]}
[null,null,null,null,null,null,null,null,null,null,null,null,null,null,null,null,null,"Základní působnost","Matriční působnost",null,null,null,null,null,null,null,null,null,"Stavební působnost obecná",null,"Stavební působnost ORP",null,"Pověřený obecní úřad",null,"Rozšířená působnost",null,"Zvláštní postavení","Občanské průkazy",null,null,null,"JKM",null,"Opatrovanci",null,"Územní plánování",null,null,null,"Řidičské průkazy",null,"Živnostenský úřad",null,"Zkušební komisaři",null,null,null,null,null,null,null,null,null,"Příspěvek celkem"]
[null,{"$f":"SUBTOTAL(9,B4:B626)","v":653227},null,{"$f":"SUBTOTAL(9,D4:D626)","v":623},{"$f":"SUBTOTAL(9,E4:E626)","v":113},{"$f":"SUBTOTAL(9,F4:F626)","v":46},{"$f":"SUBTOTAL(9,G4:G626)","v":37},{"$f":"SUBTOTAL(9,H4:H626)","v":17},null,null,null,null,null,null,null,null,null,{"$f":"SUBTOTAL(9,R4:R626)","v":106245237.24407019},653227,22974300.973483477,4944,3796992,2894,8890368,6864,7028736,2240,573440,653227,50183853.999235488,653227,38927143.544869311,653227,102602941.59823568,653227,299102694.85815257,0,79993,11279013,0,0,413,1224000,809,24674500,3697,10137174,277,253178,27377,3860157,28722,9851646,13981,1523929,1615,132430,16327,5355256,1750,717500,494,108186,709442677.2180481,709429700]
["Název obce","Počet obyvatel","ZUJ","ZP","MÚ","SÚ","POÚ","ORP","Kraj","ZUJ MÚ","Název MÚ","ZUJ SÚ","Název SÚ","ZUJ POÚ","Název POÚ","ZUJ ORP","Název ORP","Příspěvek základní působnost","SO MÚ","Příspěvek matriční působnost","Narození","Příspěvek narození","Sňatek","Příspěvek sňatek","Úmrtí","Příspěvek úmrtí","Určení otcovství","Příspěvek určení otcovství","SO SÚ","Příspěvek stavební působnost","SO SÚ ORP","Příspěvek SÚ ORP","SO POÚ","Příspěvek pověřený úřad","SO ORP","Příspěvek ORP","Zvláštní postavení*","Počet žádostí","Příspěvek počet žádostí","Počet aktivací","Příspěvek počet aktivací","JKM počet úkonů","JKM příspěvek","Počet opatrovanců","Příspěvek opatrovnictví","Počet aktů územního plánování","Příspěvek územní plánování","Počet stanovisek fikcí","Příspěvek počet stanovisek fikcí","Počet řidičských průkazů","Příspěvek řidičské průkazy","Počet avíz živnostenského úřadu","Příspěvek živnostenský úřad","A+B+T+C+D \nTEST","Příspěvek","C+D ÚDRŽBA","Příspěvek","A+B+T JIZDA prak. část","Příspěvek","C+D J=JÍZDA prak. část","Příspěvek","PZ","Příspěvek","Příspěvek součet","Příspěvek zaokrouhleno"]
["Adamov",1040,535826,1,0,0,0,0,"Jihočeský kraj",544981,"Rudolfov",544981,"Rudolfov",544256,"České Budějovice",544256,"České Budějovice",245263.0582887193,null,null,null,null,null,null,null,null,null,null,null,null,null,null,null,null,null,null,null,null,null,null,null,null,null,null,null,null,null,null,null,null,null,null,null,null,null,null,null,null,null,null,null,null,null,{"$f":"SUMIF(R4:R4,\"<>\")+SUMIF(T4:T4,\"<>\")+SUMIF(V4:V4,\"<>\")+SUMIF(X4:X4,\"<>\")+SUMIF(Z4:Z4,\"<>\")+SUMIF(AB4:AB4,\"<>\")+SUMIF(AD4:AD4,\"<>\")+SUMIF(AF4:AF4,\"<>\")+SUMIF(AH4:AH4,\"<>\")+SUMIF(AJ4:AJ4,\"<>\")+SUMIF(AK4:AK4,\"<>\")+SUMIF(AM4:AM4,\"<>\")+SUMIF(AO4:AO4,\"<>\")+SUMIF(AQ4:AQ4,\"<>\")+SUMIF(AS4:AS4,\"<>\")+SUMIF(AU4:AU4,\"<>\")+SUMIF(AW4:AW4,\"<>\")+SUMIF(AY4:AY4,\"<>\")+SUMIF(BA4:BA4,\"<>\")+SUMIF(BC4:BC4,\"<>\")+SUMIF(BE4:BE4,\"<>\")+SUMIF(BG4:BG4,\"<>\")+SUMIF(BI4:BI4,\"<>\")+SUMIF(BK4:BK4,\"<>\")","v":245263.0582887193},{"$f":"ROUND(BL4/100,0)*100","v":245300}]
["Albrechtice nad Vltavou",1027,549258,1,0,0,0,0,"Jihočeský kraj",549240,"Písek",549240,"Písek",549240,"Písek",549240,"Písek",242251.66547302049,null,null,null,null,null,null,null,null,null,null,null,null,null,null,null,null,null,null,null,null,null,null,null,null,null,null,null,null,null,null,null,null,null,null,null,null,null,null,null,null,null,null,null,null,null,242251.66547302049,242300]
["Babice",160,537241,1,0,0,0,0,"Jihočeský kraj",550442,"Netolice",550442,"Netolice",550442,"Netolice",550094,"Prachatice",71941.662785630979,null,null,null,null,null,null,null,null,null,null,null,null,null,null,null,null,null,null,null,null,null,null,null,null,null,null,null,null,null,null,null,null,null,null,null,null,null,null,null,null,null,null,null,null,null,71941.662785630979,71900]
["Balkova Lhota",149,563251,1,0,0,0,0,"Jihočeský kraj",552046,"Tábor",552046,"Tábor",552046,"Tábor",552046,"Tábor",71941.662785630979,null,null,null,null,null,null,null,null,null,null,null,null,null,null,null,null,null,null,null,null,null,null,null,null,null,null,null,null,null,null,null,null,null,null,null,null,null,null,null,null,null,null,null,null,null,71941.662785630979,71900]
["Báňovice",104,562726,1,0,0,0,0,"Jihočeský kraj",546127,"Dačice",546127,"Dačice",546127,"Dačice",546127,"Dačice",71941.662785630979,null,null,null,null,null,null,null,null,null,null,null,null,null,null,null,null,null,null,null,null,null,null,null,null,null,null,null,null,null,null,null,null,null,null,null,null,null,null,null,null,null,null,null,null,null,71941.662785630979,71900]
["Bavorov",1683,550809,1,1,0,0,0,"Jihočeský kraj",550809,"Bavorov",551953,"Vodňany",551953,"Vodňany",551953,"Vodňany",393071.02525033482,{"$f":"SUMIFS($B:$B,$J:$J,$C9)","v":2230},121335.1261420627,0,{"$f":"U9*768","v":0},13,{"$f":"W9*3072","v":39936},16,{"$f":"Y9*1024","v":16384},5,{"$f":"AA9*256","v":1280},null,null,null,null,null,null,null,null,null,null,null,null,null,null,null,null,null,null,null,null,null,null,null,null,null,null,null,null,null,null,null,null,null,null,null,572006.15139239747,572000]
["Bečice",79,563366,1,0,0,0,0,"Jihočeský kraj",552666,"Malšice",552046,"Tábor",552046,"Tábor",552046,"Tábor",71941.662785630979,null,null,null,null,null,null,null,null,null,null,null,null,null,null,null,null,null,null,null,null,null,null,null,null,null,null,null,null,null,null,null,null,null,null,null,null,null,null,null,null,null,null,null,null,null,71941.662785630979,71900]
["Bečice",106,536156,1,0,0,0,0,"Jihočeský kraj",545201,"Týn nad Vltavou",545201,"Týn nad Vltavou",545201,"Týn nad Vltavou",545201,"Týn nad Vltavou",71941.662785630979,null,null,null,null,null,null,null,null,null,null,null,null,null,null,null,null,null,null,null,null,null,null,null,null,null,null,null,null,null,null,null,null,null,null,null,null,null,null,null,null,null,null,null,null,null,71941.662785630979,71900]
["Bednárec",117,562548,1,0,0,0,0,"Jihočeský kraj",545881,"Jindřichův Hradec",546801,"Nová Včelnice",545881,"Jindřichův Hradec",545881,"Jindřichův Hradec",71941.662785630979,null,null,null,null,null,null,null,null,null,null,null,null,null,null,null,null,null,null,null,null,null,null,null,null,null,null,null,null,null,null,null,null,null,null,null,null,null,null,null,null,null,null,null,null,null,71941.662785630979,71900]
["Bednáreček",178,561053,1,0,0,0,0,"Jihočeský kraj",545881,"Jindřichův Hradec",545881,"Jindřichův Hradec",545881,"Jindřichův Hradec",545881,"Jindřichův Hradec",71941.662785630979,null,null,null,null,null,null,null,null,null,null,null,null,null,null,null,null,null,null,null,null,null,null,null,null,null,null,null,null,null,null,null,null,null,null,null,null,null,null,null,null,null,null,null,null,null,71941.662785630979,71900]
["Bechyně",4815,552054,1,1,1,1,0,"Jihočeský kraj",552054,"Bechyně",552054,"Bechyně",552054,"Bechyně",552046,"Tábor",1090539.4721003149,{"$f":"SUMIFS($B:$B,$J:$J,$C14)","v":6880},373048.83090748847,0,{"$f":"U14*768","v":0},44,{"$f":"W14*3072","v":135168},35,{"$f":"Y14*1024","v":35840},10,{"$f":"AA14*256","v":2560},{"$f":"SUMIFS($B:$B,$L:$L,$C14)","v":6880},{"$f":"(koeficienty!$C$4/(koeficienty!$B$4 + SQRT(IF(AC14<300,0.3,AC14/1000)))) * (IF(AC14<300,0.3,AC14/1000))","v":857041.26280196023},null,null,{"$f":"SUMIFS($B:$B,$N:$N,$C14)","v":6880},775852.84915165009,null,null,null,null,null,null,null,null,null,6,{"$f":"AR14*30500","v":183000},null,null,null,null,null,null,null,null,null,null,null,null,null,null,null,null,null,null,3453050.4149614135,3453100]
["Bělčice",1024,550817,1,1,0,0,0,"Jihočeský kraj",550817,"Bělčice",550850,"Blatná",550850,"Blatná",550850,"Blatná",241556.58524687629,{"$f":"SUMIFS($B:$B,$J:$J,$C15)","v":1348},73420.120631485508,0,{"$f":"U15*768","v":0},10,{"$f":"W15*3072","v":30720},5,{"$f":"Y15*1024","v":5120},3,{"$f":"AA15*256","v":768},null,null,null,null,null,null,null,null,null,null,null,null,null,null,null,null,null,null,null,null,null,null,null,null,null,null,null,null,null,null,null,null,null,null,null,351584.70587836183,351600]
["Běleč",195,560448,1,0,0,0,0,"Jihočeský kraj",552704,"Mladá Vožice",552704,"Mladá Vožice",552704,"Mladá Vožice",552046,"Tábor",71941.662785630979,null,null,null,null,null,null,null,null,null,null,null,null,null,null,null,null,null,null,null,null,null,null,null,null,null,null,null,null,null,null,null,null,null,null,null,null,null,null,null,null,null,null,null,null,null,71941.662785630979,71900]
["Benešov nad Černou",1376,545406,1,1,0,0,0,"Jihočeský kraj",545406,"Benešov nad Černou",545562,"Kaplice",545562,"Kaplice",545562,"Kaplice",322765.07070935948,{"$f":"SUMIFS($B:$B,$J:$J,$C17)","v":1607},87498.113434152066,0,{"$f":"U17*768","v":0},10,{"$f":"W17*3072","v":30720},10,{"$f":"Y17*1024","v":10240},2,{"$f":"AA17*256","v":512},null,null,null,null,null,null,null,null,null,null,null,null,null,null,null,5,{"$f":"AR17*30500","v":152500},null,null,null,null,null,null,null,null,null,null,null,null,null,null,null,null,null,null,604235.18414351158,604200]
["Bernartice",1405,549266,1,1,1,0,0,"Jihočeský kraj",549266,"Bernartice",549266,"Bernartice",549576,"Milevsko",549576,"Milevsko",329426.03404489579,{"$f":"SUMIFS($B:$B,$J:$J,$C18)","v":1999},108792.8849697766,0,{"$f":"U18*768","v":0},4,{"$f":"W18*3072","v":12288},6,{"$f":"Y18*1024","v":6144},3,{"$f":"AA18*256","v":768},{"$f":"SUMIFS($B:$B,$L:$L,$C18)","v":3046},{"$f":"(koeficienty!$C$4/(koeficienty!$B$4 + SQRT(IF(AC18<300,0.3,AC18/1000)))) * (IF(AC18<300,0.3,AC18/1000))","v":382122.32994640036},null,null,null,null,null,null,null,null,null,null,null,null,null,null,null,null,null,null,null,null,null,null,null,null,null,null,null,null,null,null,null,null,null,839541.24896107276,839500]
["Besednice",832,545414,1,1,0,0,0,"Jihočeský kraj",545414,"Besednice",545562,"Kaplice",545562,"Kaplice",545562,"Kaplice",196955.12936622539,{"$f":"SUMIFS($B:$B,$J:$J,$C19)","v":832},45350.391134219288,0,{"$f":"U19*768","v":0},4,{"$f":"W19*3072","v":12288},4,{"$f":"Y19*1024","v":4096},0,{"$f":"AA19*256","v":0},null,null,null,null,null,null,null,null,null,null,null,null,null,null,null,null,null,null,null,null,null,null,null,null,null,null,null,null,null,null,null,null,null,null,null,258689.52050044469,258700]
["Bezdědovice",385,598895,1,0,0,0,0,"Jihočeský kraj",550850,"Blatná",550850,"Blatná",550850,"Blatná",550850,"Blatná",92085.864028722339,null,null,null,null,null,null,null,null,null,null,null,null,null,null,null,null,null,null,null,null,null,null,null,null,null,null,null,null,null,null,null,null,null,null,null,null,null,null,null,null,null,null,null,null,null,92085.864028722339,92100]
["Bílsko",208,550833,1,0,0,0,0,"Jihočeský kraj",550809,"Bavorov",551953,"Vodňany",551953,"Vodňany",551953,"Vodňany",71941.662785630979,null,null,null,null,null,null,null,null,null,null,null,null,null,null,null,null,null,null,null,null,null,null,null,null,null,null,null,null,null,null,null,null,null,null,null,null,null,null,null,null,null,null,null,null,null,71941.662785630979,71900]
["Blatná",6669,550850,1,1,1,1,1,"Jihočeský kraj",550850,"Blatná",550850,"Blatná",550850,"Blatná",550850,"Blatná",315880.59423022793,{"$f":"SUMIFS($B:$B,$J:$J,$C22)","v":9317},205744.44750460639,0,{"$f":"U22*768","v":0},38,{"$f":"W22*3072","v":116736},53,{"$f":"Y22*1024","v":54272},36,{"$f":"AA22*256","v":9216},{"$f":"SUMIFS($B:$B,$L:$L,$C22)","v":13838},912175.15281066485,{"$f":"SUMIFS($B:$B,$P:$P,$C22)","v":13838},917320.79414053622,{"$f":"SUMIFS($B:$B,$N:$N,$C22)","v":13838},2461514.9980811579,{"$f":"SUMIFS($B:$B,$P:$P,$C22)","v":13838},10572802.142519619,null,1975,{"$f":"AL22*141","v":278475},null,null,null,null,11,{"$f":"AR22*30500","v":335500},116,{"$f":"AT22*2742","v":318072},4,{"$f":"AV22*914","v":3656},814,{"$f":"AX22*141","v":114774},487,{"$f":"AZ22*343","v":167041},353,{"$f":"BB22*109","v":38477},63,{"$f":"BD22*82","v":5166},511,{"$f":"BF22*328","v":167608},66,{"$f":"BH22*410","v":27060},18,{"$f":"BJ22*219","v":3942},17025433.129286811,17025400]
["Blažejov",482,561711,1,0,0,0,0,"Jihočeský kraj",545881,"Jindřichův Hradec",545881,"Jindřichův Hradec",545881,"Jindřichův Hradec",545881,"Jindřichův Hradec",114984.5572883627,null,null,null,null,null,null,null,null,null,null,null,null,null,null,null,null,null,null,null,null,null,null,null,null,null,null,null,null,null,null,null,null,null,null,null,null,null,null,null,null,null,null,null,null,null,114984.5572883627,115000]
["Bohdalovice",294,536253,1,0,0,0,0,"Jihočeský kraj",545830,"Větřní",545392,"Český Krumlov",545392,"Český Krumlov",545392,"Český Krumlov",71941.662785630979,null,null,null,null,null,null,null,null,null,null,null,null,null,null,null,null,null,null,null,null,null,null,null,null,null,null,null,null,null,null,null,null,null,null,null,null,null,null,null,null,null,null,null,null,null,71941.662785630979,71900]
["Bohumilice",320,550116,1,0,0,0,0,"Jihočeský kraj",550167,"Čkyně",550647,"Vimperk",550647,"Vimperk",550647,"Vimperk",76688.580783371697,null,null,null,null,null,null,null,null,null,null,null,null,null,null,null,null,null,null,null,null,null,null,null,null,null,null,null,null,null,null,null,null,null,null,null,null,null,null,null,null,null,null,null,null,null,76688.580783371697,76700]
["Bohunice",44,537527,1,0,0,0,0,"Jihočeský kraj",550663,"Vlachovo Březí",550094,"Prachatice",550094,"Prachatice",550094,"Prachatice",71941.662785630979,null,null,null,null,null,null,null,null,null,null,null,null,null,null,null,null,null,null,null,null,null,null,null,null,null,null,null,null,null,null,null,null,null,null,null,null,null,null,null,null,null,null,null,null,null,71941.662785630979,71900]
["Borek",1585,544272,1,0,0,0,0,"Jihočeský kraj",544256,"České Budějovice",544256,"České Budějovice",544256,"České Budějovice",544256,"České Budějovice",370676.99401046371,null,null,null,null,null,null,null,null,null,null,null,null,null,null,null,null,null,null,null,null,null,null,null,null,null,null,null,null,null,null,null,null,null,null,null,null,null,null,null,null,null,null,null,null,null,370676.99401046371,370700]
["Borkovice",249,552097,1,0,0,0,0,"Jihočeský kraj",553271,"Veselí nad Lužnicí",553271,"Veselí nad Lužnicí",553271,"Veselí nad Lužnicí",553131,"Soběslav",71941.662785630979,null,null,null,null,null,null,null,null,null,null,null,null,null,null,null,null,null,null,null,null,null,null,null,null,null,null,null,null,null,null,null,null,null,null,null,null,null,null,null,null,null,null,null,null,null,71941.662785630979,71900]
["Borotín",723,552101,1,1,0,0,0,"Jihočeský kraj",552101,"Borotín",552046,"Tábor",552046,"Tábor",552046,"Tábor",171526.07270751611,{"$f":"SUMIFS($B:$B,$J:$J,$C29)","v":723},39416.555609144387,0,{"$f":"U29*768","v":0},10,{"$f":"W29*3072","v":30720},4,{"$f":"Y29*1024","v":4096},2,{"$f":"AA29*256","v":512},null,null,null,null,null,null,null,null,null,null,null,null,null,null,null,null,null,null,null,null,null,null,null,null,null,null,null,null,null,null,null,null,null,null,null,246270.6283166605,246300]
["Borová Lada",281,545902,1,0,0,0,0,"Jihočeský kraj",550647,"Vimperk",550647,"Vimperk",550647,"Vimperk",550647,"Vimperk",71941.662785630979,null,null,null,null,null,null,null,null,null,null,null,null,null,null,null,null,null,null,null,null,null,null,null,null,null,null,null,null,null,null,null,null,null,null,null,null,null,null,null,null,null,null,null,null,null,71941.662785630979,71900]
["Borovany",207,598780,1,0,0,0,0,"Jihočeský kraj",549266,"Bernartice",549266,"Bernartice",549576,"Milevsko",549576,"Milevsko",71941.662785630979,null,null,null,null,null,null,null,null,null,null,null,null,null,null,null,null,null,null,null,null,null,null,null,null,null,null,null,null,null,null,null,null,null,null,null,null,null,null,null,null,null,null,null,null,null,71941.662785630979,71900]
["Borovany",4184,544281,1,1,1,0,0,"Jihočeský kraj",544281,"Borovany",544281,"Borovany",545171,"Trhové Sviny",545171,"Trhové Sviny",952406.24269768037,{"$f":"SUMIFS($B:$B,$J:$J,$C32)","v":4786},259853.76670637631,0,{"$f":"U32*768","v":0},19,{"$f":"W32*3072","v":58368},14,{"$f":"Y32*1024","v":14336},10,{"$f":"AA32*256","v":2560},{"$f":"SUMIFS($B:$B,$L:$L,$C32)","v":4786},{"$f":"(koeficienty!$C$4/(koeficienty!$B$4 + SQRT(IF(AC32<300,0.3,AC32/1000)))) * (IF(AC32<300,0.3,AC32/1000))","v":598274.48165462853},null,null,null,null,null,null,null,null,null,null,null,null,null,null,null,null,null,null,null,null,null,null,null,null,null,null,null,null,null,null,null,null,null,1885798.4910586854,1885800]
["Borovnice",163,535681,1,0,0,0,0,"Jihočeský kraj",544256,"České Budějovice",544256,"České Budějovice",544256,"České Budějovice",544256,"České Budějovice",71941.662785630979,null,null,null,null,null,null,null,null,null,null,null,null,null,null,null,null,null,null,null,null,null,null,null,null,null,null,null,null,null,null,null,null,null,null,null,null,null,null,null,null,null,null,null,null,null,71941.662785630979,71900]
["Boršov nad Vltavou",2105,544299,1,1,0,0,0,"Jihočeský kraj",544299,"Boršov nad Vltavou",544256,"České Budějovice",544256,"České Budějovice",544256,"České Budějovice",489019.05251121923,{"$f":"SUMIFS($B:$B,$J:$J,$C34)","v":5091},276355.46933227661,0,{"$f":"U34*768","v":0},11,{"$f":"W34*3072","v":33792},17,{"$f":"Y34*1024","v":17408},2,{"$f":"AA34*256","v":512},null,null,null,null,null,null,null,null,null,null,null,null,null,null,null,null,null,null,null,null,null,null,null,null,null,null,null,null,null,null,null,null,null,null,null,817086.52184349578,817100]
["Bořetín",98,562742,1,0,0,0,0,"Jihočeský kraj",547239,"Strmilov",545881,"Jindřichův Hradec",545881,"Jindřichův Hradec",545881,"Jindřichův Hradec",71941.662785630979,null,null,null,null,null,null,null,null,null,null,null,null,null,null,null,null,null,null,null,null,null,null,null,null,null,null,null,null,null,null,null,null,null,null,null,null,null,null,null,null,null,null,null,null,null,71941.662785630979,71900]
["Bošice",378,550124,1,0,0,0,0,"Jihočeský kraj",550167,"Čkyně",550647,"Vimperk",550647,"Vimperk",550647,"Vimperk",90429.827392837396,null,null,null,null,null,null,null,null,null,null,null,null,null,null,null,null,null,null,null,null,null,null,null,null,null,null,null,null,null,null,null,null,null,null,null,null,null,null,null,null,null,null,null,null,null,90429.827392837396,90400]
["Bošilec",220,535401,1,0,0,0,0,"Jihočeský kraj",545121,"Ševětín",544256,"České Budějovice",544256,"České Budějovice",544256,"České Budějovice",71941.662785630979,null,null,null,null,null,null,null,null,null,null,null,null,null,null,null,null,null,null,null,null,null,null,null,null,null,null,null,null,null,null,null,null,null,null,null,null,null,null,null,null,null,null,null,null,null,71941.662785630979,71900]
["Boudy",214,562122,1,0,0,0,0,"Jihočeský kraj",549584,"Mirotice",549584,"Mirotice",549584,"Mirotice",549240,"Písek",71941.662785630979,null,null,null,null,null,null,null,null,null,null,null,null,null,null,null,null,null,null,null,null,null,null,null,null,null,null,null,null,null,null,null,null,null,null,null,null,null,null,null,null,null,null,null,null,null,71941.662785630979,71900]
["Božetice",347,549291,1,0,0,0,0,"Jihočeský kraj",549843,"Sepekov",549576,"Milevsko",549576,"Milevsko",549576,"Milevsko",83089.846788565919,null,null,null,null,null,null,null,null,null,null,null,null,null,null,null,null,null,null,null,null,null,null,null,null,null,null,null,null,null,null,null,null,null,null,null,null,null,null,null,null,null,null,null,null,null,83089.846788565919,83100]
["Bradáčov",45,552127,1,0,0,0,0,"Jihočeský kraj",552496,"Chýnov",552704,"Mladá Vožice",552046,"Tábor",552046,"Tábor",71941.662785630979,null,null,null,null,null,null,null,null,null,null,null,null,null,null,null,null,null,null,null,null,null,null,null,null,null,null,null,null,null,null,null,null,null,null,null,null,null,null,null,null,null,null,null,null,null,71941.662785630979,71900]
["Branice",308,549304,1,0,0,0,0,"Jihočeský kraj",549576,"Milevsko",549576,"Milevsko",549576,"Milevsko",549576,"Milevsko",73840.976654356375,null,null,null,null,null,null,null,null,null,null,null,null,null,null,null,null,null,null,null,null,null,null,null,null,null,null,null,null,null,null,null,null,null,null,null,null,null,null,null,null,null,null,null,null,null,73840.976654356375,73800]
["Branišov",276,551490,1,0,0,0,0,"Jihočeský kraj",544442,"Dubné",544256,"České Budějovice",544256,"České Budějovice",544256,"České Budějovice",71941.662785630979,null,null,null,null,null,null,null,null,null,null,null,null,null,null,null,null,null,null,null,null,null,null,null,null,null,null,null,null,null,null,null,null,null,null,null,null,null,null,null,null,null,null,null,null,null,71941.662785630979,71900]
["Bratronice",76,537063,1,0,0,0,0,"Jihočeský kraj",550850,"Blatná",550850,"Blatná",550850,"Blatná",550850,"Blatná",71941.662785630979,null,null,null,null,null,null,null,null,null,null,null,null,null,null,null,null,null,null,null,null,null,null,null,null,null,null,null,null,null,null,null,null,null,null,null,null,null,null,null,null,null,null,null,null,null,71941.662785630979,71900]
["Brloh",1069,545431,1,1,0,0,0,"Jihočeský kraj",545431,"Brloh",545571,"Křemže",545392,"Český Krumlov",545392,"Český Krumlov",251977.169977824,{"$f":"SUMIFS($B:$B,$J:$J,$C44)","v":1476},80378.448765489753,0,{"$f":"U44*768","v":0},24,{"$f":"W44*3072","v":73728},6,{"$f":"Y44*1024","v":6144},3,{"$f":"AA44*256","v":768},null,null,null,null,null,null,null,null,null,null,null,null,null,null,null,3,{"$f":"AR44*30500","v":91500},null,null,null,null,null,null,null,null,null,null,null,null,null,null,null,null,null,null,504495.61874331377,504500]
["Břehov",177,536059,1,0,0,0,0,"Jihočeský kraj",544442,"Dubné",544256,"České Budějovice",544256,"České Budějovice",544256,"České Budějovice",71941.662785630979,null,null,null,null,null,null,null,null,null,null,null,null,null,null,null,null,null,null,null,null,null,null,null,null,null,null,null,null,null,null,null,null,null,null,null,null,null,null,null,null,null,null,null,null,null,71941.662785630979,71900]
["Březí",64,530018,1,0,0,0,0,"Jihočeský kraj",551350,"Lnáře",550850,"Blatná",550850,"Blatná",550850,"Blatná",71941.662785630979,null,null,null,null,null,null,null,null,null,null,null,null,null,null,null,null,null,null,null,null,null,null,null,null,null,null,null,null,null,null,null,null,null,null,null,null,null,null,null,null,null,null,null,null,null,71941.662785630979,71900]
["Březina",128,507733,1,0,0,0,0,"Jihočeský kraj",546151,"Deštná",545881,"Jindřichův Hradec",545881,"Jindřichův Hradec",545881,"Jindřichův Hradec",71941.662785630979,null,null,null,null,null,null,null,null,null,null,null,null,null,null,null,null,null,null,null,null,null,null,null,null,null,null,null,null,null,null,null,null,null,null,null,null,null,null,null,null,null,null,null,null,null,71941.662785630979,71900]
["Březnice",256,552135,1,0,0,0,0,"Jihočeský kraj",552054,"Bechyně",552054,"Bechyně",552054,"Bechyně",552046,"Tábor",71941.662785630979,null,null,null,null,null,null,null,null,null,null,null,null,null,null,null,null,null,null,null,null,null,null,null,null,null,null,null,null,null,null,null,null,null,null,null,null,null,null,null,null,null,null,null,null,null,71941.662785630979,71900]
["Budeč",223,546020,1,0,0,0,0,"Jihočeský kraj",546127,"Dačice",546127,"Dačice",546127,"Dačice",546127,"Dačice",71941.662785630979,null,null,null,null,null,null,null,null,null,null,null,null,null,null,null,null,null,null,null,null,null,null,null,null,null,null,null,null,null,null,null,null,null,null,null,null,null,null,null,null,null,null,null,null,null,71941.662785630979,71900]
["Budislav",370,552143,1,0,0,0,0,"Jihočeský kraj",553239,"Tučapy",553131,"Soběslav",553131,"Soběslav",553131,"Soběslav",88536.599103819099,null,null,null,null,null,null,null,null,null,null,null,null,null,null,null,null,null,null,null,null,null,null,null,null,null,1,{"$f":"AR50*30500","v":30500},null,null,null,null,null,null,null,null,null,null,null,null,null,null,null,null,null,null,119036.5991038191,119000]
["Budíškovice",736,546038,1,0,0,0,0,"Jihočeský kraj",546127,"Dačice",546127,"Dačice",546127,"Dačice",546127,"Dačice",174563.28677213329,null,null,null,null,null,null,null,null,null,null,null,null,null,null,null,null,null,null,null,null,null,null,null,null,null,null,null,null,null,null,null,null,null,null,null,null,null,null,null,null,null,null,null,null,null,174563.28677213329,174600]
["Budkov",91,561576,1,0,0,0,0,"Jihočeský kraj",550663,"Vlachovo Březí",550094,"Prachatice",550094,"Prachatice",550094,"Prachatice",71941.662785630979,null,null,null,null,null,null,null,null,null,null,null,null,null,null,null,null,null,null,null,null,null,null,null,null,null,null,null,null,null,null,null,null,null,null,null,null,null,null,null,null,null,null,null,null,null,71941.662785630979,71900]
["Budyně",53,560171,1,0,0,0,0,"Jihočeský kraj",550809,"Bavorov",551953,"Vodňany",551953,"Vodňany",551953,"Vodňany",71941.662785630979,null,null,null,null,null,null,null,null,null,null,null,null,null,null,null,null,null,null,null,null,null,null,null,null,null,null,null,null,null,null,null,null,null,null,null,null,null,null,null,null,null,null,null,null,null,71941.662785630979,71900]
["Bujanov",626,545449,1,0,0,0,0,"Jihočeský kraj",545775,"Rožmitál na Šumavě",545562,"Kaplice",545562,"Kaplice",545562,"Kaplice",148824.27924972991,null,null,null,null,null,null,null,null,null,null,null,null,null,null,null,null,null,null,null,null,null,null,null,null,null,null,null,null,null,null,null,null,null,null,null,null,null,null,null,null,null,null,null,null,null,148824.27924972991,148800]
["Buk",317,537519,1,0,0,0,0,"Jihočeský kraj",550574,"Šumavské Hoštice",550647,"Vimperk",550647,"Vimperk",550647,"Vimperk",75976.832032674458,null,null,null,null,null,null,null,null,null,null,null,null,null,null,null,null,null,null,null,null,null,null,null,null,null,null,null,null,null,null,null,null,null,null,null,null,null,null,null,null,null,null,null,null,null,75976.832032674458,76000]
["Bušanovice",270,550159,1,0,0,0,0,"Jihočeský kraj",550663,"Vlachovo Březí",550094,"Prachatice",550094,"Prachatice",550094,"Prachatice",71941.662785630979,null,null,null,null,null,null,null,null,null,null,null,null,null,null,null,null,null,null,null,null,null,null,null,null,null,null,null,null,null,null,null,null,null,null,null,null,null,null,null,null,null,null,null,null,null,71941.662785630979,71900]
["Buzice",175,529966,1,0,0,0,0,"Jihočeský kraj",550850,"Blatná",550850,"Blatná",550850,"Blatná",550850,"Blatná",71941.662785630979,null,null,null,null,null,null,null,null,null,null,null,null,null,null,null,null,null,null,null,null,null,null,null,null,null,null,null,null,null,null,null,null,null,null,null,null,null,null,null,null,null,null,null,null,null,71941.662785630979,71900]
["Cehnice",511,550906,1,0,0,0,0,"Jihočeský kraj",550787,"Strakonice",550787,"Strakonice",550787,"Strakonice",550787,"Strakonice",121813.6559350817,null,null,null,null,null,null,null,null,null,null,null,null,null,null,null,null,null,null,null,null,null,null,null,null,null,1,{"$f":"AR58*30500","v":30500},null,null,null,null,null,null,null,null,null,null,null,null,null,null,null,null,null,null,152313.65593508171,152300]
["Cep",199,509191,1,0,0,0,0,"Jihočeský kraj",547336,"Třeboň",547336,"Třeboň",547336,"Třeboň",547336,"Třeboň",71941.662785630979,null,null,null,null,null,null,null,null,null,null,null,null,null,null,null,null,null,null,null,null,null,null,null,null,null,null,null,null,null,null,null,null,null,null,null,null,null,null,null,null,null,null,null,null,null,71941.662785630979,71900]
["Cerhonice",143,549321,1,0,0,0,0,"Jihočeský kraj",549584,"Mirotice",549584,"Mirotice",549584,"Mirotice",549240,"Písek",71941.662785630979,null,null,null,null,null,null,null,null,null,null,null,null,null,null,null,null,null,null,null,null,null,null,null,null,null,null,null,null,null,null,null,null,null,null,null,null,null,null,null,null,null,null,null,null,null,71941.662785630979,71900]
["Cizkrajov",523,546054,1,0,0,0,0,"Jihočeský kraj",546127,"Dačice",546127,"Dačice",546127,"Dačice",546127,"Dačice",124637.3296382416,null,null,null,null,null,null,null,null,null,null,null,null,null,null,null,null,null,null,null,null,null,null,null,null,null,null,null,null,null,null,null,null,null,null,null,null,null,null,null,null,null,null,null,null,null,124637.3296382416,124600]
["Čakov",303,535541,1,0,0,0,0,"Jihočeský kraj",544442,"Dubné",544256,"České Budějovice",544256,"České Budějovice",544256,"České Budějovice",72653.99173377041,null,null,null,null,null,null,null,null,null,null,null,null,null,null,null,null,null,null,null,null,null,null,null,null,null,null,null,null,null,null,null,null,null,null,null,null,null,null,null,null,null,null,null,null,null,72653.99173377041,72700]
["Čečelovice",192,510068,1,0,0,0,0,"Jihočeský kraj",550850,"Blatná",550850,"Blatná",550850,"Blatná",550850,"Blatná",71941.662785630979,null,null,null,null,null,null,null,null,null,null,null,null,null,null,null,null,null,null,null,null,null,null,null,null,null,null,null,null,null,null,null,null,null,null,null,null,null,null,null,null,null,null,null,null,null,71941.662785630979,71900]
["Čejetice",937,550922,1,0,0,0,0,"Jihočeský kraj",551856,"Štěkeň",550787,"Strakonice",550787,"Strakonice",550787,"Strakonice",221375.42088546761,null,null,null,null,null,null,null,null,null,null,null,null,null,null,null,null,null,null,null,null,null,null,null,null,null,null,null,null,null,null,null,null,null,null,null,null,null,null,null,null,null,null,null,null,null,221375.42088546761,221400]
["Čejkovice",402,544329,1,0,0,0,0,"Jihočeský kraj",544442,"Dubné",544256,"České Budějovice",544256,"České Budějovice",544256,"České Budějovice",96105.606836119114,null,null,null,null,null,null,null,null,null,null,null,null,null,null,null,null,null,null,null,null,null,null,null,null,null,null,null,null,null,null,null,null,null,null,null,null,null,null,null,null,null,null,null,null,null,96105.606836119114,96100]
["Čenkov u Bechyně",61,598976,1,0,0,0,0,"Jihočeský kraj",545201,"Týn nad Vltavou",545201,"Týn nad Vltavou",545201,"Týn nad Vltavou",545201,"Týn nad Vltavou",71941.662785630979,null,null,null,null,null,null,null,null,null,null,null,null,null,null,null,null,null,null,null,null,null,null,null,null,null,null,null,null,null,null,null,null,null,null,null,null,null,null,null,null,null,null,null,null,null,71941.662785630979,71900]
["Čepřovice",211,550949,1,0,0,0,0,"Jihočeský kraj",551970,"Volyně",551970,"Volyně",551970,"Volyně",550787,"Strakonice",71941.662785630979,null,null,null,null,null,null,null,null,null,null,null,null,null,null,null,null,null,null,null,null,null,null,null,null,null,null,null,null,null,null,null,null,null,null,null,null,null,null,null,null,null,null,null,null,null,71941.662785630979,71900]
["Černá v Pošumaví",856,545457,1,0,0,0,0,"Jihočeský kraj",545511,"Horní Planá",545511,"Horní Planá",545511,"Horní Planá",545392,"Český Krumlov",202543.26221791809,null,null,null,null,null,null,null,null,null,null,null,null,null,null,null,null,null,null,null,null,null,null,null,null,null,null,null,null,null,null,null,null,null,null,null,null,null,null,null,null,null,null,null,null,null,{"$f":"SUMIF(R68:R68,\"<>\")+SUMIF(T68:T68,\"<>\")+SUMIF(V68:V68,\"<>\")+SUMIF(X68:X68,\"<>\")+SUMIF(Z68:Z68,\"<>\")+SUMIF(AB68:AB68,\"<>\")+SUMIF(AD68:AD68,\"<>\")+SUMIF(AF68:AF68,\"<>\")+SUMIF(AH68:AH68,\"<>\")+SUMIF(AJ68:AJ68,\"<>\")+SUMIF(AK68:AK68,\"<>\")+SUMIF(AM68:AM68,\"<>\")+SUMIF(AO68:AO68,\"<>\")+SUMIF(AQ68:AQ68,\"<>\")+SUMIF(AS68:AS68,\"<>\")+SUMIF(AU68:AU68,\"<>\")+SUMIF(AW68:AW68,\"<>\")+SUMIF(AY68:AY68,\"<>\")+SUMIF(BA68:BA68,\"<>\")+SUMIF(BC68:BC68,\"<>\")+SUMIF(BE68:BE68,\"<>\")+SUMIF(BG68:BG68,\"<>\")+SUMIF(BI68:BI68,\"<>\")+SUMIF(BK68:BK68,\"<>\")","v":202543.26221791809},{"$f":"ROUND(BL68/100,0)*100","v":202500}]
["Černýšovice",80,563722,1,0,0,0,0,"Jihočeský kraj",552054,"Bechyně",552054,"Bechyně",552054,"Bechyně",552046,"Tábor",71941.662785630979,null,null,null,null,null,null,null,null,null,null,null,null,null,null,null,null,null,null,null,null,null,null,null,null,null,null,null,null,null,null,null,null,null,null,null,null,null,null,null,null,null,null,null,null,null,71941.662785630979,71900]
["Červený Hrádek",196,509116,1,0,0,0,0,"Jihočeský kraj",546127,"Dačice",546127,"Dačice",546127,"Dačice",546127,"Dačice",71941.662785630979,null,null,null,null,null,null,null,null,null,null,null,null,null,null,null,null,null,null,null,null,null,null,null,null,null,null,null,null,null,null,null,null,null,null,null,null,null,null,null,null,null,null,null,null,null,71941.662785630979,71900]
["České Budějovice",97231,544256,1,1,1,1,1,"Jihočeský kraj",544256,"České Budějovice",544256,"České Budějovice",544256,"České Budějovice",544256,"České Budějovice",3752604.6512214071,{"$f":"SUMIFS($B:$B,$J:$J,$C71)","v":116938},2462687.9716852251,1886,{"$f":"U71*768","v":1448448},325,{"$f":"W71*3072","v":998400},1973,{"$f":"Y71*1024","v":2020352},606,{"$f":"AA71*256","v":155136},{"$f":"SUMIFS($B:$B,$L:$L,$C71)","v":138791},8070536.3020292586,{"$f":"SUMIFS($B:$B,$P:$P,$C71)","v":168393},9309532.1237458885,{"$f":"SUMIFS($B:$B,$N:$N,$C71)","v":147995},22442087.998733021,{"$f":"SUMIFS($B:$B,$P:$P,$C71)","v":168393},44562886.797523588,null,19885,{"$f":"AL71*141","v":2803785},null,null,413,1224000,120,{"$f":"AR71*30500","v":3660000},688,{"$f":"AT71*2742","v":1886496},0,{"$f":"AV71*914","v":0},6070,{"$f":"AX71*141","v":855870},9184,{"$f":"AZ71*343","v":3150112},3490,{"$f":"BB71*109","v":380410},478,{"$f":"BD71*82","v":39196},3548,{"$f":"BF71*328","v":1163744},553,{"$f":"BH71*410","v":226730},109,{"$f":"BJ71*219","v":23871},110636885.8449384,110636900]
["České Velenice",3607,546089,1,1,1,1,0,"Jihočeský kraj",546089,"České Velenice",546089,"České Velenice",546089,"České Velenice",547336,"Třeboň",825154.74685778085,{"$f":"SUMIFS($B:$B,$J:$J,$C72)","v":3959},215082.6841115893,0,{"$f":"U72*768","v":0},5,{"$f":"W72*3072","v":15360},32,{"$f":"Y72*1024","v":32768},4,{"$f":"AA72*256","v":1024},{"$f":"SUMIFS($B:$B,$L:$L,$C72)","v":3959},{"$f":"(koeficienty!$C$4/(koeficienty!$B$4 + SQRT(IF(AC72<300,0.3,AC72/1000)))) * (IF(AC72<300,0.3,AC72/1000))","v":495682.78702843731},null,null,{"$f":"SUMIFS($B:$B,$N:$N,$C72)","v":3959},448010.25324340147,null,null,null,null,null,null,null,null,null,6,{"$f":"AR72*30500","v":183000},null,null,null,null,null,null,null,null,null,null,null,null,null,null,null,null,null,null,2216082.4712412087,2216100]
["Český Krumlov",12797,545392,1,1,1,1,1,"Jihočeský kraj",545392,"Český Krumlov",545392,"Český Krumlov",545392,"Český Krumlov",545392,"Český Krumlov",587875.13825340942,{"$f":"SUMIFS($B:$B,$J:$J,$C73)","v":16953},369922.94430726662,482,{"$f":"U73*768","v":370176},111,{"$f":"W73*3072","v":340992},337,{"$f":"Y73*1024","v":345088},62,{"$f":"AA73*256","v":15872},{"$f":"SUMIFS($B:$B,$L:$L,$C73)","v":26348},1707705.978614907,{"$f":"SUMIFS($B:$B,$P:$P,$C73)","v":41551},2551723.3717365488,{"$f":"SUMIFS($B:$B,$N:$N,$C73)","v":31902},5507137.605671579,{"$f":"SUMIFS($B:$B,$P:$P,$C73)","v":41551},20152222.424342871,null,4664,{"$f":"AL73*141","v":657624},null,null,null,null,5,{"$f":"AR73*30500","v":152500},232,{"$f":"AT73*2742","v":636144},28,{"$f":"AV73*914","v":25592},1596,{"$f":"AX73*141","v":225036},1858,{"$f":"AZ73*343","v":637294},255,{"$f":"BB73*109","v":27795},11,{"$f":"BD73*82","v":902},363,{"$f":"BF73*328","v":119064},10,{"$f":"BH73*410","v":4100},35,{"$f":"BJ73*219","v":7665},34442431.462926582,34442400]
["Český Rudolec",871,546097,1,0,0,0,0,"Jihočeský kraj",546127,"Dačice",546127,"Dačice",546127,"Dačice",546127,"Dačice",206033.9075963778,null,null,null,null,null,null,null,null,null,null,null,null,null,null,null,null,null,null,null,null,null,null,null,null,null,3,{"$f":"AR74*30500","v":91500},null,null,null,null,null,null,null,null,null,null,null,null,null,null,null,null,null,null,297533.90759637777,297500]
["Čestice",907,550957,1,1,0,0,0,"Jihočeský kraj",550957,"Čestice",551970,"Volyně",551970,"Volyně",550787,"Strakonice",214405.46985106761,{"$f":"SUMIFS($B:$B,$J:$J,$C75)","v":1952},106240.4311559724,0,{"$f":"U75*768","v":0},18,{"$f":"W75*3072","v":55296},6,{"$f":"Y75*1024","v":6144},2,{"$f":"AA75*256","v":512},null,null,null,null,null,null,null,null,null,null,null,null,null,null,null,null,null,null,null,null,null,null,null,null,null,null,null,null,null,null,null,null,null,null,null,382597.90100704,382600]
["Číčenice",476,550965,1,0,0,0,0,"Jihočeský kraj",551953,"Vodňany",551953,"Vodňany",551953,"Vodňany",551953,"Vodňany",113570.7026831571,null,null,null,null,null,null,null,null,null,null,null,null,null,null,null,null,null,null,null,null,null,null,null,null,null,null,null,null,null,null,null,null,null,null,null,null,null,null,null,null,null,null,null,null,null,113570.7026831571,113600]
["Čimelice",1017,549339,1,1,0,0,0,"Jihočeský kraj",549339,"Čimelice",549584,"Mirotice",549584,"Mirotice",549240,"Písek",239934.52137191891,{"$f":"SUMIFS($B:$B,$J:$J,$C77)","v":1700},92551.49867854538,0,{"$f":"U77*768","v":0},5,{"$f":"W77*3072","v":15360},15,{"$f":"Y77*1024","v":15360},0,{"$f":"AA77*256","v":0},null,null,null,null,null,null,null,null,null,null,null,null,null,null,null,1,{"$f":"AR77*30500","v":30500},null,null,null,null,null,null,null,null,null,null,null,null,null,null,null,null,null,null,393706.02005046431,393700]
["Číměř",678,546101,1,0,0,0,0,"Jihočeský kraj",546798,"Nová Bystřice",546798,"Nová Bystřice",546798,"Nová Bystřice",545881,"Jindřichův Hradec",161003.10759305279,null,null,null,null,null,null,null,null,null,null,null,null,null,null,null,null,null,null,null,null,null,null,null,null,null,null,null,null,null,null,null,null,null,null,null,null,null,null,null,null,null,null,null,null,null,161003.10759305279,161000]
["Čížkrajice",291,551503,1,0,0,0,0,"Jihočeský kraj",545171,"Trhové Sviny",545171,"Trhové Sviny",545171,"Trhové Sviny",545171,"Trhové Sviny",71941.662785630979,null,null,null,null,null,null,null,null,null,null,null,null,null,null,null,null,null,null,null,null,null,null,null,null,null,2,{"$f":"AR79*30500","v":61000},null,null,null,null,null,null,null,null,null,null,null,null,null,null,null,null,null,null,132941.66278563096,132900]
["Čížová",1366,549347,1,0,0,0,0,"Jihočeský kraj",549240,"Písek",549240,"Písek",549240,"Písek",549240,"Písek",320467.19566848013,null,null,null,null,null,null,null,null,null,null,null,null,null,null,null,null,null,null,null,null,null,null,null,null,null,null,null,null,null,null,null,null,null,null,null,null,null,null,null,null,null,null,null,null,null,320467.19566848013,320500]
["Čkyně",1553,550167,1,1,0,0,0,"Jihočeský kraj",550167,"Čkyně",550647,"Vimperk",550647,"Vimperk",550647,"Vimperk",363354.93414361501,{"$f":"SUMIFS($B:$B,$J:$J,$C81)","v":2739},148956.0281637829,0,{"$f":"U81*768","v":0},8,{"$f":"W81*3072","v":24576},6,{"$f":"Y81*1024","v":6144},4,{"$f":"AA81*256","v":1024},null,null,null,null,null,null,null,null,null,null,null,null,null,null,null,null,null,null,null,null,null,null,null,null,null,null,null,null,null,null,null,null,null,null,null,544054.96230739797,544100]
["Člunek",485,561703,1,0,0,0,0,"Jihočeský kraj",546615,"Kunžak",545881,"Jindřichův Hradec",545881,"Jindřichův Hradec",545881,"Jindřichův Hradec",115691.3628950569,null,null,null,null,null,null,null,null,null,null,null,null,null,null,null,null,null,null,null,null,null,null,null,null,null,null,null,null,null,null,null,null,null,null,null,null,null,null,null,null,null,null,null,null,null,115691.3628950569,115700]
["Dačice",7157,546127,1,1,1,1,1,"Jihočeský kraj",546127,"Dačice",546127,"Dačice",546127,"Dačice",546127,"Dačice",338015.36007947172,{"$f":"SUMIFS($B:$B,$J:$J,$C83)","v":12530},285797.06208509329,2,{"$f":"U83*768","v":1536},43,{"$f":"W83*3072","v":132096},74,{"$f":"Y83*1024","v":75776},42,{"$f":"AA83*256","v":10752},{"$f":"SUMIFS($B:$B,$L:$L,$C83)","v":12530},816734.71071243158,{"$f":"SUMIFS($B:$B,$P:$P,$C83)","v":18355},1138989.9627704171,{"$f":"SUMIFS($B:$B,$N:$N,$C83)","v":15005},2662304.5740958699,{"$f":"SUMIFS($B:$B,$P:$P,$C83)","v":18355},12104542.840069139,null,2277,{"$f":"AL83*141","v":321057},null,null,null,null,21,{"$f":"AR83*30500","v":640500},118,{"$f":"AT83*2742","v":323556},28,{"$f":"AV83*914","v":25592},846,{"$f":"AX83*141","v":119286},657,{"$f":"AZ83*343","v":225351},778,{"$f":"BB83*109","v":84802},151,{"$f":"BD83*82","v":12382},751,{"$f":"BF83*328","v":246328},172,{"$f":"BH83*410","v":70520},18,{"$f":"BJ83*219","v":3942},19639860.509812422,19639900]
["Dasný",353,535249,1,0,0,0,0,"Jihočeský kraj",544256,"České Budějovice",544256,"České Budějovice",544256,"České Budějovice",544256,"České Budějovice",84511.27751876309,null,null,null,null,null,null,null,null,null,null,null,null,null,null,null,null,null,null,null,null,null,null,null,null,null,null,null,null,null,null,null,null,null,null,null,null,null,null,null,null,null,null,null,null,null,84511.27751876309,84500]
["Dešná",584,546143,1,1,0,0,0,"Jihočeský kraj",546143,"Dešná",547166,"Slavonice",547166,"Slavonice",546127,"Dačice",138972.11647865691,{"$f":"SUMIFS($B:$B,$J:$J,$C85)","v":633},34515.73952993194,0,{"$f":"U85*768","v":0},0,{"$f":"W85*3072","v":0},1,{"$f":"Y85*1024","v":1024},1,{"$f":"AA85*256","v":256},null,null,null,null,null,null,null,null,null,null,null,null,null,null,null,null,null,null,null,null,null,null,null,null,null,null,null,null,null,null,null,null,null,null,null,174767.85600858886,174800]
["Deštná",754,546151,1,1,0,0,0,"Jihočeský kraj",546151,"Deštná",545881,"Jindřichův Hradec",545881,"Jindřichův Hradec",545881,"Jindřichův Hradec",178766.66054003441,{"$f":"SUMIFS($B:$B,$J:$J,$C86)","v":1213},66079.34004743518,0,{"$f":"U86*768","v":0},8,{"$f":"W86*3072","v":24576},5,{"$f":"Y86*1024","v":5120},2,{"$f":"AA86*256","v":512},null,null,null,null,null,null,null,null,null,null,null,null,null,null,null,null,null,null,null,null,null,null,null,null,null,null,null,null,null,null,null,null,null,null,null,275054.00058746961,275100]
["Dírná",424,552208,1,1,0,0,0,"Jihočeský kraj",552208,"Dírná",553131,"Soběslav",553131,"Soběslav",553131,"Soběslav",101303.38155133319,{"$f":"SUMIFS($B:$B,$J:$J,$C87)","v":494},26944.148060688069,0,{"$f":"U87*768","v":0},24,{"$f":"W87*3072","v":73728},1,{"$f":"Y87*1024","v":1024},0,{"$f":"AA87*256","v":0},null,null,null,null,null,null,null,null,null,null,null,null,null,null,null,null,null,null,null,null,null,null,null,null,null,null,null,null,null,null,null,null,null,null,null,202999.52961202126,203000]
["Dívčí Kopy",66,529753,1,0,0,0,0,"Jihočeský kraj",546801,"Nová Včelnice",546801,"Nová Včelnice",545881,"Jindřichův Hradec",545881,"Jindřichův Hradec",71941.662785630979,null,null,null,null,null,null,null,null,null,null,null,null,null,null,null,null,null,null,null,null,null,null,null,null,null,null,null,null,null,null,null,null,null,null,null,null,null,null,null,null,null,null,null,null,null,71941.662785630979,71900]
["Dívčice",626,544361,1,0,0,0,0,"Jihočeský kraj",545341,"Zliv",545341,"Zliv",545341,"Zliv",544256,"České Budějovice",148824.27924972991,null,null,null,null,null,null,null,null,null,null,null,null,null,null,null,null,null,null,null,null,null,null,null,null,null,null,null,null,null,null,null,null,null,null,null,null,null,null,null,null,null,null,null,null,null,148824.27924972991,148800]
["Dlouhá Lhota",164,563650,1,0,0,0,0,"Jihočeský kraj",552470,"Choustník",552046,"Tábor",552046,"Tábor",552046,"Tábor",71941.662785630979,null,null,null,null,null,null,null,null,null,null,null,null,null,null,null,null,null,null,null,null,null,null,null,null,null,null,null,null,null,null,null,null,null,null,null,null,null,null,null,null,null,null,null,null,null,71941.662785630979,71900]
["Dobev",1150,549363,1,0,0,0,0,"Jihočeský kraj",549240,"Písek",549240,"Písek",549240,"Písek",549240,"Písek",270704.51199136092,null,null,null,null,null,null,null,null,null,null,null,null,null,null,null,null,null,null,null,null,null,null,null,null,null,null,null,null,null,null,null,null,null,null,null,null,null,null,null,null,null,null,null,null,null,270704.51199136092,270700]
["Dobrá Voda u Českých Budějovic",2652,535206,1,0,0,0,0,"Jihočeský kraj",544256,"České Budějovice",544256,"České Budějovice",544256,"České Budějovice",544256,"České Budějovice",612331.40258006554,null,null,null,null,null,null,null,null,null,null,null,null,null,null,null,null,null,null,null,null,null,null,null,null,null,6,{"$f":"AR92*30500","v":183000},null,null,null,null,null,null,null,null,null,null,null,null,null,null,null,null,null,null,795331.40258006554,795300]
["Dobrohošť",45,562416,1,0,0,0,0,"Jihočeský kraj",546127,"Dačice",546127,"Dačice",546127,"Dačice",546127,"Dačice",71941.662785630979,null,null,null,null,null,null,null,null,null,null,null,null,null,null,null,null,null,null,null,null,null,null,null,null,null,null,null,null,null,null,null,null,null,null,null,null,null,null,null,null,null,null,null,null,null,71941.662785630979,71900]
["Dobronice u Bechyně",113,552224,1,0,0,0,0,"Jihočeský kraj",552054,"Bechyně",552054,"Bechyně",552054,"Bechyně",552046,"Tábor",71941.662785630979,null,null,null,null,null,null,null,null,null,null,null,null,null,null,null,null,null,null,null,null,null,null,null,null,null,null,null,null,null,null,null,null,null,null,null,null,null,null,null,null,null,null,null,null,null,71941.662785630979,71900]
["Dobšice",139,536199,1,0,0,0,0,"Jihočeský kraj",545201,"Týn nad Vltavou",545201,"Týn nad Vltavou",545201,"Týn nad Vltavou",545201,"Týn nad Vltavou",71941.662785630979,null,null,null,null,null,null,null,null,null,null,null,null,null,null,null,null,null,null,null,null,null,null,null,null,null,null,null,null,null,null,null,null,null,null,null,null,null,null,null,null,null,null,null,null,null,71941.662785630979,71900]
["Dolní Bukovsko",1712,544388,1,1,0,0,0,"Jihočeský kraj",544388,"Dolní Bukovsko",545201,"Týn nad Vltavou",545201,"Týn nad Vltavou",545201,"Týn nad Vltavou",399689.37700906763,{"$f":"SUMIFS($B:$B,$J:$J,$C96)","v":1906},103742.09340061811,0,{"$f":"U96*768","v":0},5,{"$f":"W96*3072","v":15360},6,{"$f":"Y96*1024","v":6144},6,{"$f":"AA96*256","v":1536},null,null,null,null,null,null,null,null,null,null,null,null,null,null,null,null,null,null,null,null,null,null,null,null,null,null,null,null,null,null,null,null,null,null,null,526471.47040968575,526500]
["Dolní Dvořiště",1388,545465,1,1,0,0,0,"Jihočeský kraj",545465,"Dolní Dvořiště",545562,"Kaplice",545562,"Kaplice",545562,"Kaplice",325521.84831532708,{"$f":"SUMIFS($B:$B,$J:$J,$C97)","v":1388},75594.784293925564,0,{"$f":"U97*768","v":0},4,{"$f":"W97*3072","v":12288},4,{"$f":"Y97*1024","v":4096},6,{"$f":"AA97*256","v":1536},null,null,null,null,null,null,null,null,null,null,null,null,null,null,null,null,null,null,null,null,null,null,null,null,null,null,null,null,null,null,null,null,null,null,null,419036.63260925264,419000]
["Dolní Hořice",857,552241,1,0,0,0,0,"Jihočeský kraj",552496,"Chýnov",552496,"Chýnov",552046,"Tábor",552046,"Tábor",202776.01803532231,null,null,null,null,null,null,null,null,null,null,null,null,null,null,null,null,null,null,null,null,null,null,null,null,null,1,{"$f":"AR98*30500","v":30500},null,null,null,null,null,null,null,null,null,null,null,null,null,null,null,null,null,null,233276.01803532231,233300]
["Dolní Hrachovice",128,560529,1,0,0,0,0,"Jihočeský kraj",552992,"Ratibořské Hory",552704,"Mladá Vožice",552046,"Tábor",552046,"Tábor",71941.662785630979,null,null,null,null,null,null,null,null,null,null,null,null,null,null,null,null,null,null,null,null,null,null,null,null,null,null,null,null,null,null,null,null,null,null,null,null,null,null,null,null,null,null,null,null,null,71941.662785630979,71900]
["Dolní Novosedly",266,562301,1,0,0,0,0,"Jihočeský kraj",550027,"Záhoří",549240,"Písek",549240,"Písek",549240,"Písek",71941.662785630979,null,null,null,null,null,null,null,null,null,null,null,null,null,null,null,null,null,null,null,null,null,null,null,null,null,null,null,null,null,null,null,null,null,null,null,null,null,null,null,null,null,null,null,null,null,71941.662785630979,71900]
["Dolní Pěna",440,562467,1,0,0,0,0,"Jihočeský kraj",545881,"Jindřichův Hradec",545881,"Jindřichův Hradec",545881,"Jindřichův Hradec",545881,"Jindřichův Hradec",105080.6430611041,null,null,null,null,null,null,null,null,null,null,null,null,null,null,null,null,null,null,null,null,null,null,null,null,null,null,null,null,null,null,null,null,null,null,null,null,null,null,null,null,null,null,null,null,null,105080.6430611041,105100]
["Dolní Třebonín",1348,545473,1,0,0,0,0,"Jihočeský kraj",545392,"Český Krumlov",545392,"Český Krumlov",545392,"Český Krumlov",545392,"Český Krumlov",316329.72989140882,null,null,null,null,null,null,null,null,null,null,null,null,null,null,null,null,null,null,null,null,null,null,null,null,null,1,{"$f":"AR102*30500","v":30500},null,null,null,null,null,null,null,null,null,null,null,null,null,null,null,null,null,null,346829.72989140882,346800]
["Dolní Žďár",167,562602,1,0,0,0,0,"Jihočeský kraj",547221,"Stráž nad Nežárkou",545881,"Jindřichův Hradec",545881,"Jindřichův Hradec",545881,"Jindřichův Hradec",71941.662785630979,null,null,null,null,null,null,null,null,null,null,null,null,null,null,null,null,null,null,null,null,null,null,null,null,null,null,null,null,null,null,null,null,null,null,null,null,null,null,null,null,null,null,null,null,null,71941.662785630979,71900]
["Domanín",437,562840,1,0,0,0,0,"Jihočeský kraj",547336,"Třeboň",547336,"Třeboň",547336,"Třeboň",547336,"Třeboň",104372.5922734513,null,null,null,null,null,null,null,null,null,null,null,null,null,null,null,null,null,null,null,null,null,null,null,null,null,null,null,null,null,null,null,null,null,null,null,null,null,null,null,null,null,null,null,null,null,104372.5922734513,104400]
["Doňov",74,507610,1,0,0,0,0,"Jihočeský kraj",546542,"Kardašova Řečice",545881,"Jindřichův Hradec",545881,"Jindřichův Hradec",545881,"Jindřichův Hradec",71941.662785630979,null,null,null,null,null,null,null,null,null,null,null,null,null,null,null,null,null,null,null,null,null,null,null,null,null,null,null,null,null,null,null,null,null,null,null,null,null,null,null,null,null,null,null,null,null,71941.662785630979,71900]
["Doubravice",253,550981,1,0,0,0,0,"Jihočeský kraj",550787,"Strakonice",550787,"Strakonice",550787,"Strakonice",550787,"Strakonice",71941.662785630979,null,null,null,null,null,null,null,null,null,null,null,null,null,null,null,null,null,null,null,null,null,null,null,null,null,null,null,null,null,null,null,null,null,null,null,null,null,null,null,null,null,null,null,null,null,71941.662785630979,71900]
["Doubravice",335,535664,1,0,0,0,0,"Jihočeský kraj",544256,"České Budějovice",544256,"České Budějovice",544256,"České Budějovice",544256,"České Budějovice",80245.824107481807,null,null,null,null,null,null,null,null,null,null,null,null,null,null,null,null,null,null,null,null,null,null,null,null,null,null,null,null,null,null,null,null,null,null,null,null,null,null,null,null,null,null,null,null,null,80245.824107481807,80200]
["Doudleby",464,544400,1,0,0,0,0,"Jihočeský kraj",544256,"České Budějovice",544256,"České Budějovice",544256,"České Budějovice",544256,"České Budějovice",110742.0122547022,null,null,null,null,null,null,null,null,null,null,null,null,null,null,null,null,null,null,null,null,null,null,null,null,null,null,null,null,null,null,null,null,null,null,null,null,null,null,null,null,null,null,null,null,null,110742.0122547022,110700]
["Drahonice",413,551015,1,0,0,0,0,"Jihočeský kraj",551953,"Vodňany",551953,"Vodňany",551953,"Vodňany",551953,"Vodňany",98705.085625151027,null,null,null,null,null,null,null,null,null,null,null,null,null,null,null,null,null,null,null,null,null,null,null,null,null,null,null,null,null,null,null,null,null,null,null,null,null,null,null,null,null,null,null,null,null,98705.085625151027,98700]
["Drahotěšice",334,535958,1,0,0,0,0,"Jihočeský kraj",545121,"Ševětín",544256,"České Budějovice",544256,"České Budějovice",544256,"České Budějovice",80008.751643555675,null,null,null,null,null,null,null,null,null,null,null,null,null,null,null,null,null,null,null,null,null,null,null,null,null,null,null,null,null,null,null,null,null,null,null,null,null,null,null,null,null,null,null,null,null,80008.751643555675,80000]
["Drahov",149,563765,1,0,0,0,0,"Jihočeský kraj",553271,"Veselí nad Lužnicí",553271,"Veselí nad Lužnicí",553271,"Veselí nad Lužnicí",553131,"Soběslav",71941.662785630979,null,null,null,null,null,null,null,null,null,null,null,null,null,null,null,null,null,null,null,null,null,null,null,null,null,null,null,null,null,null,null,null,null,null,null,null,null,null,null,null,null,null,null,null,null,71941.662785630979,71900]
["Drachkov",196,560219,1,0,0,0,0,"Jihočeský kraj",550787,"Strakonice",550787,"Strakonice",550787,"Strakonice",550787,"Strakonice",71941.662785630979,null,null,null,null,null,null,null,null,null,null,null,null,null,null,null,null,null,null,null,null,null,null,null,null,null,null,null,null,null,null,null,null,null,null,null,null,null,null,null,null,null,null,null,null,null,71941.662785630979,71900]
["Dráchov",222,552275,1,0,0,0,0,"Jihočeský kraj",553131,"Soběslav",553131,"Soběslav",553131,"Soběslav",553131,"Soběslav",71941.662785630979,null,null,null,null,null,null,null,null,null,null,null,null,null,null,null,null,null,null,null,null,null,null,null,null,null,null,null,null,null,null,null,null,null,null,null,null,null,null,null,null,null,null,null,null,null,71941.662785630979,71900]
["Dražice",846,552283,1,0,0,0,0,"Jihočeský kraj",552046,"Tábor",552046,"Tábor",552046,"Tábor",552046,"Tábor",200215.33971067061,null,null,null,null,null,null,null,null,null,null,null,null,null,null,null,null,null,null,null,null,null,null,null,null,null,null,null,null,null,null,null,null,null,null,null,null,null,null,null,null,null,null,null,null,null,200215.33971067061,200200]
["Dražíč",283,549371,1,0,0,0,0,"Jihočeský kraj",545201,"Týn nad Vltavou",545201,"Týn nad Vltavou",545201,"Týn nad Vltavou",545201,"Týn nad Vltavou",71941.662785630979,null,null,null,null,null,null,null,null,null,null,null,null,null,null,null,null,null,null,null,null,null,null,null,null,null,null,null,null,null,null,null,null,null,null,null,null,null,null,null,null,null,null,null,null,null,71941.662785630979,71900]
["Dražičky",173,552291,1,0,0,0,0,"Jihočeský kraj",552666,"Malšice",552046,"Tábor",552046,"Tábor",552046,"Tábor",71941.662785630979,null,null,null,null,null,null,null,null,null,null,null,null,null,null,null,null,null,null,null,null,null,null,null,null,null,1,{"$f":"AR116*30500","v":30500},null,null,null,null,null,null,null,null,null,null,null,null,null,null,null,null,null,null,102441.66278563098,102400]
["Drážov",228,551023,1,0,0,0,0,"Jihočeský kraj",550957,"Čestice",551970,"Volyně",551970,"Volyně",550787,"Strakonice",71941.662785630979,null,null,null,null,null,null,null,null,null,null,null,null,null,null,null,null,null,null,null,null,null,null,null,null,null,1,{"$f":"AR117*30500","v":30500},null,null,null,null,null,null,null,null,null,null,null,null,null,null,null,null,null,null,102441.66278563098,102400]
["Drhovice",225,563307,1,0,0,0,0,"Jihočeský kraj",552046,"Tábor",552046,"Tábor",552046,"Tábor",552046,"Tábor",71941.662785630979,null,null,null,null,null,null,null,null,null,null,null,null,null,null,null,null,null,null,null,null,null,null,null,null,null,null,null,null,null,null,null,null,null,null,null,null,null,null,null,null,null,null,null,null,null,71941.662785630979,71900]
["Drhovle",667,549380,1,0,0,0,0,"Jihočeský kraj",549240,"Písek",549240,"Písek",549240,"Písek",549240,"Písek",158428.53739955,null,null,null,null,null,null,null,null,null,null,null,null,null,null,null,null,null,null,null,null,null,null,null,null,null,13,{"$f":"AR119*30500","v":396500},null,null,null,null,null,null,null,null,null,null,null,null,null,null,null,null,null,null,554928.53739954997,554900]
["Droužetice",130,560243,1,0,0,0,0,"Jihočeský kraj",550787,"Strakonice",550787,"Strakonice",550787,"Strakonice",550787,"Strakonice",71941.662785630979,null,null,null,null,null,null,null,null,null,null,null,null,null,null,null,null,null,null,null,null,null,null,null,null,null,null,null,null,null,null,null,null,null,null,null,null,null,null,null,null,null,null,null,null,null,71941.662785630979,71900]
["Drslavice",96,537187,1,0,0,0,0,"Jihočeský kraj",550230,"Husinec",550094,"Prachatice",550094,"Prachatice",550094,"Prachatice",71941.662785630979,null,null,null,null,null,null,null,null,null,null,null,null,null,null,null,null,null,null,null,null,null,null,null,null,null,null,null,null,null,null,null,null,null,null,null,null,null,null,null,null,null,null,null,null,null,71941.662785630979,71900]
["Drunče",56,560987,1,0,0,0,0,"Jihočeský kraj",546151,"Deštná",545881,"Jindřichův Hradec",545881,"Jindřichův Hradec",545881,"Jindřichův Hradec",71941.662785630979,null,null,null,null,null,null,null,null,null,null,null,null,null,null,null,null,null,null,null,null,null,null,null,null,null,null,null,null,null,null,null,null,null,null,null,null,null,null,null,null,null,null,null,null,null,71941.662785630979,71900]
["Dřešín",328,551040,1,0,0,0,0,"Jihočeský kraj",550957,"Čestice",551970,"Volyně",551970,"Volyně",550787,"Strakonice",78586.086575299298,null,null,null,null,null,null,null,null,null,null,null,null,null,null,null,null,null,null,null,null,null,null,null,null,null,null,null,null,null,null,null,null,null,null,null,null,null,null,null,null,null,null,null,null,null,78586.086575299298,78600]
["Dříteň",1711,544426,1,1,0,0,0,"Jihočeský kraj",544426,"Dříteň",544485,"Hluboká nad Vltavou",544485,"Hluboká nad Vltavou",544256,"České Budějovice",399461.22135028319,{"$f":"SUMIFS($B:$B,$J:$J,$C124)","v":2759},150040.91694711189,0,{"$f":"U124*768","v":0},21,{"$f":"W124*3072","v":64512},8,{"$f":"Y124*1024","v":8192},4,{"$f":"AA124*256","v":1024},null,null,null,null,null,null,null,null,null,null,null,null,null,null,null,null,null,null,null,null,null,null,null,null,null,null,null,null,null,null,null,null,null,null,null,623230.13829739508,623200]
["Dub",425,550183,1,0,0,0,0,"Jihočeský kraj",550540,"Strunkovice nad Blanicí",550094,"Prachatice",550094,"Prachatice",550094,"Prachatice",101539.5321889257,null,null,null,null,null,null,null,null,null,null,null,null,null,null,null,null,null,null,null,null,null,null,null,null,null,2,{"$f":"AR125*30500","v":61000},null,null,null,null,null,null,null,null,null,null,null,null,null,null,null,null,null,null,162539.53218892572,162500]
["Dubičné",418,535788,1,0,0,0,0,"Jihočeský kraj",544981,"Rudolfov",544981,"Rudolfov",544256,"České Budějovice",544256,"České Budějovice",99886.274863869141,null,null,null,null,null,null,null,null,null,null,null,null,null,null,null,null,null,null,null,null,null,null,null,null,null,null,null,null,null,null,null,null,null,null,null,null,null,null,null,null,null,null,null,null,null,99886.274863869141,99900]
["Dubné",1747,544442,1,1,0,0,0,"Jihočeský kraj",544442,"Dubné",544256,"České Budějovice",544256,"České Budějovice",544256,"České Budějovice",407671.99336182838,{"$f":"SUMIFS($B:$B,$J:$J,$C127)","v":5302},287768.39497716952,0,{"$f":"U127*768","v":0},42,{"$f":"W127*3072","v":129024},11,{"$f":"Y127*1024","v":11264},2,{"$f":"AA127*256","v":512},null,null,null,null,null,null,null,null,null,null,null,null,null,null,null,null,null,null,null,null,null,null,null,null,null,null,null,null,null,null,null,null,null,null,null,836240.38833899796,836200]
["Dunajovice",228,562815,1,0,0,0,0,"Jihočeský kraj",547336,"Třeboň",547336,"Třeboň",547336,"Třeboň",547336,"Třeboň",71941.662785630979,null,null,null,null,null,null,null,null,null,null,null,null,null,null,null,null,null,null,null,null,null,null,null,null,null,null,null,null,null,null,null,null,null,null,null,null,null,null,null,null,null,null,null,null,null,71941.662785630979,71900]
["Dvory",93,537144,1,0,0,0,0,"Jihočeský kraj",550230,"Husinec",550094,"Prachatice",550094,"Prachatice",550094,"Prachatice",71941.662785630979,null,null,null,null,null,null,null,null,null,null,null,null,null,null,null,null,null,null,null,null,null,null,null,null,null,null,null,null,null,null,null,null,null,null,null,null,null,null,null,null,null,null,null,null,null,71941.662785630979,71900]
["Dvory nad Lužnicí",388,509141,1,0,0,0,0,"Jihočeský kraj",547280,"Suchdol nad Lužnicí",547280,"Suchdol nad Lužnicí",547280,"Suchdol nad Lužnicí",547336,"Třeboň",92795.441547240291,null,null,null,null,null,null,null,null,null,null,null,null,null,null,null,null,null,null,null,null,null,null,null,null,null,null,null,null,null,null,null,null,null,null,null,null,null,null,null,null,null,null,null,null,null,92795.441547240291,92800]
["Dynín",380,544451,1,0,0,0,0,"Jihočeský kraj",545121,"Ševětín",544256,"České Budějovice",544256,"České Budějovice",544256,"České Budějovice",90903.031727811001,null,null,null,null,null,null,null,null,null,null,null,null,null,null,null,null,null,null,null,null,null,null,null,null,null,null,null,null,null,null,null,null,null,null,null,null,null,null,null,null,null,null,null,null,null,90903.031727811001,90900]
["Frahelž",157,562637,1,0,0,0,0,"Jihočeský kraj",546674,"Lomnice nad Lužnicí",547336,"Třeboň",547336,"Třeboň",547336,"Třeboň",71941.662785630979,null,null,null,null,null,null,null,null,null,null,null,null,null,null,null,null,null,null,null,null,null,null,null,null,null,null,null,null,null,null,null,null,null,null,null,null,null,null,null,null,null,null,null,null,null,{"$f":"SUMIF(R132:R132,\"<>\")+SUMIF(T132:T132,\"<>\")+SUMIF(V132:V132,\"<>\")+SUMIF(X132:X132,\"<>\")+SUMIF(Z132:Z132,\"<>\")+SUMIF(AB132:AB132,\"<>\")+SUMIF(AD132:AD132,\"<>\")+SUMIF(AF132:AF132,\"<>\")+SUMIF(AH132:AH132,\"<>\")+SUMIF(AJ132:AJ132,\"<>\")+SUMIF(AK132:AK132,\"<>\")+SUMIF(AM132:AM132,\"<>\")+SUMIF(AO132:AO132,\"<>\")+SUMIF(AQ132:AQ132,\"<>\")+SUMIF(AS132:AS132,\"<>\")+SUMIF(AU132:AU132,\"<>\")+SUMIF(AW132:AW132,\"<>\")+SUMIF(AY132:AY132,\"<>\")+SUMIF(BA132:BA132,\"<>\")+SUMIF(BC132:BC132,\"<>\")+SUMIF(BE132:BE132,\"<>\")+SUMIF(BG132:BG132,\"<>\")+SUMIF(BI132:BI132,\"<>\")+SUMIF(BK132:BK132,\"<>\")","v":71941.662785630979},{"$f":"ROUND(BL132/100,0)*100","v":71900}]
["Frymburk",1355,545481,1,1,0,0,0,"Jihočeský kraj",545481,"Frymburk",545511,"Horní Planá",545511,"Horní Planá",545392,"Český Krumlov",317938.94211349683,{"$f":"SUMIFS($B:$B,$J:$J,$C133)","v":2231},121389.411674905,0,{"$f":"U133*768","v":0},13,{"$f":"W133*3072","v":39936},10,{"$f":"Y133*1024","v":10240},7,{"$f":"AA133*256","v":1792},null,null,null,null,null,null,null,null,null,null,null,null,null,null,null,1,{"$f":"AR133*30500","v":30500},null,null,null,null,null,null,null,null,null,null,null,null,null,null,null,null,null,null,521796.35378840182,521800]
["Habří",126,535575,1,0,0,0,0,"Jihočeský kraj",544442,"Dubné",544256,"České Budějovice",544256,"České Budějovice",544256,"České Budějovice",71941.662785630979,null,null,null,null,null,null,null,null,null,null,null,null,null,null,null,null,null,null,null,null,null,null,null,null,null,null,null,null,null,null,null,null,null,null,null,null,null,null,null,null,null,null,null,null,null,71941.662785630979,71900]
["Hadravova Rosička",53,562696,1,0,0,0,0,"Jihočeský kraj",546801,"Nová Včelnice",546801,"Nová Včelnice",545881,"Jindřichův Hradec",545881,"Jindřichův Hradec",71941.662785630979,null,null,null,null,null,null,null,null,null,null,null,null,null,null,null,null,null,null,null,null,null,null,null,null,null,null,null,null,null,null,null,null,null,null,null,null,null,null,null,null,null,null,null,null,null,71941.662785630979,71900]
["Hajany",173,551597,1,0,0,0,0,"Jihočeský kraj",550850,"Blatná",550850,"Blatná",550850,"Blatná",550850,"Blatná",71941.662785630979,null,null,null,null,null,null,null,null,null,null,null,null,null,null,null,null,null,null,null,null,null,null,null,null,null,null,null,null,null,null,null,null,null,null,null,null,null,null,null,null,null,null,null,null,null,71941.662785630979,71900]
["Hájek",46,561690,1,0,0,0,0,"Jihočeský kraj",550809,"Bavorov",551953,"Vodňany",551953,"Vodňany",551953,"Vodňany",71941.662785630979,null,null,null,null,null,null,null,null,null,null,null,null,null,null,null,null,null,null,null,null,null,null,null,null,null,null,null,null,null,null,null,null,null,null,null,null,null,null,null,null,null,null,null,null,null,71941.662785630979,71900]
["Halámky",154,562807,1,0,0,0,0,"Jihočeský kraj",547280,"Suchdol nad Lužnicí",547280,"Suchdol nad Lužnicí",547280,"Suchdol nad Lužnicí",547336,"Třeboň",71941.662785630979,null,null,null,null,null,null,null,null,null,null,null,null,null,null,null,null,null,null,null,null,null,null,null,null,null,null,null,null,null,null,null,null,null,null,null,null,null,null,null,null,null,null,null,null,null,71941.662785630979,71900]
["Hamr",345,562386,1,0,0,0,0,"Jihočeský kraj",546461,"Chlum u Třeboně",547336,"Třeboň",547336,"Třeboň",547336,"Třeboň",82615.950967563855,null,null,null,null,null,null,null,null,null,null,null,null,null,null,null,null,null,null,null,null,null,null,null,null,null,null,null,null,null,null,null,null,null,null,null,null,null,null,null,null,null,null,null,null,null,82615.950967563855,82600]
["Hartmanice",194,536075,1,0,0,0,0,"Jihočeský kraj",544388,"Dolní Bukovsko",545201,"Týn nad Vltavou",545201,"Týn nad Vltavou",545201,"Týn nad Vltavou",71941.662785630979,null,null,null,null,null,null,null,null,null,null,null,null,null,null,null,null,null,null,null,null,null,null,null,null,null,null,null,null,null,null,null,null,null,null,null,null,null,null,null,null,null,null,null,null,null,71941.662785630979,71900]
["Haškovcova Lhota",74,563625,1,0,0,0,0,"Jihočeský kraj",552054,"Bechyně",552054,"Bechyně",552054,"Bechyně",552046,"Tábor",71941.662785630979,null,null,null,null,null,null,null,null,null,null,null,null,null,null,null,null,null,null,null,null,null,null,null,null,null,null,null,null,null,null,null,null,null,null,null,null,null,null,null,null,null,null,null,null,null,71941.662785630979,71900]
["Hatín",250,546291,1,0,0,0,0,"Jihočeský kraj",545881,"Jindřichův Hradec",545881,"Jindřichův Hradec",545881,"Jindřichův Hradec",545881,"Jindřichův Hradec",71941.662785630979,null,null,null,null,null,null,null,null,null,null,null,null,null,null,null,null,null,null,null,null,null,null,null,null,null,null,null,null,null,null,null,null,null,null,null,null,null,null,null,null,null,null,null,null,null,71941.662785630979,71900]
["Heřmaň",213,598593,1,0,0,0,0,"Jihočeský kraj",544256,"České Budějovice",544256,"České Budějovice",544256,"České Budějovice",544256,"České Budějovice",71941.662785630979,null,null,null,null,null,null,null,null,null,null,null,null,null,null,null,null,null,null,null,null,null,null,null,null,null,null,null,null,null,null,null,null,null,null,null,null,null,null,null,null,null,null,null,null,null,71941.662785630979,71900]
["Heřmaň",321,549398,1,0,0,0,0,"Jihočeský kraj",549240,"Písek",549240,"Písek",549240,"Písek",549240,"Písek",76925.807969008398,null,null,null,null,null,null,null,null,null,null,null,null,null,null,null,null,null,null,null,null,null,null,null,null,null,null,null,null,null,null,null,null,null,null,null,null,null,null,null,null,null,null,null,null,null,76925.807969008398,76900]
["Heřmaneč",90,546305,1,0,0,0,0,"Jihočeský kraj",547263,"Studená",547263,"Studená",546127,"Dačice",546127,"Dačice",71941.662785630979,null,null,null,null,null,null,null,null,null,null,null,null,null,null,null,null,null,null,null,null,null,null,null,null,null,null,null,null,null,null,null,null,null,null,null,null,null,null,null,null,null,null,null,null,null,71941.662785630979,71900]
["Hlasivo",135,560481,1,0,0,0,0,"Jihočeský kraj",552704,"Mladá Vožice",552704,"Mladá Vožice",552704,"Mladá Vožice",552046,"Tábor",71941.662785630979,null,null,null,null,null,null,null,null,null,null,null,null,null,null,null,null,null,null,null,null,null,null,null,null,null,null,null,null,null,null,null,null,null,null,null,null,null,null,null,null,null,null,null,null,null,71941.662785630979,71900]
["Hlavatce",427,552321,1,0,0,0,0,"Jihočeský kraj",553131,"Soběslav",553131,"Soběslav",553131,"Soběslav",553131,"Soběslav",102011.80459265169,null,null,null,null,null,null,null,null,null,null,null,null,null,null,null,null,null,null,null,null,null,null,null,null,null,null,null,null,null,null,null,null,null,null,null,null,null,null,null,null,null,null,null,null,null,102011.80459265169,102000]
["Hlavatce",150,535851,1,0,0,0,0,"Jihočeský kraj",545341,"Zliv",544256,"České Budějovice",544256,"České Budějovice",544256,"České Budějovice",71941.662785630979,null,null,null,null,null,null,null,null,null,null,null,null,null,null,null,null,null,null,null,null,null,null,null,null,null,null,null,null,null,null,null,null,null,null,null,null,null,null,null,null,null,null,null,null,null,71941.662785630979,71900]
["Hlincová Hora",488,598607,1,0,0,0,0,"Jihočeský kraj",544981,"Rudolfov",544981,"Rudolfov",544256,"České Budějovice",544256,"České Budějovice",116398.0877286575,null,null,null,null,null,null,null,null,null,null,null,null,null,null,null,null,null,null,null,null,null,null,null,null,null,null,null,null,null,null,null,null,null,null,null,null,null,null,null,null,null,null,null,null,null,116398.0877286575,116400]
["Hluboká nad Vltavou",5626,544485,1,1,1,1,0,"Jihočeský kraj",544485,"Hluboká nad Vltavou",544485,"Hluboká nad Vltavou",544485,"Hluboká nad Vltavou",544256,"České Budějovice",1266633.75118701,{"$f":"SUMIFS($B:$B,$J:$J,$C150)","v":6604},358141.77107807499,0,{"$f":"U150*768","v":0},77,{"$f":"W150*3072","v":236544},24,{"$f":"Y150*1024","v":24576},18,{"$f":"AA150*256","v":4608},{"$f":"SUMIFS($B:$B,$L:$L,$C150)","v":8385},{"$f":"(koeficienty!$C$4/(koeficienty!$B$4 + SQRT(IF(AC150<300,0.3,AC150/1000)))) * (IF(AC150<300,0.3,AC150/1000))","v":1042245.8942963928},null,null,{"$f":"SUMIFS($B:$B,$N:$N,$C150)","v":8385},944157.96614316129,null,null,null,null,null,null,null,null,null,3,{"$f":"AR150*30500","v":91500},null,null,null,null,null,null,null,null,null,null,null,null,null,null,null,null,null,null,3968407.3827046389,3968400]
["Hlupín",95,536628,1,0,0,0,0,"Jihočeský kraj",551791,"Střelské Hoštice",550787,"Strakonice",550787,"Strakonice",550787,"Strakonice",71941.662785630979,null,null,null,null,null,null,null,null,null,null,null,null,null,null,null,null,null,null,null,null,null,null,null,null,null,null,null,null,null,null,null,null,null,null,null,null,null,null,null,null,null,null,null,null,null,71941.662785630979,71900]
["Hodětín",93,598992,1,0,0,0,0,"Jihočeský kraj",552054,"Bechyně",552054,"Bechyně",552054,"Bechyně",552046,"Tábor",71941.662785630979,null,null,null,null,null,null,null,null,null,null,null,null,null,null,null,null,null,null,null,null,null,null,null,null,null,null,null,null,null,null,null,null,null,null,null,null,null,null,null,null,null,null,null,null,null,71941.662785630979,71900]
["Hodonice",134,562904,1,0,0,0,0,"Jihočeský kraj",552054,"Bechyně",552054,"Bechyně",552054,"Bechyně",552046,"Tábor",71941.662785630979,null,null,null,null,null,null,null,null,null,null,null,null,null,null,null,null,null,null,null,null,null,null,null,null,null,null,null,null,null,null,null,null,null,null,null,null,null,null,null,null,null,null,null,null,null,71941.662785630979,71900]
["Holubov",1089,545490,1,0,0,0,0,"Jihočeský kraj",545571,"Křemže",545571,"Křemže",545392,"Český Krumlov",545392,"Český Krumlov",256604.71761096391,null,null,null,null,null,null,null,null,null,null,null,null,null,null,null,null,null,null,null,null,null,null,null,null,null,null,null,null,null,null,null,null,null,null,null,null,null,null,null,null,null,null,null,null,null,256604.71761096391,256600]
["Homole",1685,544493,1,0,0,0,0,"Jihočeský kraj",544299,"Boršov nad Vltavou",544256,"České Budějovice",544256,"České Budějovice",544256,"České Budějovice",393527.585861139,null,null,null,null,null,null,null,null,null,null,null,null,null,null,null,null,null,null,null,null,null,null,null,null,null,1,{"$f":"AR155*30500","v":30500},null,null,null,null,null,null,null,null,null,null,null,null,null,null,null,null,null,null,424027.585861139,424000]
["Horní Dvořiště",440,545503,1,1,0,0,0,"Jihočeský kraj",545503,"Horní Dvořiště",545562,"Kaplice",545562,"Kaplice",545562,"Kaplice",105080.6430611041,{"$f":"SUMIFS($B:$B,$J:$J,$C156)","v":440},24001.75766652172,0,{"$f":"U156*768","v":0},2,{"$f":"W156*3072","v":6144},0,{"$f":"Y156*1024","v":0},1,{"$f":"AA156*256","v":256},null,null,null,null,null,null,null,null,null,null,null,null,null,null,null,null,null,null,null,null,null,null,null,null,null,null,null,null,null,null,null,null,null,null,null,135482.40072762582,135500]
["Horní Kněžeklady",110,536105,1,0,0,0,0,"Jihočeský kraj",545201,"Týn nad Vltavou",545201,"Týn nad Vltavou",545201,"Týn nad Vltavou",545201,"Týn nad Vltavou",71941.662785630979,null,null,null,null,null,null,null,null,null,null,null,null,null,null,null,null,null,null,null,null,null,null,null,null,null,null,null,null,null,null,null,null,null,null,null,null,null,null,null,null,null,null,null,null,null,71941.662785630979,71900]
["Horní Meziříčko",110,598658,1,0,0,0,0,"Jihočeský kraj",547263,"Studená",547263,"Studená",546127,"Dačice",546127,"Dačice",71941.662785630979,null,null,null,null,null,null,null,null,null,null,null,null,null,null,null,null,null,null,null,null,null,null,null,null,null,null,null,null,null,null,null,null,null,null,null,null,null,null,null,null,null,null,null,null,null,71941.662785630979,71900]
["Horní Němčice",85,562785,1,0,0,0,0,"Jihočeský kraj",547263,"Studená",547263,"Studená",546127,"Dačice",546127,"Dačice",71941.662785630979,null,null,null,null,null,null,null,null,null,null,null,null,null,null,null,null,null,null,null,null,null,null,null,null,null,null,null,null,null,null,null,null,null,null,null,null,null,null,null,null,null,null,null,null,null,71941.662785630979,71900]
["Horní Pěna",582,546364,1,0,0,0,0,"Jihočeský kraj",545881,"Jindřichův Hradec",545881,"Jindřichův Hradec",545881,"Jindřichův Hradec",545881,"Jindřichův Hradec",138502.6125617635,null,null,null,null,null,null,null,null,null,null,null,null,null,null,null,null,null,null,null,null,null,null,null,null,null,null,null,null,null,null,null,null,null,null,null,null,null,null,null,null,null,null,null,null,null,138502.6125617635,138500]
["Horní Planá",1943,545511,1,1,1,1,0,"Jihočeský kraj",545511,"Horní Planá",545511,"Horní Planá",545511,"Horní Planá",545392,"Český Krumlov",452275.33635894948,{"$f":"SUMIFS($B:$B,$J:$J,$C161)","v":2799},152210.60446248591,0,{"$f":"U161*768","v":0},21,{"$f":"W161*3072","v":64512},28,{"$f":"Y161*1024","v":28672},15,{"$f":"AA161*256","v":3840},{"$f":"SUMIFS($B:$B,$L:$L,$C161)","v":4154},{"$f":"(koeficienty!$C$4/(koeficienty!$B$4 + SQRT(IF(AC161<300,0.3,AC161/1000)))) * (IF(AC161<300,0.3,AC161/1000))","v":519895.25609451468},null,null,{"$f":"SUMIFS($B:$B,$N:$N,$C161)","v":4154},469951.67278124299,null,null,null,null,null,null,null,null,null,2,{"$f":"AR161*30500","v":61000},null,null,null,null,null,null,null,null,null,null,null,null,null,null,null,null,null,null,1752356.8696971931,1752400]
["Horní Poříčí",307,536881,1,0,0,0,0,"Jihočeský kraj",551791,"Střelské Hoštice",550787,"Strakonice",550787,"Strakonice",550787,"Strakonice",73603.602576925958,null,null,null,null,null,null,null,null,null,null,null,null,null,null,null,null,null,null,null,null,null,null,null,null,null,null,null,null,null,null,null,null,null,null,null,null,null,null,null,null,null,null,null,null,null,73603.602576925958,73600]
["Horní Radouň",262,546381,1,0,0,0,0,"Jihočeský kraj",546801,"Nová Včelnice",546801,"Nová Včelnice",545881,"Jindřichův Hradec",545881,"Jindřichův Hradec",71941.662785630979,null,null,null,null,null,null,null,null,null,null,null,null,null,null,null,null,null,null,null,null,null,null,null,null,null,null,null,null,null,null,null,null,null,null,null,null,null,null,null,null,null,null,null,null,null,71941.662785630979,71900]
["Horní Skrýchov",260,561061,1,0,0,0,0,"Jihočeský kraj",545881,"Jindřichův Hradec",545881,"Jindřichův Hradec",545881,"Jindřichův Hradec",545881,"Jindřichův Hradec",71941.662785630979,null,null,null,null,null,null,null,null,null,null,null,null,null,null,null,null,null,null,null,null,null,null,null,null,null,null,null,null,null,null,null,null,null,null,null,null,null,null,null,null,null,null,null,null,null,71941.662785630979,71900]
["Horní Slatina",135,562319,1,0,0,0,0,"Jihočeský kraj",546127,"Dačice",546127,"Dačice",546127,"Dačice",546127,"Dačice",71941.662785630979,null,null,null,null,null,null,null,null,null,null,null,null,null,null,null,null,null,null,null,null,null,null,null,null,null,null,null,null,null,null,null,null,null,null,null,null,null,null,null,null,null,null,null,null,null,71941.662785630979,71900]
["Horní Stropnice",1492,544515,1,1,0,0,0,"Jihočeský kraj",544515,"Horní Stropnice",544868,"Nové Hrady",544868,"Nové Hrady",545171,"Trhové Sviny",349383.69632785558,{"$f":"SUMIFS($B:$B,$J:$J,$C166)","v":1492},81248.119442258874,0,{"$f":"U166*768","v":0},5,{"$f":"W166*3072","v":15360},18,{"$f":"Y166*1024","v":18432},5,{"$f":"AA166*256","v":1280},null,null,null,null,null,null,null,null,null,null,null,null,null,null,null,1,{"$f":"AR166*30500","v":30500},null,null,null,null,null,null,null,null,null,null,null,null,null,null,null,null,null,null,496203.81577011442,496200]
["Horní Vltavice",354,550205,1,0,0,0,0,"Jihočeský kraj",550647,"Vimperk",550647,"Vimperk",550647,"Vimperk",550647,"Vimperk",84748.145369489866,null,null,null,null,null,null,null,null,null,null,null,null,null,null,null,null,null,null,null,null,null,null,null,null,null,null,null,null,null,null,null,null,null,null,null,null,null,null,null,null,null,null,null,null,null,84748.145369489866,84700]
["Hornosín",67,536369,1,0,0,0,0,"Jihočeský kraj",550817,"Bělčice",550850,"Blatná",550850,"Blatná",550850,"Blatná",71941.662785630979,null,null,null,null,null,null,null,null,null,null,null,null,null,null,null,null,null,null,null,null,null,null,null,null,null,null,null,null,null,null,null,null,null,null,null,null,null,null,null,null,null,null,null,null,null,71941.662785630979,71900]
["Horosedly",162,561525,1,0,0,0,0,"Jihočeský kraj",549592,"Mirovice",549592,"Mirovice",549592,"Mirovice",549240,"Písek",71941.662785630979,null,null,null,null,null,null,null,null,null,null,null,null,null,null,null,null,null,null,null,null,null,null,null,null,null,null,null,null,null,null,null,null,null,null,null,null,null,null,null,null,null,null,null,null,null,71941.662785630979,71900]
["Hořice na Šumavě",910,545520,1,1,0,0,0,"Jihočeský kraj",545520,"Hořice na Šumavě",545392,"Český Krumlov",545392,"Český Krumlov",545392,"Český Krumlov",215102.72273348391,{"$f":"SUMIFS($B:$B,$J:$J,$C170)","v":910},49595.610907651288,0,{"$f":"U170*768","v":0},2,{"$f":"W170*3072","v":6144},2,{"$f":"Y170*1024","v":2048},4,{"$f":"AA170*256","v":1024},null,null,null,null,null,null,null,null,null,null,null,null,null,null,null,2,{"$f":"AR170*30500","v":61000},null,null,null,null,null,null,null,null,null,null,null,null,null,null,null,null,null,null,334914.33364113519,334900]
["Hosín",978,544523,1,0,0,0,0,"Jihočeský kraj",544485,"Hluboká nad Vltavou",544256,"České Budějovice",544256,"České Budějovice",544256,"České Budějovice",230891.87816465169,null,null,null,null,null,null,null,null,null,null,null,null,null,null,null,null,null,null,null,null,null,null,null,null,null,null,null,null,null,null,null,null,null,null,null,null,null,null,null,null,null,null,null,null,null,230891.87816465169,230900]
["Hoslovice",172,551104,1,0,0,0,0,"Jihočeský kraj",550957,"Čestice",551970,"Volyně",551970,"Volyně",550787,"Strakonice",71941.662785630979,null,null,null,null,null,null,null,null,null,null,null,null,null,null,null,null,null,null,null,null,null,null,null,null,null,null,null,null,null,null,null,null,null,null,null,null,null,null,null,null,null,null,null,null,null,71941.662785630979,71900]
["Hospříz",449,546402,1,0,0,0,0,"Jihočeský kraj",545881,"Jindřichův Hradec",545881,"Jindřichův Hradec",545881,"Jindřichův Hradec",545881,"Jindřichův Hradec",107204.2862339929,null,null,null,null,null,null,null,null,null,null,null,null,null,null,null,null,null,null,null,null,null,null,null,null,null,null,null,null,null,null,null,null,null,null,null,null,null,null,null,null,null,null,null,null,null,107204.2862339929,107200]
["Hosty",166,535524,1,0,0,0,0,"Jihočeský kraj",545201,"Týn nad Vltavou",545201,"Týn nad Vltavou",545201,"Týn nad Vltavou",545201,"Týn nad Vltavou",71941.662785630979,null,null,null,null,null,null,null,null,null,null,null,null,null,null,null,null,null,null,null,null,null,null,null,null,null,null,null,null,null,null,null,null,null,null,null,null,null,null,null,null,null,null,null,null,null,71941.662785630979,71900]
["Hoštice",145,551121,1,0,0,0,0,"Jihočeský kraj",551970,"Volyně",551970,"Volyně",551970,"Volyně",550787,"Strakonice",71941.662785630979,null,null,null,null,null,null,null,null,null,null,null,null,null,null,null,null,null,null,null,null,null,null,null,null,null,null,null,null,null,null,null,null,null,null,null,null,null,null,null,null,null,null,null,null,null,71941.662785630979,71900]
["Hradce",112,535460,1,0,0,0,0,"Jihočeský kraj",544299,"Boršov nad Vltavou",544256,"České Budějovice",544256,"České Budějovice",544256,"České Budějovice",71941.662785630979,null,null,null,null,null,null,null,null,null,null,null,null,null,null,null,null,null,null,null,null,null,null,null,null,null,null,null,null,null,null,null,null,null,null,null,null,null,null,null,null,null,null,null,null,null,71941.662785630979,71900]
["Hracholusky",479,550221,1,0,0,0,0,"Jihočeský kraj",550540,"Strunkovice nad Blanicí",550094,"Prachatice",550094,"Prachatice",550094,"Prachatice",114277.6706410692,null,null,null,null,null,null,null,null,null,null,null,null,null,null,null,null,null,null,null,null,null,null,null,null,null,null,null,null,null,null,null,null,null,null,null,null,null,null,null,null,null,null,null,null,null,114277.6706410692,114300]
["Hrachoviště",80,562831,1,0,0,0,0,"Jihočeský kraj",547336,"Třeboň",547336,"Třeboň",547336,"Třeboň",547336,"Třeboň",71941.662785630979,null,null,null,null,null,null,null,null,null,null,null,null,null,null,null,null,null,null,null,null,null,null,null,null,null,null,null,null,null,null,null,null,null,null,null,null,null,null,null,null,null,null,null,null,null,71941.662785630979,71900]
["Hranice",209,544540,1,0,0,0,0,"Jihočeský kraj",544868,"Nové Hrady",544868,"Nové Hrady",544868,"Nové Hrady",545171,"Trhové Sviny",71941.662785630979,null,null,null,null,null,null,null,null,null,null,null,null,null,null,null,null,null,null,null,null,null,null,null,null,null,1,{"$f":"AR179*30500","v":30500},null,null,null,null,null,null,null,null,null,null,null,null,null,null,null,null,null,null,102441.66278563098,102400]
["Hrazany",288,549410,1,0,0,0,0,"Jihočeský kraj",549517,"Kovářov",549576,"Milevsko",549576,"Milevsko",549576,"Milevsko",71941.662785630979,null,null,null,null,null,null,null,null,null,null,null,null,null,null,null,null,null,null,null,null,null,null,null,null,null,null,null,null,null,null,null,null,null,null,null,null,null,null,null,null,null,null,null,null,null,71941.662785630979,71900]
["Hrdějovice",1506,544558,1,0,0,0,0,"Jihočeský kraj",544256,"České Budějovice",544256,"České Budějovice",544256,"České Budějovice",544256,"České Budějovice",352591.79796336271,null,null,null,null,null,null,null,null,null,null,null,null,null,null,null,null,null,null,null,null,null,null,null,null,null,1,{"$f":"AR181*30500","v":30500},null,null,null,null,null,null,null,null,null,null,null,null,null,null,null,null,null,null,383091.79796336271,383100]
["Hrejkovice",507,549428,1,0,0,0,0,"Jihočeský kraj",549576,"Milevsko",549576,"Milevsko",549576,"Milevsko",549576,"Milevsko",120872.15283324019,null,null,null,null,null,null,null,null,null,null,null,null,null,null,null,null,null,null,null,null,null,null,null,null,null,1,{"$f":"AR182*30500","v":30500},null,null,null,null,null,null,null,null,null,null,null,null,null,null,null,null,null,null,151372.15283324019,151400]
["Hříšice",329,546445,1,0,0,0,0,"Jihočeský kraj",546127,"Dačice",546127,"Dačice",546127,"Dačice",546127,"Dačice",78823.22492219272,null,null,null,null,null,null,null,null,null,null,null,null,null,null,null,null,null,null,null,null,null,null,null,null,null,null,null,null,null,null,null,null,null,null,null,null,null,null,null,null,null,null,null,null,null,78823.22492219272,78800]
["Hůry",610,535753,1,0,0,0,0,"Jihočeský kraj",544981,"Rudolfov",544981,"Rudolfov",544256,"České Budějovice",544256,"České Budějovice",145072.7306801083,null,null,null,null,null,null,null,null,null,null,null,null,null,null,null,null,null,null,null,null,null,null,null,null,null,null,null,null,null,null,null,null,null,null,null,null,null,null,null,null,null,null,null,null,null,145072.7306801083,145100]
["Husinec",1405,550230,1,1,0,0,0,"Jihočeský kraj",550230,"Husinec",550094,"Prachatice",550094,"Prachatice",550094,"Prachatice",329426.03404489579,{"$f":"SUMIFS($B:$B,$J:$J,$C185)","v":2333},126926.0998190659,0,{"$f":"U185*768","v":0},10,{"$f":"W185*3072","v":30720},6,{"$f":"Y185*1024","v":6144},2,{"$f":"AA185*256","v":512},null,null,null,null,null,null,null,null,null,null,null,null,null,null,null,1,{"$f":"AR185*30500","v":30500},null,null,null,null,null,null,null,null,null,null,null,null,null,null,null,null,null,null,524228.13386396167,524200]
["Hvozdec",141,535613,1,0,0,0,0,"Jihočeský kraj",544779,"Lišov",544779,"Lišov",544779,"Lišov",544256,"České Budějovice",71941.662785630979,null,null,null,null,null,null,null,null,null,null,null,null,null,null,null,null,null,null,null,null,null,null,null,null,null,null,null,null,null,null,null,null,null,null,null,null,null,null,null,null,null,null,null,null,null,71941.662785630979,71900]
["Chelčice",398,551139,1,0,0,0,0,"Jihočeský kraj",551953,"Vodňany",551953,"Vodňany",551953,"Vodňany",551953,"Vodňany",95160.045240076579,null,null,null,null,null,null,null,null,null,null,null,null,null,null,null,null,null,null,null,null,null,null,null,null,null,null,null,null,null,null,null,null,null,null,null,null,null,null,null,null,null,null,null,null,null,95160.045240076579,95200]
["Chlum",202,529982,1,0,0,0,0,"Jihočeský kraj",550850,"Blatná",550850,"Blatná",550850,"Blatná",550850,"Blatná",71941.662785630979,null,null,null,null,null,null,null,null,null,null,null,null,null,null,null,null,null,null,null,null,null,null,null,null,null,null,null,null,null,null,null,null,null,null,null,null,null,null,null,null,null,null,null,null,null,71941.662785630979,71900]
["Chlum u Třeboně",1816,546461,1,1,0,0,0,"Jihočeský kraj",546461,"Chlum u Třeboně",547336,"Třeboň",547336,"Třeboň",547336,"Třeboň",423393.20407493721,{"$f":"SUMIFS($B:$B,$J:$J,$C189)","v":2845},154705.59762153629,0,{"$f":"U189*768","v":0},10,{"$f":"W189*3072","v":30720},13,{"$f":"Y189*1024","v":13312},3,{"$f":"AA189*256","v":768},null,null,null,null,null,null,null,null,null,null,null,null,null,null,null,null,null,null,null,null,null,null,null,null,null,null,null,null,null,null,null,null,null,null,null,622898.8016964735,622900]
["Chlumany",374,550248,1,0,0,0,0,"Jihočeský kraj",550663,"Vlachovo Březí",550094,"Prachatice",550094,"Prachatice",550094,"Prachatice",89483.295669922649,null,null,null,null,null,null,null,null,null,null,null,null,null,null,null,null,null,null,null,null,null,null,null,null,null,null,null,null,null,null,null,null,null,null,null,null,null,null,null,null,null,null,null,null,null,89483.295669922649,89500]
["Chlumec",110,536229,1,0,0,0,0,"Jihočeský kraj",545392,"Český Krumlov",545392,"Český Krumlov",545392,"Český Krumlov",545392,"Český Krumlov",71941.662785630979,null,null,null,null,null,null,null,null,null,null,null,null,null,null,null,null,null,null,null,null,null,null,null,null,null,null,null,null,null,null,null,null,null,null,null,null,null,null,null,null,null,null,null,null,null,71941.662785630979,71900]
["Chobot",39,536903,1,0,0,0,0,"Jihočeský kraj",550817,"Bělčice",550850,"Blatná",550850,"Blatná",550850,"Blatná",71941.662785630979,null,null,null,null,null,null,null,null,null,null,null,null,null,null,null,null,null,null,null,null,null,null,null,null,null,null,null,null,null,null,null,null,null,null,null,null,null,null,null,null,null,null,null,null,null,71941.662785630979,71900]
["Chotěmice",123,552453,1,0,0,0,0,"Jihočeský kraj",553239,"Tučapy",553131,"Soběslav",553131,"Soběslav",553131,"Soběslav",71941.662785630979,null,null,null,null,null,null,null,null,null,null,null,null,null,null,null,null,null,null,null,null,null,null,null,null,null,null,null,null,null,null,null,null,null,null,null,null,null,null,null,null,null,null,null,null,null,71941.662785630979,71900]
["Chotoviny",1912,552461,1,1,0,0,0,"Jihočeský kraj",552461,"Chotoviny",552046,"Tábor",552046,"Tábor",552046,"Tábor",445231.71701777377,{"$f":"SUMIFS($B:$B,$J:$J,$C194)","v":2739},148956.0281637829,0,{"$f":"U194*768","v":0},5,{"$f":"W194*3072","v":15360},4,{"$f":"Y194*1024","v":4096},1,{"$f":"AA194*256","v":256},null,null,null,null,null,null,null,null,null,null,null,null,null,null,null,null,null,null,null,null,null,null,null,null,null,null,null,null,null,null,null,null,null,null,null,613899.74518155667,613900]
["Chotýčany",262,535907,1,0,0,0,0,"Jihočeský kraj",545121,"Ševětín",544256,"České Budějovice",544256,"České Budějovice",544256,"České Budějovice",71941.662785630979,null,null,null,null,null,null,null,null,null,null,null,null,null,null,null,null,null,null,null,null,null,null,null,null,null,null,null,null,null,null,null,null,null,null,null,null,null,null,null,null,null,null,null,null,null,71941.662785630979,71900]
["Choustník",484,552470,1,1,0,0,0,"Jihočeský kraj",552470,"Choustník",552046,"Tábor",552046,"Tábor",552046,"Tábor",115455.7700141059,{"$f":"SUMIFS($B:$B,$J:$J,$C196)","v":1601},87172.05950820724,0,{"$f":"U196*768","v":0},4,{"$f":"W196*3072","v":12288},2,{"$f":"Y196*1024","v":2048},2,{"$f":"AA196*256","v":512},null,null,null,null,null,null,null,null,null,null,null,null,null,null,null,null,null,null,null,null,null,null,null,null,null,null,null,null,null,null,null,null,null,null,null,{"$f":"SUMIF(R196:R196,\"<>\")+SUMIF(T196:T196,\"<>\")+SUMIF(V196:V196,\"<>\")+SUMIF(X196:X196,\"<>\")+SUMIF(Z196:Z196,\"<>\")+SUMIF(AB196:AB196,\"<>\")+SUMIF(AD196:AD196,\"<>\")+SUMIF(AF196:AF196,\"<>\")+SUMIF(AH196:AH196,\"<>\")+SUMIF(AJ196:AJ196,\"<>\")+SUMIF(AK196:AK196,\"<>\")+SUMIF(AM196:AM196,\"<>\")+SUMIF(AO196:AO196,\"<>\")+SUMIF(AQ196:AQ196,\"<>\")+SUMIF(AS196:AS196,\"<>\")+SUMIF(AU196:AU196,\"<>\")+SUMIF(AW196:AW196,\"<>\")+SUMIF(AY196:AY196,\"<>\")+SUMIF(BA196:BA196,\"<>\")+SUMIF(BC196:BC196,\"<>\")+SUMIF(BE196:BE196,\"<>\")+SUMIF(BG196:BG196,\"<>\")+SUMIF(BI196:BI196,\"<>\")+SUMIF(BK196:BK196,\"<>\")","v":217475.82952231314},{"$f":"ROUND(BL196/100,0)*100","v":217500}]
["Chrášťany",721,544591,1,0,0,0,0,"Jihočeský kraj",545201,"Týn nad Vltavou",545201,"Týn nad Vltavou",545201,"Týn nad Vltavou",545201,"Týn nad Vltavou",171058.70062875841,null,null,null,null,null,null,null,null,null,null,null,null,null,null,null,null,null,null,null,null,null,null,null,null,null,null,null,null,null,null,null,null,null,null,null,null,null,null,null,null,null,null,null,null,null,171058.70062875841,171100]
["Chrášťovice",271,551155,1,0,0,0,0,"Jihočeský kraj",551660,"Radomyšl",550787,"Strakonice",550787,"Strakonice",550787,"Strakonice",71941.662785630979,null,null,null,null,null,null,null,null,null,null,null,null,null,null,null,null,null,null,null,null,null,null,null,null,null,null,null,null,null,null,null,null,null,null,null,null,null,null,null,null,null,null,null,null,null,71941.662785630979,71900]
["Chrbonín",163,563145,1,0,0,0,0,"Jihočeský kraj",552470,"Choustník",552496,"Chýnov",552046,"Tábor",552046,"Tábor",71941.662785630979,null,null,null,null,null,null,null,null,null,null,null,null,null,null,null,null,null,null,null,null,null,null,null,null,null,null,null,null,null,null,null,null,null,null,null,null,null,null,null,null,null,null,null,null,null,71941.662785630979,71900]
["Chroboly",601,550264,1,0,0,0,0,"Jihočeský kraj",550094,"Prachatice",550094,"Prachatice",550094,"Prachatice",550094,"Prachatice",142961.59328417431,null,null,null,null,null,null,null,null,null,null,null,null,null,null,null,null,null,null,null,null,null,null,null,null,null,null,null,null,null,null,null,null,null,null,null,null,null,null,null,null,null,null,null,null,null,142961.59328417431,143000]
["Chvalovice",170,537420,1,0,0,0,0,"Jihočeský kraj",550442,"Netolice",550442,"Netolice",550442,"Netolice",550094,"Prachatice",71941.662785630979,null,null,null,null,null,null,null,null,null,null,null,null,null,null,null,null,null,null,null,null,null,null,null,null,null,null,null,null,null,null,null,null,null,null,null,null,null,null,null,null,null,null,null,null,null,71941.662785630979,71900]
["Chvalšiny",1233,545546,1,1,0,0,0,"Jihočeský kraj",545546,"Chvalšiny",545392,"Český Krumlov",545392,"Český Krumlov",545392,"Český Krumlov",289855.96378209163,{"$f":"SUMIFS($B:$B,$J:$J,$C202)","v":1233},67166.991306534444,0,{"$f":"U202*768","v":0},3,{"$f":"W202*3072","v":9216},2,{"$f":"Y202*1024","v":2048},4,{"$f":"AA202*256","v":1024},null,null,null,null,null,null,null,null,null,null,null,null,null,null,null,null,null,null,null,null,null,null,null,null,null,null,null,null,null,null,null,null,null,null,null,369310.95508862607,369300]
["Chýnov",2568,552496,1,1,1,0,0,"Jihočeský kraj",552496,"Chýnov",552496,"Chýnov",552046,"Tábor",552046,"Tábor",593466.79466302623,{"$f":"SUMIFS($B:$B,$J:$J,$C203)","v":4766},258771.50506399031,0,{"$f":"U203*768","v":0},10,{"$f":"W203*3072","v":30720},33,{"$f":"Y203*1024","v":33792},10,{"$f":"AA203*256","v":2560},{"$f":"SUMIFS($B:$B,$L:$L,$C203)","v":4694},{"$f":"(koeficienty!$C$4/(koeficienty!$B$4 + SQRT(IF(AC203<300,0.3,AC203/1000)))) * (IF(AC203<300,0.3,AC203/1000))","v":586873.52568791073},null,null,null,null,null,null,null,null,null,null,null,null,null,4,{"$f":"AR203*30500","v":122000},null,null,null,null,null,null,null,null,null,null,null,null,null,null,null,null,null,null,1628183.8254149272,1628200]
["Chyšky",1061,549452,1,1,0,0,0,"Jihočeský kraj",549452,"Chyšky",549576,"Milevsko",549576,"Milevsko",549576,"Milevsko",250125.4963288494,{"$f":"SUMIFS($B:$B,$J:$J,$C204)","v":1208},65807.42013271722,0,{"$f":"U204*768","v":0},3,{"$f":"W204*3072","v":9216},2,{"$f":"Y204*1024","v":2048},0,{"$f":"AA204*256","v":0},null,null,null,null,null,null,null,null,null,null,null,null,null,null,null,null,null,null,null,null,null,null,null,null,null,null,null,null,null,null,null,null,null,null,null,327196.91646156664,327200]
["Jankov",391,544612,1,0,0,0,0,"Jihočeský kraj",544442,"Dubné",544256,"České Budějovice",544256,"České Budějovice",544256,"České Budějovice",93504.928127862106,null,null,null,null,null,null,null,null,null,null,null,null,null,null,null,null,null,null,null,null,null,null,null,null,null,null,null,null,null,null,null,null,null,null,null,null,null,null,null,null,null,null,null,null,null,93504.928127862106,93500]
["Jarošov nad Nežárkou",1087,546500,1,0,0,0,0,"Jihočeský kraj",545881,"Jindřichův Hradec",546801,"Nová Včelnice",545881,"Jindřichův Hradec",545881,"Jindřichův Hradec",256142.0675868695,null,null,null,null,null,null,null,null,null,null,null,null,null,null,null,null,null,null,null,null,null,null,null,null,null,null,null,null,null,null,null,null,null,null,null,null,null,null,null,null,null,null,null,null,null,256142.0675868695,256100]
["Jedlany",75,562963,1,0,0,0,0,"Jihočeský kraj",552461,"Chotoviny",552046,"Tábor",552046,"Tábor",552046,"Tábor",71941.662785630979,null,null,null,null,null,null,null,null,null,null,null,null,null,null,null,null,null,null,null,null,null,null,null,null,null,null,null,null,null,null,null,null,null,null,null,null,null,null,null,null,null,null,null,null,null,71941.662785630979,71900]
["Jetětice",345,549479,1,0,0,0,0,"Jihočeský kraj",549576,"Milevsko",549576,"Milevsko",549576,"Milevsko",549576,"Milevsko",82615.950967563855,null,null,null,null,null,null,null,null,null,null,null,null,null,null,null,null,null,null,null,null,null,null,null,null,null,null,null,null,null,null,null,null,null,null,null,null,null,null,null,null,null,null,null,null,null,82615.950967563855,82600]
["Jickovice",135,562084,1,0,0,0,0,"Jihočeský kraj",549576,"Milevsko",549576,"Milevsko",549576,"Milevsko",549576,"Milevsko",71941.662785630979,null,null,null,null,null,null,null,null,null,null,null,null,null,null,null,null,null,null,null,null,null,null,null,null,null,null,null,null,null,null,null,null,null,null,null,null,null,null,null,null,null,null,null,null,null,71941.662785630979,71900]
["Jilem",133,562769,1,0,0,0,0,"Jihočeský kraj",547239,"Strmilov",547263,"Studená",545881,"Jindřichův Hradec",545881,"Jindřichův Hradec",71941.662785630979,null,null,null,null,null,null,null,null,null,null,null,null,null,null,null,null,null,null,null,null,null,null,null,null,null,null,null,null,null,null,null,null,null,null,null,null,null,null,null,null,null,null,null,null,null,71941.662785630979,71900]
["Jílovice",1111,544639,1,0,0,0,0,"Jihočeský kraj",545171,"Trhové Sviny",545171,"Trhové Sviny",545171,"Trhové Sviny",545171,"Trhové Sviny",261692.34249696409,null,null,null,null,null,null,null,null,null,null,null,null,null,null,null,null,null,null,null,null,null,null,null,null,null,null,null,null,null,null,null,null,null,null,null,null,null,null,null,null,null,null,null,null,null,261692.34249696409,261700]
["Jindřichův Hradec",20540,545881,1,1,1,1,1,"Jihočeský kraj",545881,"Jindřichův Hradec",545881,"Jindřichův Hradec",545881,"Jindřichův Hradec",545881,"Jindřichův Hradec",917060.12585573329,{"$f":"SUMIFS($B:$B,$J:$J,$C212)","v":27161},590842.62594685343,446,{"$f":"U212*768","v":342528},125,{"$f":"W212*3072","v":384000},497,{"$f":"Y212*1024","v":508928},136,{"$f":"AA212*256","v":34816},{"$f":"SUMIFS($B:$B,$L:$L,$C212)","v":37765},2398113.8578201439,{"$f":"SUMIFS($B:$B,$P:$P,$C212)","v":46406},2784327.6980781308,{"$f":"SUMIFS($B:$B,$N:$N,$C212)","v":42054},7109434.540363227,{"$f":"SUMIFS($B:$B,$P:$P,$C212)","v":46406},21292899.67461127,null,5502,{"$f":"AL212*141","v":775782},null,null,null,null,75,{"$f":"AR212*30500","v":2287500},187,{"$f":"AT212*2742","v":512754},0,{"$f":"AV212*914","v":0},2010,{"$f":"AX212*141","v":283410},1992,{"$f":"AZ212*343","v":683256},730,{"$f":"BB212*109","v":79570},103,{"$f":"BD212*82","v":8446},1057,{"$f":"BF212*328","v":346696},116,{"$f":"BH212*410","v":47560},33,{"$f":"BJ212*219","v":7227},41395151.522675358,41395200]
["Jinín",221,551163,1,0,0,0,0,"Jihočeský kraj",550787,"Strakonice",550787,"Strakonice",550787,"Strakonice",550787,"Strakonice",71941.662785630979,null,null,null,null,null,null,null,null,null,null,null,null,null,null,null,null,null,null,null,null,null,null,null,null,null,null,null,null,null,null,null,null,null,null,null,null,null,null,null,null,null,null,null,null,null,71941.662785630979,71900]
["Jistebnice",2132,552534,1,1,1,0,0,"Jihočeský kraj",552534,"Jistebnice",552534,"Jistebnice",552046,"Tábor",552046,"Tábor",495132.63170392881,{"$f":"SUMIFS($B:$B,$J:$J,$C214)","v":2132},116014.73493032729,0,{"$f":"U214*768","v":0},13,{"$f":"W214*3072","v":39936},10,{"$f":"Y214*1024","v":10240},5,{"$f":"AA214*256","v":1280},{"$f":"SUMIFS($B:$B,$L:$L,$C214)","v":2860},{"$f":"(koeficienty!$C$4/(koeficienty!$B$4 + SQRT(IF(AC214<300,0.3,AC214/1000)))) * (IF(AC214<300,0.3,AC214/1000))","v":358945.00593840756},null,null,null,null,null,null,null,null,null,null,null,null,null,1,{"$f":"AR214*30500","v":30500},null,null,null,null,null,null,null,null,null,null,null,null,null,null,null,null,null,null,1052048.3725726637,1052000]
["Jivno",425,535761,1,0,0,0,0,"Jihočeský kraj",544981,"Rudolfov",544981,"Rudolfov",544256,"České Budějovice",544256,"České Budějovice",101539.5321889257,null,null,null,null,null,null,null,null,null,null,null,null,null,null,null,null,null,null,null,null,null,null,null,null,null,null,null,null,null,null,null,null,null,null,null,null,null,null,null,null,null,null,null,null,null,101539.5321889257,101500]
["Kačlehy",117,562491,1,0,0,0,0,"Jihočeský kraj",545881,"Jindřichův Hradec",545881,"Jindřichův Hradec",545881,"Jindřichův Hradec",545881,"Jindřichův Hradec",71941.662785630979,null,null,null,null,null,null,null,null,null,null,null,null,null,null,null,null,null,null,null,null,null,null,null,null,null,null,null,null,null,null,null,null,null,null,null,null,null,null,null,null,null,null,null,null,null,71941.662785630979,71900]
["Kadov",374,551180,1,0,0,0,0,"Jihočeský kraj",550850,"Blatná",550850,"Blatná",550850,"Blatná",550850,"Blatná",89483.295669922649,null,null,null,null,null,null,null,null,null,null,null,null,null,null,null,null,null,null,null,null,null,null,null,null,null,null,null,null,null,null,null,null,null,null,null,null,null,null,null,null,null,null,null,null,null,89483.295669922649,89500]
["Kájov",1971,545554,1,1,0,0,0,"Jihočeský kraj",545554,"Kájov",545392,"Český Krumlov",545392,"Český Krumlov",545392,"Český Krumlov",458633.8436340816,{"$f":"SUMIFS($B:$B,$J:$J,$C218)","v":2174},118295.00217796629,0,{"$f":"U218*768","v":0},18,{"$f":"W218*3072","v":55296},5,{"$f":"Y218*1024","v":5120},7,{"$f":"AA218*256","v":1792},null,null,null,null,null,null,null,null,null,null,null,null,null,null,null,null,null,null,null,null,null,null,null,null,null,null,null,null,null,null,null,null,null,null,null,639136.84581204783,639100]
["Kalenice",82,536946,1,0,0,0,0,"Jihočeský kraj",551201,"Katovice",550787,"Strakonice",550787,"Strakonice",550787,"Strakonice",71941.662785630979,null,null,null,null,null,null,null,null,null,null,null,null,null,null,null,null,null,null,null,null,null,null,null,null,null,null,null,null,null,null,null,null,null,null,null,null,null,null,null,null,null,null,null,null,null,71941.662785630979,71900]
["Kamenná",342,535982,1,0,0,0,0,"Jihočeský kraj",545171,"Trhové Sviny",545171,"Trhové Sviny",545171,"Trhové Sviny",545171,"Trhové Sviny",81905.026558065496,null,null,null,null,null,null,null,null,null,null,null,null,null,null,null,null,null,null,null,null,null,null,null,null,null,null,null,null,null,null,null,null,null,null,null,null,null,null,null,null,null,null,null,null,null,81905.026558065496,81900]
["Kamenný Malíkov",78,598631,1,0,0,0,0,"Jihočeský kraj",545881,"Jindřichův Hradec",545881,"Jindřichův Hradec",545881,"Jindřichův Hradec",545881,"Jindřichův Hradec",71941.662785630979,null,null,null,null,null,null,null,null,null,null,null,null,null,null,null,null,null,null,null,null,null,null,null,null,null,null,null,null,null,null,null,null,null,null,null,null,null,null,null,null,null,null,null,null,null,71941.662785630979,71900]
["Kamenný Újezd",2694,544663,1,1,0,0,0,"Jihočeský kraj",544663,"Kamenný Újezd",544256,"České Budějovice",544256,"České Budějovice",544256,"České Budějovice",621754.36446374538,{"$f":"SUMIFS($B:$B,$J:$J,$C222)","v":6101},330964.69263071258,1,{"$f":"U222*768","v":768},9,{"$f":"W222*3072","v":27648},22,{"$f":"Y222*1024","v":22528},4,{"$f":"AA222*256","v":1024},null,null,null,null,null,null,null,null,null,null,null,null,null,null,null,null,null,null,null,null,null,null,null,null,null,null,null,null,null,null,null,null,null,null,null,1004687.057094458,1004700]
["Kaplice",7531,545562,1,1,1,1,1,"Jihočeský kraj",545562,"Kaplice",545562,"Kaplice",545562,"Kaplice",545562,"Kaplice",354916.31874499598,{"$f":"SUMIFS($B:$B,$J:$J,$C223)","v":8915},190910.82125788569,0,{"$f":"U223*768","v":0},35,{"$f":"W223*3072","v":107520},34,{"$f":"Y223*1024","v":34816},48,{"$f":"AA223*256","v":12288},{"$f":"SUMIFS($B:$B,$L:$L,$C223)","v":20104},1334666.5008569029,{"$f":"SUMIFS($B:$B,$P:$P,$C223)","v":20104},1247650.766393156,{"$f":"SUMIFS($B:$B,$N:$N,$C223)","v":20104},3550862.2733745971,{"$f":"SUMIFS($B:$B,$P:$P,$C223)","v":20104},12828166.167697789,null,2694,{"$f":"AL223*141","v":379854},null,null,null,null,15,{"$f":"AR223*30500","v":457500},240,{"$f":"AT223*2742","v":658080},0,{"$f":"AV223*914","v":0},879,{"$f":"AX223*141","v":123939},827,{"$f":"AZ223*343","v":283661},864,{"$f":"BB223*109","v":94176},83,{"$f":"BD223*82","v":6806},832,{"$f":"BF223*328","v":272896},81,{"$f":"BH223*410","v":33210},12,{"$f":"BJ223*219","v":2628},21974546.848325327,21974500]
["Kardašova Řečice",2221,546542,1,1,0,0,0,"Jihočeský kraj",546542,"Kardašova Řečice",545881,"Jindřichův Hradec",545881,"Jindřichův Hradec",545881,"Jindřichův Hradec",515264.33255072997,{"$f":"SUMIFS($B:$B,$J:$J,$C224)","v":3349},182032.05328174939,0,{"$f":"U224*768","v":0},42,{"$f":"W224*3072","v":129024},19,{"$f":"Y224*1024","v":19456},5,{"$f":"AA224*256","v":1280},null,null,null,null,null,null,null,null,null,null,null,null,null,null,null,2,{"$f":"AR224*30500","v":61000},null,null,null,null,null,null,null,null,null,null,null,null,null,null,null,null,null,null,908056.38583247934,908100]
["Katov",69,530042,1,0,0,0,0,"Jihočeský kraj",553239,"Tučapy",553131,"Soběslav",553131,"Soběslav",553131,"Soběslav",71941.662785630979,null,null,null,null,null,null,null,null,null,null,null,null,null,null,null,null,null,null,null,null,null,null,null,null,null,null,null,null,null,null,null,null,null,null,null,null,null,null,null,null,null,null,null,null,null,71941.662785630979,71900]
["Katovice",1331,551201,1,1,0,0,0,"Jihočeský kraj",551201,"Katovice",550787,"Strakonice",550787,"Strakonice",550787,"Strakonice",312420.59020168963,{"$f":"SUMIFS($B:$B,$J:$J,$C226)","v":3342},181652.64088175731,0,{"$f":"U226*768","v":0},14,{"$f":"W226*3072","v":43008},16,{"$f":"Y226*1024","v":16384},6,{"$f":"AA226*256","v":1536},null,null,null,null,null,null,null,null,null,null,null,null,null,null,null,null,null,null,null,null,null,null,null,null,null,null,null,null,null,null,null,null,null,null,null,555001.23108344688,555000]
["Kestřany",726,549487,1,0,0,0,0,"Jihočeský kraj",549240,"Písek",549240,"Písek",549240,"Písek",549240,"Písek",172227.07650310991,null,null,null,null,null,null,null,null,null,null,null,null,null,null,null,null,null,null,null,null,null,null,null,null,null,null,null,null,null,null,null,null,null,null,null,null,null,null,null,null,null,null,null,null,null,172227.07650310991,172200]
["Kladruby",130,560405,1,0,0,0,0,"Jihočeský kraj",551201,"Katovice",550787,"Strakonice",550787,"Strakonice",550787,"Strakonice",71941.662785630979,null,null,null,null,null,null,null,null,null,null,null,null,null,null,null,null,null,null,null,null,null,null,null,null,null,1,{"$f":"AR228*30500","v":30500},null,null,null,null,null,null,null,null,null,null,null,null,null,null,null,null,null,null,102441.66278563098,102400]
["Klec",155,562688,1,0,0,0,0,"Jihočeský kraj",546674,"Lomnice nad Lužnicí",547336,"Třeboň",547336,"Třeboň",547336,"Třeboň",71941.662785630979,null,null,null,null,null,null,null,null,null,null,null,null,null,null,null,null,null,null,null,null,null,null,null,null,null,null,null,null,null,null,null,null,null,null,null,null,null,null,null,null,null,null,null,null,null,71941.662785630979,71900]
["Klenovice",700,563986,1,0,0,0,0,"Jihočeský kraj",553131,"Soběslav",553131,"Soběslav",553131,"Soběslav",553131,"Soběslav",166149.53315991291,null,null,null,null,null,null,null,null,null,null,null,null,null,null,null,null,null,null,null,null,null,null,null,null,null,null,null,null,null,null,null,null,null,null,null,null,null,null,null,null,null,null,null,null,null,166149.53315991291,166100]
["Kluky",615,549495,1,0,0,0,0,"Jihočeský kraj",549240,"Písek",549240,"Písek",549240,"Písek",549240,"Písek",146245.3065976451,null,null,null,null,null,null,null,null,null,null,null,null,null,null,null,null,null,null,null,null,null,null,null,null,null,null,null,null,null,null,null,null,null,null,null,null,null,null,null,null,null,null,null,null,null,146245.3065976451,146200]
["Kocelovice",162,536601,1,0,0,0,0,"Jihočeský kraj",551350,"Lnáře",550850,"Blatná",550850,"Blatná",550850,"Blatná",71941.662785630979,null,null,null,null,null,null,null,null,null,null,null,null,null,null,null,null,null,null,null,null,null,null,null,null,null,null,null,null,null,null,null,null,null,null,null,null,null,null,null,null,null,null,null,null,null,71941.662785630979,71900]
["Komárov",128,599280,1,0,0,0,0,"Jihočeský kraj",553131,"Soběslav",553131,"Soběslav",553131,"Soběslav",553131,"Soběslav",71941.662785630979,null,null,null,null,null,null,null,null,null,null,null,null,null,null,null,null,null,null,null,null,null,null,null,null,null,null,null,null,null,null,null,null,null,null,null,null,null,null,null,null,null,null,null,null,null,71941.662785630979,71900]
["Komařice",366,535877,1,0,0,0,0,"Jihočeský kraj",544256,"České Budějovice",544256,"České Budějovice",544256,"České Budějovice",544256,"České Budějovice",87589.736754300058,null,null,null,null,null,null,null,null,null,null,null,null,null,null,null,null,null,null,null,null,null,null,null,null,null,null,null,null,null,null,null,null,null,null,null,null,null,null,null,null,null,null,null,null,null,87589.736754300058,87600]
["Kostelec nad Vltavou",394,549509,1,0,0,0,0,"Jihočeský kraj",549517,"Kovářov",549576,"Milevsko",549576,"Milevsko",549576,"Milevsko",94214.324140767538,null,null,null,null,null,null,null,null,null,null,null,null,null,null,null,null,null,null,null,null,null,null,null,null,null,null,null,null,null,null,null,null,null,null,null,null,null,null,null,null,null,null,null,null,null,94214.324140767538,94200]
["Kostelní Radouň",304,509108,1,0,0,0,0,"Jihočeský kraj",546801,"Nová Včelnice",545881,"Jindřichův Hradec",545881,"Jindřichův Hradec",545881,"Jindřichův Hradec",72891.411664068946,null,null,null,null,null,null,null,null,null,null,null,null,null,null,null,null,null,null,null,null,null,null,null,null,null,null,null,null,null,null,null,null,null,null,null,null,null,null,null,null,null,null,null,null,null,72891.411664068946,72900]
["Kostelní Vydří",156,508357,1,0,0,0,0,"Jihočeský kraj",546127,"Dačice",546127,"Dačice",546127,"Dačice",546127,"Dačice",71941.662785630979,null,null,null,null,null,null,null,null,null,null,null,null,null,null,null,null,null,null,null,null,null,null,null,null,null,null,null,null,null,null,null,null,null,null,null,null,null,null,null,null,null,null,null,null,null,71941.662785630979,71900]
["Košice",774,552585,1,0,0,0,0,"Jihočeský kraj",552828,"Planá nad Lužnicí",553069,"Sezimovo Ústí",553069,"Sezimovo Ústí",552046,"Tábor",183434.38573491591,null,null,null,null,null,null,null,null,null,null,null,null,null,null,null,null,null,null,null,null,null,null,null,null,null,null,null,null,null,null,null,null,null,null,null,null,null,null,null,null,null,null,null,null,null,183434.38573491591,183400]
["Košín",103,562955,1,0,0,0,0,"Jihočeský kraj",552461,"Chotoviny",552046,"Tábor",552046,"Tábor",552046,"Tábor",71941.662785630979,null,null,null,null,null,null,null,null,null,null,null,null,null,null,null,null,null,null,null,null,null,null,null,null,null,null,null,null,null,null,null,null,null,null,null,null,null,null,null,null,null,null,null,null,null,71941.662785630979,71900]
["Kovářov",1474,549517,1,1,0,0,0,"Jihočeský kraj",549517,"Kovářov",549576,"Milevsko",549576,"Milevsko",549576,"Milevsko",345257.59049970232,{"$f":"SUMIFS($B:$B,$J:$J,$C240)","v":2156},117317.76318254411,0,{"$f":"U240*768","v":0},8,{"$f":"W240*3072","v":24576},9,{"$f":"Y240*1024","v":9216},1,{"$f":"AA240*256","v":256},null,null,null,null,null,null,null,null,null,null,null,null,null,null,null,3,{"$f":"AR240*30500","v":91500},null,null,null,null,null,null,null,null,null,null,null,null,null,null,null,null,null,null,588123.35368224641,588100]
["Kožlí",52,561550,1,0,0,0,0,"Jihočeský kraj",549681,"Orlík nad Vltavou",549592,"Mirovice",549592,"Mirovice",549240,"Písek",71941.662785630979,null,null,null,null,null,null,null,null,null,null,null,null,null,null,null,null,null,null,null,null,null,null,null,null,null,null,null,null,null,null,null,null,null,null,null,null,null,null,null,null,null,null,null,null,null,71941.662785630979,71900]
["Krajníčko",96,536342,1,0,0,0,0,"Jihočeský kraj",550809,"Bavorov",551953,"Vodňany",551953,"Vodňany",551953,"Vodňany",71941.662785630979,null,null,null,null,null,null,null,null,null,null,null,null,null,null,null,null,null,null,null,null,null,null,null,null,null,null,null,null,null,null,null,null,null,null,null,null,null,null,null,null,null,null,null,null,null,71941.662785630979,71900]
["Králova Lhota",198,549525,1,0,0,0,0,"Jihočeský kraj",549681,"Orlík nad Vltavou",549592,"Mirovice",549592,"Mirovice",549240,"Písek",71941.662785630979,null,null,null,null,null,null,null,null,null,null,null,null,null,null,null,null,null,null,null,null,null,null,null,null,null,null,null,null,null,null,null,null,null,null,null,null,null,null,null,null,null,null,null,null,null,71941.662785630979,71900]
["Kraselov",235,551261,1,0,0,0,0,"Jihočeský kraj",550787,"Strakonice",550787,"Strakonice",550787,"Strakonice",550787,"Strakonice",71941.662785630979,null,null,null,null,null,null,null,null,null,null,null,null,null,null,null,null,null,null,null,null,null,null,null,null,null,null,null,null,null,null,null,null,null,null,null,null,null,null,null,null,null,null,null,null,null,71941.662785630979,71900]
["Krašlovice",163,536806,1,0,0,0,0,"Jihočeský kraj",551953,"Vodňany",551953,"Vodňany",551953,"Vodňany",551953,"Vodňany",71941.662785630979,null,null,null,null,null,null,null,null,null,null,null,null,null,null,null,null,null,null,null,null,null,null,null,null,null,null,null,null,null,null,null,null,null,null,null,null,null,null,null,null,null,null,null,null,null,71941.662785630979,71900]
["Krátošice",120,560634,1,0,0,0,0,"Jihočeský kraj",552470,"Choustník",552046,"Tábor",552046,"Tábor",552046,"Tábor",71941.662785630979,null,null,null,null,null,null,null,null,null,null,null,null,null,null,null,null,null,null,null,null,null,null,null,null,null,1,{"$f":"AR246*30500","v":30500},null,null,null,null,null,null,null,null,null,null,null,null,null,null,null,null,null,null,102441.66278563098,102400]
["Kratušín",44,537136,1,0,0,0,0,"Jihočeský kraj",550230,"Husinec",550094,"Prachatice",550094,"Prachatice",550094,"Prachatice",71941.662785630979,null,null,null,null,null,null,null,null,null,null,null,null,null,null,null,null,null,null,null,null,null,null,null,null,null,null,null,null,null,null,null,null,null,null,null,null,null,null,null,null,null,null,null,null,null,71941.662785630979,71900]
["Krejnice",72,536954,1,0,0,0,0,"Jihočeský kraj",551201,"Katovice",550787,"Strakonice",550787,"Strakonice",550787,"Strakonice",71941.662785630979,null,null,null,null,null,null,null,null,null,null,null,null,null,null,null,null,null,null,null,null,null,null,null,null,null,null,null,null,null,null,null,null,null,null,null,null,null,null,null,null,null,null,null,null,null,71941.662785630979,71900]
["Krtov",164,563030,1,0,0,0,0,"Jihočeský kraj",552470,"Choustník",552046,"Tábor",552046,"Tábor",552046,"Tábor",71941.662785630979,null,null,null,null,null,null,null,null,null,null,null,null,null,null,null,null,null,null,null,null,null,null,null,null,null,null,null,null,null,null,null,null,null,null,null,null,null,null,null,null,null,null,null,null,null,71941.662785630979,71900]
["Krty-Hradec",127,536555,1,0,0,0,0,"Jihočeský kraj",551201,"Katovice",550787,"Strakonice",550787,"Strakonice",550787,"Strakonice",71941.662785630979,null,null,null,null,null,null,null,null,null,null,null,null,null,null,null,null,null,null,null,null,null,null,null,null,null,null,null,null,null,null,null,null,null,null,null,null,null,null,null,null,null,null,null,null,null,71941.662785630979,71900]
["Křemže",2989,545571,1,1,1,0,0,"Jihočeský kraj",545571,"Křemže",545571,"Křemže",545392,"Český Krumlov",545392,"Český Krumlov",687769.06168732874,{"$f":"SUMIFS($B:$B,$J:$J,$C251)","v":4078},221527.492164205,0,{"$f":"U251*768","v":0},46,{"$f":"W251*3072","v":141312},15,{"$f":"Y251*1024","v":15360},12,{"$f":"AA251*256","v":3072},{"$f":"SUMIFS($B:$B,$L:$L,$C251)","v":5554},{"$f":"(koeficienty!$C$4/(koeficienty!$B$4 + SQRT(IF(AC251<300,0.3,AC251/1000)))) * (IF(AC251<300,0.3,AC251/1000))","v":693338.03802391549},null,null,null,null,null,null,null,null,null,null,null,null,null,null,null,null,null,null,null,null,null,null,null,null,null,null,null,null,null,null,null,null,null,1762378.5918754493,1762400]
["Křenovice",180,562181,1,0,0,0,0,"Jihočeský kraj",549240,"Písek",549266,"Bernartice",549240,"Písek",549240,"Písek",71941.662785630979,null,null,null,null,null,null,null,null,null,null,null,null,null,null,null,null,null,null,null,null,null,null,null,null,null,null,null,null,null,null,null,null,null,null,null,null,null,null,null,null,null,null,null,null,null,71941.662785630979,71900]
["Křišťanov",86,561673,1,0,0,0,0,"Jihočeský kraj",550671,"Volary",550671,"Volary",550671,"Volary",550094,"Prachatice",71941.662785630979,null,null,null,null,null,null,null,null,null,null,null,null,null,null,null,null,null,null,null,null,null,null,null,null,null,null,null,null,null,null,null,null,null,null,null,null,null,null,null,null,null,null,null,null,null,71941.662785630979,71900]
["Křižanov",94,509752,1,0,0,0,0,"Jihočeský kraj",549576,"Milevsko",549576,"Milevsko",549576,"Milevsko",549576,"Milevsko",71941.662785630979,null,null,null,null,null,null,null,null,null,null,null,null,null,null,null,null,null,null,null,null,null,null,null,null,null,null,null,null,null,null,null,null,null,null,null,null,null,null,null,null,null,null,null,null,null,71941.662785630979,71900]
["Ktiš",469,550329,1,0,0,0,0,"Jihočeský kraj",550361,"Lhenice",550094,"Prachatice",550094,"Prachatice",550094,"Prachatice",111920.79303741841,null,null,null,null,null,null,null,null,null,null,null,null,null,null,null,null,null,null,null,null,null,null,null,null,null,null,null,null,null,null,null,null,null,null,null,null,null,null,null,null,null,null,null,null,null,111920.79303741841,111900]
["Kubova Huť",96,563978,1,0,0,0,0,"Jihočeský kraj",550647,"Vimperk",550647,"Vimperk",550647,"Vimperk",550647,"Vimperk",71941.662785630979,null,null,null,null,null,null,null,null,null,null,null,null,null,null,null,null,null,null,null,null,null,null,null,null,null,null,null,null,null,null,null,null,null,null,null,null,null,null,null,null,null,null,null,null,null,71941.662785630979,71900]
["Kučeř",181,549541,1,0,0,0,0,"Jihočeský kraj",549576,"Milevsko",549576,"Milevsko",549576,"Milevsko",549576,"Milevsko",71941.662785630979,null,null,null,null,null,null,null,null,null,null,null,null,null,null,null,null,null,null,null,null,null,null,null,null,null,null,null,null,null,null,null,null,null,null,null,null,null,null,null,null,null,null,null,null,null,71941.662785630979,71900]
["Kunžak",1438,546615,1,1,0,0,0,"Jihočeský kraj",546615,"Kunžak",545881,"Jindřichův Hradec",545881,"Jindřichův Hradec",545881,"Jindřichův Hradec",337000.60063234152,{"$f":"SUMIFS($B:$B,$J:$J,$C258)","v":2486},135229.54196246751,0,{"$f":"U258*768","v":0},51,{"$f":"W258*3072","v":156672},9,{"$f":"Y258*1024","v":9216},2,{"$f":"AA258*256","v":512},null,null,null,null,null,null,null,null,null,null,null,null,null,null,null,null,null,null,null,null,null,null,null,null,null,null,null,null,null,null,null,null,null,null,null,638630.14259480906,638600]
["Kuřimany",47,560391,1,0,0,0,0,"Jihočeský kraj",550787,"Strakonice",550787,"Strakonice",550787,"Strakonice",550787,"Strakonice",71941.662785630979,null,null,null,null,null,null,null,null,null,null,null,null,null,null,null,null,null,null,null,null,null,null,null,null,null,null,null,null,null,null,null,null,null,null,null,null,null,null,null,null,null,null,null,null,null,71941.662785630979,71900]
["Kváskovice",119,536750,1,0,0,0,0,"Jihočeský kraj",550787,"Strakonice",550787,"Strakonice",550787,"Strakonice",550787,"Strakonice",71941.662785630979,null,null,null,null,null,null,null,null,null,null,null,null,null,null,null,null,null,null,null,null,null,null,null,null,null,null,null,null,null,null,null,null,null,null,null,null,null,null,null,null,null,null,null,null,null,{"$f":"SUMIF(R260:R260,\"<>\")+SUMIF(T260:T260,\"<>\")+SUMIF(V260:V260,\"<>\")+SUMIF(X260:X260,\"<>\")+SUMIF(Z260:Z260,\"<>\")+SUMIF(AB260:AB260,\"<>\")+SUMIF(AD260:AD260,\"<>\")+SUMIF(AF260:AF260,\"<>\")+SUMIF(AH260:AH260,\"<>\")+SUMIF(AJ260:AJ260,\"<>\")+SUMIF(AK260:AK260,\"<>\")+SUMIF(AM260:AM260,\"<>\")+SUMIF(AO260:AO260,\"<>\")+SUMIF(AQ260:AQ260,\"<>\")+SUMIF(AS260:AS260,\"<>\")+SUMIF(AU260:AU260,\"<>\")+SUMIF(AW260:AW260,\"<>\")+SUMIF(AY260:AY260,\"<>\")+SUMIF(BA260:BA260,\"<>\")+SUMIF(BC260:BC260,\"<>\")+SUMIF(BE260:BE260,\"<>\")+SUMIF(BG260:BG260,\"<>\")+SUMIF(BI260:BI260,\"<>\")+SUMIF(BK260:BK260,\"<>\")","v":71941.662785630979},{"$f":"ROUND(BL260/100,0)*100","v":71900}]
["Květov",119,598801,1,0,0,0,0,"Jihočeský kraj",549576,"Milevsko",549576,"Milevsko",549576,"Milevsko",549576,"Milevsko",71941.662785630979,null,null,null,null,null,null,null,null,null,null,null,null,null,null,null,null,null,null,null,null,null,null,null,null,null,null,null,null,null,null,null,null,null,null,null,null,null,null,null,null,null,null,null,null,null,71941.662785630979,71900]
["Kvilda",123,550337,1,0,0,0,0,"Jihočeský kraj",550647,"Vimperk",550647,"Vimperk",550647,"Vimperk",550647,"Vimperk",71941.662785630979,null,null,null,null,null,null,null,null,null,null,null,null,null,null,null,null,null,null,null,null,null,null,null,null,null,null,null,null,null,null,null,null,null,null,null,null,null,null,null,null,null,null,null,null,null,71941.662785630979,71900]
["Kvítkovice",137,529729,1,0,0,0,0,"Jihočeský kraj",544442,"Dubné",544256,"České Budějovice",544256,"České Budějovice",544256,"České Budějovice",71941.662785630979,null,null,null,null,null,null,null,null,null,null,null,null,null,null,null,null,null,null,null,null,null,null,null,null,null,null,null,null,null,null,null,null,null,null,null,null,null,null,null,null,null,null,null,null,null,71941.662785630979,71900]
["Lásenice",553,546623,1,0,0,0,0,"Jihočeský kraj",547221,"Stráž nad Nežárkou",545881,"Jindřichův Hradec",545881,"Jindřichův Hradec",545881,"Jindřichův Hradec",131691.11522199211,null,null,null,null,null,null,null,null,null,null,null,null,null,null,null,null,null,null,null,null,null,null,null,null,null,null,null,null,null,null,null,null,null,null,null,null,null,null,null,null,null,null,null,null,null,131691.11522199211,131700]
["Lažánky",112,598950,1,0,0,0,0,"Jihočeský kraj",550850,"Blatná",550850,"Blatná",550850,"Blatná",550850,"Blatná",71941.662785630979,null,null,null,null,null,null,null,null,null,null,null,null,null,null,null,null,null,null,null,null,null,null,null,null,null,null,null,null,null,null,null,null,null,null,null,null,null,null,null,null,null,null,null,null,null,71941.662785630979,71900]
["Lažany",55,560197,1,0,0,0,0,"Jihočeský kraj",550850,"Blatná",550850,"Blatná",550850,"Blatná",550850,"Blatná",71941.662785630979,null,null,null,null,null,null,null,null,null,null,null,null,null,null,null,null,null,null,null,null,null,null,null,null,null,null,null,null,null,null,null,null,null,null,null,null,null,null,null,null,null,null,null,null,null,71941.662785630979,71900]
["Lažiště",316,550345,1,0,0,0,0,"Jihočeský kraj",550230,"Husinec",550094,"Prachatice",550094,"Prachatice",550094,"Prachatice",75739.559989348942,null,null,null,null,null,null,null,null,null,null,null,null,null,null,null,null,null,null,null,null,null,null,null,null,null,null,null,null,null,null,null,null,null,null,null,null,null,null,null,null,null,null,null,null,null,75739.559989348942,75700]
["Lčovice",142,561649,1,0,0,0,0,"Jihočeský kraj",550167,"Čkyně",550647,"Vimperk",550647,"Vimperk",550647,"Vimperk",71941.662785630979,null,null,null,null,null,null,null,null,null,null,null,null,null,null,null,null,null,null,null,null,null,null,null,null,null,null,null,null,null,null,null,null,null,null,null,null,null,null,null,null,null,null,null,null,null,71941.662785630979,71900]
["Ledenice",2544,544736,1,1,1,0,0,"Jihočeský kraj",544736,"Ledenice",544736,"Ledenice",544256,"České Budějovice",544256,"České Budějovice",588072.28049861093,{"$f":"SUMIFS($B:$B,$J:$J,$C269)","v":2544},138376.7641725131,0,{"$f":"U269*768","v":0},7,{"$f":"W269*3072","v":21504},7,{"$f":"Y269*1024","v":7168},5,{"$f":"AA269*256","v":1280},{"$f":"SUMIFS($B:$B,$L:$L,$C269)","v":2544},{"$f":"(koeficienty!$C$4/(koeficienty!$B$4 + SQRT(IF(AC269<300,0.3,AC269/1000)))) * (IF(AC269<300,0.3,AC269/1000))","v":319532.92971373949},null,null,null,null,null,null,null,null,null,null,null,null,null,2,{"$f":"AR269*30500","v":61000},null,null,null,null,null,null,null,null,null,null,null,null,null,null,null,null,null,null,1136933.9743848636,1136900]
["Lenora",652,550353,1,0,0,0,0,"Jihočeský kraj",550671,"Volary",550671,"Volary",550671,"Volary",550094,"Prachatice",154916.28273401959,null,null,null,null,null,null,null,null,null,null,null,null,null,null,null,null,null,null,null,null,null,null,null,null,null,1,{"$f":"AR270*30500","v":30500},null,null,null,null,null,null,null,null,null,null,null,null,null,null,null,null,null,null,185416.28273401959,185400]
["Lety",289,549568,1,0,0,0,0,"Jihočeský kraj",549592,"Mirovice",549592,"Mirovice",549592,"Mirovice",549240,"Písek",71941.662785630979,null,null,null,null,null,null,null,null,null,null,null,null,null,null,null,null,null,null,null,null,null,null,null,null,null,null,null,null,null,null,null,null,null,null,null,null,null,null,null,null,null,null,null,null,null,71941.662785630979,71900]
["Lhenice",2052,550361,1,1,0,0,0,"Jihočeský kraj",550361,"Lhenice",550094,"Prachatice",550094,"Prachatice",550094,"Prachatice",477009.79000128282,{"$f":"SUMIFS($B:$B,$J:$J,$C272)","v":2874},156278.44756224539,0,{"$f":"U272*768","v":0},12,{"$f":"W272*3072","v":36864},15,{"$f":"Y272*1024","v":15360},4,{"$f":"AA272*256","v":1024},null,null,null,null,null,null,null,null,null,null,null,null,null,null,null,null,null,null,null,null,null,null,null,null,null,null,null,null,null,null,null,null,null,null,null,686536.23756352824,686500]
["Libějice",122,563544,1,0,0,0,0,"Jihočeský kraj",552666,"Malšice",552046,"Tábor",552046,"Tábor",552046,"Tábor",71941.662785630979,null,null,null,null,null,null,null,null,null,null,null,null,null,null,null,null,null,null,null,null,null,null,null,null,null,null,null,null,null,null,null,null,null,null,null,null,null,null,null,null,null,null,null,null,null,71941.662785630979,71900]
["Libějovice",485,551333,1,0,0,0,0,"Jihočeský kraj",551953,"Vodňany",551953,"Vodňany",551953,"Vodňany",551953,"Vodňany",115691.3628950569,null,null,null,null,null,null,null,null,null,null,null,null,null,null,null,null,null,null,null,null,null,null,null,null,null,null,null,null,null,null,null,null,null,null,null,null,null,null,null,null,null,null,null,null,null,115691.3628950569,115700]
["Libětice",84,536831,1,0,0,0,0,"Jihočeský kraj",550787,"Strakonice",550787,"Strakonice",550787,"Strakonice",550787,"Strakonice",71941.662785630979,null,null,null,null,null,null,null,null,null,null,null,null,null,null,null,null,null,null,null,null,null,null,null,null,null,null,null,null,null,null,null,null,null,null,null,null,null,null,null,null,null,null,null,null,null,71941.662785630979,71900]
["Libín",426,544744,1,0,0,0,0,"Jihočeský kraj",544779,"Lišov",544779,"Lišov",544779,"Lišov",544256,"České Budějovice",101775.673198697,null,null,null,null,null,null,null,null,null,null,null,null,null,null,null,null,null,null,null,null,null,null,null,null,null,null,null,null,null,null,null,null,null,null,null,null,null,null,null,null,null,null,null,null,null,101775.673198697,101800]
["Libníč",587,535800,1,0,0,0,0,"Jihočeský kraj",544981,"Rudolfov",544981,"Rudolfov",544256,"České Budějovice",544256,"České Budějovice",139676.31142309131,null,null,null,null,null,null,null,null,null,null,null,null,null,null,null,null,null,null,null,null,null,null,null,null,null,39,{"$f":"AR277*30500","v":1189500},null,null,null,null,null,null,null,null,null,null,null,null,null,null,null,null,null,null,1329176.3114230912,1329200]
["Lipí",676,544761,1,0,0,0,0,"Jihočeský kraj",544442,"Dubné",544256,"České Budějovice",544256,"České Budějovice",544256,"České Budějovice",160535.07165810751,null,null,null,null,null,null,null,null,null,null,null,null,null,null,null,null,null,null,null,null,null,null,null,null,null,null,null,null,null,null,null,null,null,null,null,null,null,null,null,null,null,null,null,null,null,160535.07165810751,160500]
["Lipno nad Vltavou",686,545597,1,0,0,0,0,"Jihočeský kraj",545481,"Frymburk",545848,"Vyšší Brod",545848,"Vyšší Brod",545392,"Český Krumlov",162874.95179529671,null,null,null,null,null,null,null,null,null,null,null,null,null,null,null,null,null,null,null,null,null,null,null,null,null,null,null,null,null,null,null,null,null,null,null,null,null,null,null,null,null,null,null,null,null,162874.95179529671,162900]
["Lipovice",219,537071,1,0,0,0,0,"Jihočeský kraj",550663,"Vlachovo Březí",550094,"Prachatice",550094,"Prachatice",550094,"Prachatice",71941.662785630979,null,null,null,null,null,null,null,null,null,null,null,null,null,null,null,null,null,null,null,null,null,null,null,null,null,null,null,null,null,null,null,null,null,null,null,null,null,null,null,null,null,null,null,null,null,71941.662785630979,71900]
["Lišov",4679,544779,1,1,1,1,0,"Jihočeský kraj",544779,"Lišov",544779,"Lišov",544779,"Lišov",544256,"České Budějovice",1060853.839424226,{"$f":"SUMIFS($B:$B,$J:$J,$C281)","v":6503},352685.73768592789,0,{"$f":"U281*768","v":0},27,{"$f":"W281*3072","v":82944},30,{"$f":"Y281*1024","v":30720},11,{"$f":"AA281*256","v":2816},{"$f":"SUMIFS($B:$B,$L:$L,$C281)","v":6503},{"$f":"(koeficienty!$C$4/(koeficienty!$B$4 + SQRT(IF(AC281<300,0.3,AC281/1000)))) * (IF(AC281<300,0.3,AC281/1000))","v":810550.81003545667},null,null,{"$f":"SUMIFS($B:$B,$N:$N,$C281)","v":6503},733632.1597711728,null,null,null,null,null,null,null,null,null,6,{"$f":"AR281*30500","v":183000},null,null,null,null,null,null,null,null,null,null,null,null,null,null,null,null,null,null,3257202.5469167833,3257200]
["Litochovice",292,551341,1,0,0,0,0,"Jihočeský kraj",551970,"Volyně",551970,"Volyně",551970,"Volyně",550787,"Strakonice",71941.662785630979,null,null,null,null,null,null,null,null,null,null,null,null,null,null,null,null,null,null,null,null,null,null,null,null,null,null,null,null,null,null,null,null,null,null,null,null,null,null,null,null,null,null,null,null,null,71941.662785630979,71900]
["Litvínovice",2793,544795,1,0,0,0,0,"Jihočeský kraj",544256,"České Budějovice",544256,"České Budějovice",544256,"České Budějovice",544256,"České Budějovice",643941.3832119276,null,null,null,null,null,null,null,null,null,null,null,null,null,null,null,null,null,null,null,null,null,null,null,null,null,null,null,null,null,null,null,null,null,null,null,null,null,null,null,null,null,null,null,null,null,643941.3832119276,643900]
["Lnáře",717,551350,1,1,0,0,0,"Jihočeský kraj",551350,"Lnáře",550850,"Blatná",550850,"Blatná",550850,"Blatná",170123.8693598854,{"$f":"SUMIFS($B:$B,$J:$J,$C284)","v":1470},80052.315464865751,0,{"$f":"U284*768","v":0},11,{"$f":"W284*3072","v":33792},7,{"$f":"Y284*1024","v":7168},3,{"$f":"AA284*256","v":768},null,null,null,null,null,null,null,null,null,null,null,null,null,null,null,1,{"$f":"AR284*30500","v":30500},null,null,null,null,null,null,null,null,null,null,null,null,null,null,null,null,null,null,322404.18482475117,322400]
["Ločenice",790,544809,1,0,0,0,0,"Jihočeský kraj",545171,"Trhové Sviny",545171,"Trhové Sviny",545171,"Trhové Sviny",545171,"Trhové Sviny",187166.55292346669,null,null,null,null,null,null,null,null,null,null,null,null,null,null,null,null,null,null,null,null,null,null,null,null,null,null,null,null,null,null,null,null,null,null,null,null,null,null,null,null,null,null,null,null,null,187166.55292346669,187200]
["Lodhéřov",712,546666,1,0,0,0,0,"Jihočeský kraj",545881,"Jindřichův Hradec",545881,"Jindřichův Hradec",545881,"Jindřichův Hradec",545881,"Jindřichův Hradec",168955.16648917369,null,null,null,null,null,null,null,null,null,null,null,null,null,null,null,null,null,null,null,null,null,null,null,null,null,null,null,null,null,null,null,null,null,null,null,null,null,null,null,null,null,null,null,null,null,168955.16648917369,169000]
["Lom",177,563587,1,0,0,0,0,"Jihočeský kraj",552666,"Malšice",552046,"Tábor",552046,"Tábor",552046,"Tábor",71941.662785630979,null,null,null,null,null,null,null,null,null,null,null,null,null,null,null,null,null,null,null,null,null,null,null,null,null,null,null,null,null,null,null,null,null,null,null,null,null,null,null,null,null,null,null,null,null,71941.662785630979,71900]
["Lom",112,536822,1,0,0,0,0,"Jihočeský kraj",551716,"Sedlice",550850,"Blatná",550850,"Blatná",550850,"Blatná",71941.662785630979,null,null,null,null,null,null,null,null,null,null,null,null,null,null,null,null,null,null,null,null,null,null,null,null,null,null,null,null,null,null,null,null,null,null,null,null,null,null,null,null,null,null,null,null,null,71941.662785630979,71900]
["Lomnice nad Lužnicí",1778,546674,1,1,0,0,0,"Jihočeský kraj",546674,"Lomnice nad Lužnicí",547336,"Třeboň",547336,"Třeboň",547336,"Třeboň",414737.74556672538,{"$f":"SUMIFS($B:$B,$J:$J,$C289)","v":3620},196718.2012466857,0,{"$f":"U289*768","v":0},23,{"$f":"W289*3072","v":70656},15,{"$f":"Y289*1024","v":15360},3,{"$f":"AA289*256","v":768},null,null,null,null,null,null,null,null,null,null,null,null,null,null,null,16,{"$f":"AR289*30500","v":488000},null,null,null,null,null,null,null,null,null,null,null,null,null,null,null,null,null,null,1186239.9468134111,1186200]
["Loučovice",1479,545601,1,1,0,0,0,"Jihočeský kraj",545601,"Loučovice",545848,"Vyšší Brod",545848,"Vyšší Brod",545392,"Český Krumlov",346403.88994790392,{"$f":"SUMIFS($B:$B,$J:$J,$C290)","v":1479},80541.514023483236,0,{"$f":"U290*768","v":0},1,{"$f":"W290*3072","v":3072},1,{"$f":"Y290*1024","v":1024},3,{"$f":"AA290*256","v":768},null,null,null,null,null,null,null,null,null,null,null,null,null,null,null,null,null,null,null,null,null,null,null,null,null,null,null,null,null,null,null,null,null,null,null,431809.40397138719,431800]
["Lužice",45,537322,1,0,0,0,0,"Jihočeský kraj",550442,"Netolice",550442,"Netolice",550442,"Netolice",550094,"Prachatice",71941.662785630979,null,null,null,null,null,null,null,null,null,null,null,null,null,null,null,null,null,null,null,null,null,null,null,null,null,null,null,null,null,null,null,null,null,null,null,null,null,null,null,null,null,null,null,null,null,71941.662785630979,71900]
["Lužnice",429,508501,1,0,0,0,0,"Jihočeský kraj",546674,"Lomnice nad Lužnicí",547336,"Třeboň",547336,"Třeboň",547336,"Třeboň",102484.03858091991,null,null,null,null,null,null,null,null,null,null,null,null,null,null,null,null,null,null,null,null,null,null,null,null,null,1,{"$f":"AR292*30500","v":30500},null,null,null,null,null,null,null,null,null,null,null,null,null,null,null,null,null,null,132984.03858091991,133000]
["Mačkov",300,536466,1,0,0,0,0,"Jihočeský kraj",550850,"Blatná",550850,"Blatná",550850,"Blatná",550850,"Blatná",71941.662785630979,null,null,null,null,null,null,null,null,null,null,null,null,null,null,null,null,null,null,null,null,null,null,null,null,null,37,{"$f":"AR293*30500","v":1128500},null,null,null,null,null,null,null,null,null,null,null,null,null,null,null,null,null,null,1200441.6627856309,1200400]
["Mahouš",154,537381,1,0,0,0,0,"Jihočeský kraj",550442,"Netolice",550442,"Netolice",550442,"Netolice",550094,"Prachatice",71941.662785630979,null,null,null,null,null,null,null,null,null,null,null,null,null,null,null,null,null,null,null,null,null,null,null,null,null,null,null,null,null,null,null,null,null,null,null,null,null,null,null,null,null,null,null,null,null,71941.662785630979,71900]
["Majdalena",482,546712,1,0,0,0,0,"Jihočeský kraj",546461,"Chlum u Třeboně",547336,"Třeboň",547336,"Třeboň",547336,"Třeboň",114984.5572883627,null,null,null,null,null,null,null,null,null,null,null,null,null,null,null,null,null,null,null,null,null,null,null,null,null,null,null,null,null,null,null,null,null,null,null,null,null,null,null,null,null,null,null,null,null,114984.5572883627,115000]
["Malenice",729,551384,1,0,0,0,0,"Jihočeský kraj",551970,"Volyně",551970,"Volyně",551970,"Volyně",550787,"Strakonice",172928.01524103561,null,null,null,null,null,null,null,null,null,null,null,null,null,null,null,null,null,null,null,null,null,null,null,null,null,null,null,null,null,null,null,null,null,null,null,null,null,null,null,null,null,null,null,null,null,172928.01524103561,172900]
["Malonty",1461,545619,1,1,0,0,0,"Jihočeský kraj",545619,"Malonty",545562,"Kaplice",545562,"Kaplice",545562,"Kaplice",342276.63751693408,{"$f":"SUMIFS($B:$B,$J:$J,$C297)","v":1461},79563.108537985841,0,{"$f":"U297*768","v":0},7,{"$f":"W297*3072","v":21504},3,{"$f":"Y297*1024","v":3072},4,{"$f":"AA297*256","v":1024},null,null,null,null,null,null,null,null,null,null,null,null,null,null,null,null,null,null,null,null,null,null,null,null,null,null,null,null,null,null,null,null,null,null,null,447439.7460549199,447400]
["Malovice",698,550418,1,0,0,0,0,"Jihočeský kraj",550442,"Netolice",550442,"Netolice",550442,"Netolice",550094,"Prachatice",165681.82465610129,null,null,null,null,null,null,null,null,null,null,null,null,null,null,null,null,null,null,null,null,null,null,null,null,null,null,null,null,null,null,null,null,null,null,null,null,null,null,null,null,null,null,null,null,null,165681.82465610129,165700]
["Malšice",1893,552666,1,1,0,0,0,"Jihočeský kraj",552666,"Malšice",552046,"Tábor",552046,"Tábor",552046,"Tábor",440912.6484646562,{"$f":"SUMIFS($B:$B,$J:$J,$C299)","v":3399},184742.04501859931,0,{"$f":"U299*768","v":0},18,{"$f":"W299*3072","v":55296},7,{"$f":"Y299*1024","v":7168},1,{"$f":"AA299*256","v":256},null,null,null,null,null,null,null,null,null,null,null,null,null,null,null,null,null,null,null,null,null,null,null,null,null,null,null,null,null,null,null,null,null,null,null,688374.69348325557,688400]
["Malšín",168,536296,1,0,0,0,0,"Jihočeský kraj",545848,"Vyšší Brod",545848,"Vyšší Brod",545848,"Vyšší Brod",545392,"Český Krumlov",71941.662785630979,null,null,null,null,null,null,null,null,null,null,null,null,null,null,null,null,null,null,null,null,null,null,null,null,null,null,null,null,null,null,null,null,null,null,null,null,null,null,null,null,null,null,null,null,null,71941.662785630979,71900]
["Mazelov",231,535940,1,0,0,0,0,"Jihočeský kraj",545121,"Ševětín",544256,"České Budějovice",544256,"České Budějovice",544256,"České Budějovice",71941.662785630979,null,null,null,null,null,null,null,null,null,null,null,null,null,null,null,null,null,null,null,null,null,null,null,null,null,null,null,null,null,null,null,null,null,null,null,null,null,null,null,null,null,null,null,null,null,71941.662785630979,71900]
["Mažice",141,562866,1,0,0,0,0,"Jihočeský kraj",553271,"Veselí nad Lužnicí",553271,"Veselí nad Lužnicí",553271,"Veselí nad Lužnicí",553131,"Soběslav",71941.662785630979,null,null,null,null,null,null,null,null,null,null,null,null,null,null,null,null,null,null,null,null,null,null,null,null,null,null,null,null,null,null,null,null,null,null,null,null,null,null,null,null,null,null,null,null,null,71941.662785630979,71900]
["Mečichov",285,551392,1,0,0,0,0,"Jihočeský kraj",551791,"Střelské Hoštice",550787,"Strakonice",550787,"Strakonice",550787,"Strakonice",71941.662785630979,null,null,null,null,null,null,null,null,null,null,null,null,null,null,null,null,null,null,null,null,null,null,null,null,null,null,null,null,null,null,null,null,null,null,null,null,null,null,null,null,null,null,null,null,null,71941.662785630979,71900]
["Měkynec",51,536415,1,0,0,0,0,"Jihočeský kraj",550809,"Bavorov",551953,"Vodňany",551953,"Vodňany",551953,"Vodňany",71941.662785630979,null,null,null,null,null,null,null,null,null,null,null,null,null,null,null,null,null,null,null,null,null,null,null,null,null,null,null,null,null,null,null,null,null,null,null,null,null,null,null,null,null,null,null,null,null,71941.662785630979,71900]
["Meziříčí",183,563234,1,0,0,0,0,"Jihočeský kraj",552046,"Tábor",552046,"Tábor",552046,"Tábor",552046,"Tábor",71941.662785630979,null,null,null,null,null,null,null,null,null,null,null,null,null,null,null,null,null,null,null,null,null,null,null,null,null,null,null,null,null,null,null,null,null,null,null,null,null,null,null,null,null,null,null,null,null,71941.662785630979,71900]
["Mezná",112,599255,1,0,0,0,0,"Jihočeský kraj",553131,"Soběslav",553131,"Soběslav",553131,"Soběslav",553131,"Soběslav",71941.662785630979,null,null,null,null,null,null,null,null,null,null,null,null,null,null,null,null,null,null,null,null,null,null,null,null,null,null,null,null,null,null,null,null,null,null,null,null,null,null,null,null,null,null,null,null,null,71941.662785630979,71900]
["Mičovice",353,550426,1,0,0,0,0,"Jihočeský kraj",550361,"Lhenice",550094,"Prachatice",550094,"Prachatice",550094,"Prachatice",84511.27751876309,null,null,null,null,null,null,null,null,null,null,null,null,null,null,null,null,null,null,null,null,null,null,null,null,null,null,null,null,null,null,null,null,null,null,null,null,null,null,null,null,null,null,null,null,null,84511.27751876309,84500]
["Milejovice",68,536539,1,0,0,0,0,"Jihočeský kraj",551970,"Volyně",551970,"Volyně",551970,"Volyně",550787,"Strakonice",71941.662785630979,null,null,null,null,null,null,null,null,null,null,null,null,null,null,null,null,null,null,null,null,null,null,null,null,null,null,null,null,null,null,null,null,null,null,null,null,null,null,null,null,null,null,null,null,null,71941.662785630979,71900]
["Milevsko",7950,549576,1,1,1,1,1,"Jihočeský kraj",549576,"Milevsko",549576,"Milevsko",549576,"Milevsko",549576,"Milevsko",373788.18024509388,{"$f":"SUMIFS($B:$B,$J:$J,$C309)","v":10997},242274.33137064919,0,{"$f":"U309*768","v":0},61,{"$f":"W309*3072","v":187392},84,{"$f":"Y309*1024","v":86016},39,{"$f":"AA309*256","v":9984},{"$f":"SUMIFS($B:$B,$L:$L,$C309)","v":16064},1053322.303882506,{"$f":"SUMIFS($B:$B,$P:$P,$C309)","v":18063},1113268.936037082,{"$f":"SUMIFS($B:$B,$N:$N,$C309)","v":18063},3190277.1430673422,{"$f":"SUMIFS($B:$B,$P:$P,$C309)","v":18063},11946236.013730191,null,2392,{"$f":"AL309*141","v":337272},null,null,null,null,3,{"$f":"AR309*30500","v":91500},156,{"$f":"AT309*2742","v":427752},1,{"$f":"AV309*914","v":914},946,{"$f":"AX309*141","v":133386},725,{"$f":"AZ309*343","v":248675},214,{"$f":"BB309*109","v":23326},27,{"$f":"BD309*82","v":2214},216,{"$f":"BF309*328","v":70848},27,{"$f":"BH309*410","v":11070},2,{"$f":"BJ309*219","v":438},19549953.908332862,19550000]
["Miloňovice",255,551414,1,0,0,0,0,"Jihočeský kraj",550787,"Strakonice",550787,"Strakonice",550787,"Strakonice",550787,"Strakonice",71941.662785630979,null,null,null,null,null,null,null,null,null,null,null,null,null,null,null,null,null,null,null,null,null,null,null,null,null,null,null,null,null,null,null,null,null,null,null,null,null,null,null,null,null,null,null,null,null,71941.662785630979,71900]
["Minice",28,562149,1,0,0,0,0,"Jihočeský kraj",549592,"Mirovice",549592,"Mirovice",549592,"Mirovice",549240,"Písek",71941.662785630979,null,null,null,null,null,null,null,null,null,null,null,null,null,null,null,null,null,null,null,null,null,null,null,null,null,null,null,null,null,null,null,null,null,null,null,null,null,null,null,null,null,null,null,null,null,71941.662785630979,71900]
["Mirkovice",517,545627,1,0,0,0,0,"Jihočeský kraj",545392,"Český Krumlov",545392,"Český Krumlov",545392,"Český Krumlov",545392,"Český Krumlov",123225.6489206377,null,null,null,null,null,null,null,null,null,null,null,null,null,null,null,null,null,null,null,null,null,null,null,null,null,null,null,null,null,null,null,null,null,null,null,null,null,null,null,null,null,null,null,null,null,123225.6489206377,123200]
["Mirotice",1232,549584,1,1,1,1,0,"Jihočeský kraj",549584,"Mirotice",549584,"Mirotice",549584,"Mirotice",549240,"Písek",289625.44824405579,{"$f":"SUMIFS($B:$B,$J:$J,$C313)","v":1960},106674.9052786956,0,{"$f":"U313*768","v":0},15,{"$f":"W313*3072","v":46080},5,{"$f":"Y313*1024","v":5120},1,{"$f":"AA313*256","v":256},{"$f":"SUMIFS($B:$B,$L:$L,$C313)","v":3289},{"$f":"(koeficienty!$C$4/(koeficienty!$B$4 + SQRT(IF(AC313<300,0.3,AC313/1000)))) * (IF(AC313<300,0.3,AC313/1000))","v":412380.02780333324},null,null,{"$f":"SUMIFS($B:$B,$N:$N,$C313)","v":3289},372552.73248704372,null,null,null,null,null,null,null,null,null,2,{"$f":"AR313*30500","v":61000},null,null,null,null,null,null,null,null,null,null,null,null,null,null,null,null,null,null,1293689.1138131283,1293700]
["Mirovice",1623,549592,1,1,1,1,0,"Jihočeský kraj",549592,"Mirovice",549592,"Mirovice",549592,"Mirovice",549240,"Písek",379365.67983341339,{"$f":"SUMIFS($B:$B,$J:$J,$C314)","v":2563},139407.69334205709,1,{"$f":"U314*768","v":768},3,{"$f":"W314*3072","v":9216},12,{"$f":"Y314*1024","v":12288},3,{"$f":"AA314*256","v":768},{"$f":"SUMIFS($B:$B,$L:$L,$C314)","v":3324},{"$f":"(koeficienty!$C$4/(koeficienty!$B$4 + SQRT(IF(AC314<300,0.3,AC314/1000)))) * (IF(AC314<300,0.3,AC314/1000))","v":416736.09894522844},null,null,{"$f":"SUMIFS($B:$B,$N:$N,$C314)","v":3324},376497.29570811812,null,null,null,null,null,null,null,null,null,5,{"$f":"AR314*30500","v":152500},null,null,null,null,null,null,null,null,null,null,null,null,null,null,null,null,null,null,1487546.767828817,1487500]
["Mišovice",261,549606,1,0,0,0,0,"Jihočeský kraj",549592,"Mirovice",549592,"Mirovice",549592,"Mirovice",549240,"Písek",71941.662785630979,null,null,null,null,null,null,null,null,null,null,null,null,null,null,null,null,null,null,null,null,null,null,null,null,null,null,null,null,null,null,null,null,null,null,null,null,null,null,null,null,null,null,null,null,null,71941.662785630979,71900]
["Mladá Vožice",2705,552704,1,1,1,1,0,"Jihočeský kraj",552704,"Mladá Vožice",552704,"Mladá Vožice",552704,"Mladá Vožice",552046,"Tábor",624221.26400277053,{"$f":"SUMIFS($B:$B,$J:$J,$C316)","v":4775},259258.52561780749,0,{"$f":"U316*768","v":0},27,{"$f":"W316*3072","v":82944},20,{"$f":"Y316*1024","v":20480},10,{"$f":"AA316*256","v":2560},{"$f":"SUMIFS($B:$B,$L:$L,$C316)","v":5180},{"$f":"(koeficienty!$C$4/(koeficienty!$B$4 + SQRT(IF(AC316<300,0.3,AC316/1000)))) * (IF(AC316<300,0.3,AC316/1000))","v":647068.11844457907},null,null,{"$f":"SUMIFS($B:$B,$N:$N,$C316)","v":4672},528195.61566611845,null,null,null,null,null,null,null,null,null,null,null,null,null,null,null,null,null,null,null,null,null,null,null,null,null,null,null,null,null,2164727.5237312755,2164700]
["Mladošovice",420,544817,1,0,0,0,0,"Jihočeský kraj",544281,"Borovany",544281,"Borovany",545171,"Trhové Sviny",545171,"Trhové Sviny",100358.68248115919,null,null,null,null,null,null,null,null,null,null,null,null,null,null,null,null,null,null,null,null,null,null,null,null,null,1,{"$f":"AR317*30500","v":30500},null,null,null,null,null,null,null,null,null,null,null,null,null,null,null,null,null,null,130858.68248115919,130900]
["Mlýny",120,552712,1,0,0,0,0,"Jihočeský kraj",552470,"Choustník",552046,"Tábor",552046,"Tábor",552046,"Tábor",71941.662785630979,null,null,null,null,null,null,null,null,null,null,null,null,null,null,null,null,null,null,null,null,null,null,null,null,null,null,null,null,null,null,null,null,null,null,null,null,null,null,null,null,null,null,null,null,null,71941.662785630979,71900]
["Mnichov",251,536563,1,0,0,0,0,"Jihočeský kraj",551201,"Katovice",550787,"Strakonice",550787,"Strakonice",550787,"Strakonice",71941.662785630979,null,null,null,null,null,null,null,null,null,null,null,null,null,null,null,null,null,null,null,null,null,null,null,null,null,null,null,null,null,null,null,null,null,null,null,null,null,null,null,null,null,null,null,null,null,71941.662785630979,71900]
["Modrá Hůrka",102,598615,1,0,0,0,0,"Jihočeský kraj",545201,"Týn nad Vltavou",545201,"Týn nad Vltavou",545201,"Týn nad Vltavou",545201,"Týn nad Vltavou",71941.662785630979,null,null,null,null,null,null,null,null,null,null,null,null,null,null,null,null,null,null,null,null,null,null,null,null,null,null,null,null,null,null,null,null,null,null,null,null,null,null,null,null,null,null,null,null,null,71941.662785630979,71900]
["Mojné",308,598623,1,0,0,0,0,"Jihočeský kraj",545392,"Český Krumlov",545392,"Český Krumlov",545392,"Český Krumlov",545392,"Český Krumlov",73840.976654356375,null,null,null,null,null,null,null,null,null,null,null,null,null,null,null,null,null,null,null,null,null,null,null,null,null,1,{"$f":"AR321*30500","v":30500},null,null,null,null,null,null,null,null,null,null,null,null,null,null,null,null,null,null,104340.97665435637,104300]
["Mokrý Lom",108,535842,1,0,0,0,0,"Jihočeský kraj",544663,"Kamenný Újezd",544256,"České Budějovice",544256,"České Budějovice",544256,"České Budějovice",71941.662785630979,null,null,null,null,null,null,null,null,null,null,null,null,null,null,null,null,null,null,null,null,null,null,null,null,null,null,null,null,null,null,null,null,null,null,null,null,null,null,null,null,null,null,null,null,null,71941.662785630979,71900]
["Mutěnice",279,560278,1,0,0,0,0,"Jihočeský kraj",550787,"Strakonice",550787,"Strakonice",550787,"Strakonice",550787,"Strakonice",71941.662785630979,null,null,null,null,null,null,null,null,null,null,null,null,null,null,null,null,null,null,null,null,null,null,null,null,null,null,null,null,null,null,null,null,null,null,null,null,null,null,null,null,null,null,null,null,null,71941.662785630979,71900]
["Mydlovary",301,535281,1,0,0,0,0,"Jihočeský kraj",545341,"Zliv",545341,"Zliv",545341,"Zliv",544256,"České Budějovice",72179.117314643285,null,null,null,null,null,null,null,null,null,null,null,null,null,null,null,null,null,null,null,null,null,null,null,null,null,null,null,null,null,null,null,null,null,null,null,null,null,null,null,null,null,null,null,null,null,{"$f":"SUMIF(R324:R324,\"<>\")+SUMIF(T324:T324,\"<>\")+SUMIF(V324:V324,\"<>\")+SUMIF(X324:X324,\"<>\")+SUMIF(Z324:Z324,\"<>\")+SUMIF(AB324:AB324,\"<>\")+SUMIF(AD324:AD324,\"<>\")+SUMIF(AF324:AF324,\"<>\")+SUMIF(AH324:AH324,\"<>\")+SUMIF(AJ324:AJ324,\"<>\")+SUMIF(AK324:AK324,\"<>\")+SUMIF(AM324:AM324,\"<>\")+SUMIF(AO324:AO324,\"<>\")+SUMIF(AQ324:AQ324,\"<>\")+SUMIF(AS324:AS324,\"<>\")+SUMIF(AU324:AU324,\"<>\")+SUMIF(AW324:AW324,\"<>\")+SUMIF(AY324:AY324,\"<>\")+SUMIF(BA324:BA324,\"<>\")+SUMIF(BC324:BC324,\"<>\")+SUMIF(BE324:BE324,\"<>\")+SUMIF(BG324:BG324,\"<>\")+SUMIF(BI324:BI324,\"<>\")+SUMIF(BK324:BK324,\"<>\")","v":72179.117314643285},{"$f":"ROUND(BL324/100,0)*100","v":72200}]
["Myslín",95,549614,1,0,0,0,0,"Jihočeský kraj",549592,"Mirovice",549592,"Mirovice",549592,"Mirovice",549240,"Písek",71941.662785630979,null,null,null,null,null,null,null,null,null,null,null,null,null,null,null,null,null,null,null,null,null,null,null,null,null,null,null,null,null,null,null,null,null,null,null,null,null,null,null,null,null,null,null,null,null,71941.662785630979,71900]
["Myslkovice",441,552721,1,0,0,0,0,"Jihočeský kraj",553131,"Soběslav",553131,"Soběslav",553131,"Soběslav",553131,"Soběslav",105316.6410709083,null,null,null,null,null,null,null,null,null,null,null,null,null,null,null,null,null,null,null,null,null,null,null,null,null,null,null,null,null,null,null,null,null,null,null,null,null,null,null,null,null,null,null,null,null,105316.6410709083,105300]
["Myštice",264,551473,1,0,0,0,0,"Jihočeský kraj",550850,"Blatná",550850,"Blatná",550850,"Blatná",550850,"Blatná",71941.662785630979,null,null,null,null,null,null,null,null,null,null,null,null,null,null,null,null,null,null,null,null,null,null,null,null,null,null,null,null,null,null,null,null,null,null,null,null,null,null,null,null,null,null,null,null,null,71941.662785630979,71900]
["Nadějkov",728,549631,1,1,0,0,0,"Jihočeský kraj",549631,"Nadějkov",552534,"Jistebnice",552046,"Tábor",552046,"Tábor",172694.3762147378,{"$f":"SUMIFS($B:$B,$J:$J,$C328)","v":728},39688.787351408471,0,{"$f":"U328*768","v":0},1,{"$f":"W328*3072","v":3072},3,{"$f":"Y328*1024","v":3072},0,{"$f":"AA328*256","v":0},null,null,null,null,null,null,null,null,null,null,null,null,null,null,null,null,null,null,null,null,null,null,null,null,null,null,null,null,null,null,null,null,null,null,null,218527.16356614628,218500]
["Nákří",226,535371,1,0,0,0,0,"Jihočeský kraj",544426,"Dříteň",544485,"Hluboká nad Vltavou",544485,"Hluboká nad Vltavou",544256,"České Budějovice",71941.662785630979,null,null,null,null,null,null,null,null,null,null,null,null,null,null,null,null,null,null,null,null,null,null,null,null,null,null,null,null,null,null,null,null,null,null,null,null,null,null,null,null,null,null,null,null,null,71941.662785630979,71900]
["Nasavrky",92,559016,1,0,0,0,0,"Jihočeský kraj",552046,"Tábor",552046,"Tábor",552046,"Tábor",552046,"Tábor",71941.662785630979,null,null,null,null,null,null,null,null,null,null,null,null,null,null,null,null,null,null,null,null,null,null,null,null,null,null,null,null,null,null,null,null,null,null,null,null,null,null,null,null,null,null,null,null,null,71941.662785630979,71900]
["Nebahovy",630,550434,1,0,0,0,0,"Jihočeský kraj",550094,"Prachatice",550094,"Prachatice",550094,"Prachatice",550094,"Prachatice",149761.8521337485,null,null,null,null,null,null,null,null,null,null,null,null,null,null,null,null,null,null,null,null,null,null,null,null,null,null,null,null,null,null,null,null,null,null,null,null,null,null,null,null,null,null,null,null,null,149761.8521337485,149800]
["Nebřehovice",176,536644,1,0,0,0,0,"Jihočeský kraj",550787,"Strakonice",550787,"Strakonice",550787,"Strakonice",550787,"Strakonice",71941.662785630979,null,null,null,null,null,null,null,null,null,null,null,null,null,null,null,null,null,null,null,null,null,null,null,null,null,null,null,null,null,null,null,null,null,null,null,null,null,null,null,null,null,null,null,null,null,71941.662785630979,71900]
["Nedabyle",378,544825,1,0,0,0,0,"Jihočeský kraj",544256,"České Budějovice",544256,"České Budějovice",544256,"České Budějovice",544256,"České Budějovice",90429.827392837396,null,null,null,null,null,null,null,null,null,null,null,null,null,null,null,null,null,null,null,null,null,null,null,null,null,null,null,null,null,null,null,null,null,null,null,null,null,null,null,null,null,null,null,null,null,90429.827392837396,90400]
["Němčice",180,550396,1,0,0,0,0,"Jihočeský kraj",550442,"Netolice",550442,"Netolice",550442,"Netolice",550094,"Prachatice",71941.662785630979,null,null,null,null,null,null,null,null,null,null,null,null,null,null,null,null,null,null,null,null,null,null,null,null,null,null,null,null,null,null,null,null,null,null,null,null,null,null,null,null,null,null,null,null,null,71941.662785630979,71900]
["Němčice",109,536474,1,0,0,0,0,"Jihočeský kraj",550957,"Čestice",551970,"Volyně",551970,"Volyně",550787,"Strakonice",71941.662785630979,null,null,null,null,null,null,null,null,null,null,null,null,null,null,null,null,null,null,null,null,null,null,null,null,null,null,null,null,null,null,null,null,null,null,null,null,null,null,null,null,null,null,null,null,null,71941.662785630979,71900]
["Němětice",125,536725,1,0,0,0,0,"Jihočeský kraj",551970,"Volyně",551970,"Volyně",551970,"Volyně",550787,"Strakonice",71941.662785630979,null,null,null,null,null,null,null,null,null,null,null,null,null,null,null,null,null,null,null,null,null,null,null,null,null,null,null,null,null,null,null,null,null,null,null,null,null,null,null,null,null,null,null,null,null,71941.662785630979,71900]
["Nemyšl",319,552747,1,0,0,0,0,"Jihočeský kraj",552461,"Chotoviny",552046,"Tábor",552046,"Tábor",552046,"Tábor",76451.342411092905,null,null,null,null,null,null,null,null,null,null,null,null,null,null,null,null,null,null,null,null,null,null,null,null,null,null,null,null,null,null,null,null,null,null,null,null,null,null,null,null,null,null,null,null,null,76451.342411092905,76500]
["Neplachov",367,535435,1,0,0,0,0,"Jihočeský kraj",545121,"Ševětín",544256,"České Budějovice",544256,"České Budějovice",544256,"České Budějovice",87826.467935868568,null,null,null,null,null,null,null,null,null,null,null,null,null,null,null,null,null,null,null,null,null,null,null,null,null,null,null,null,null,null,null,null,null,null,null,null,null,null,null,null,null,null,null,null,null,87826.467935868568,87800]
["Nerestce",105,562157,1,0,0,0,0,"Jihočeský kraj",549592,"Mirovice",549592,"Mirovice",549592,"Mirovice",549240,"Písek",71941.662785630979,null,null,null,null,null,null,null,null,null,null,null,null,null,null,null,null,null,null,null,null,null,null,null,null,null,null,null,null,null,null,null,null,null,null,null,null,null,null,null,null,null,null,null,null,null,71941.662785630979,71900]
["Netolice",2467,550442,1,1,1,1,0,"Jihočeský kraj",550442,"Netolice",550442,"Netolice",550442,"Netolice",550094,"Prachatice",570750.80742994568,{"$f":"SUMIFS($B:$B,$J:$J,$C340)","v":3934},213728.6206911419,0,{"$f":"U340*768","v":0},19,{"$f":"W340*3072","v":58368},18,{"$f":"Y340*1024","v":18432},9,{"$f":"AA340*256","v":2304},{"$f":"SUMIFS($B:$B,$L:$L,$C340)","v":3934},{"$f":"(koeficienty!$C$4/(koeficienty!$B$4 + SQRT(IF(AC340<300,0.3,AC340/1000)))) * (IF(AC340<300,0.3,AC340/1000))","v":492577.59978370514},null,null,{"$f":"SUMIFS($B:$B,$N:$N,$C340)","v":3934},445196.6142640491,null,null,null,null,null,null,null,null,null,3,{"$f":"AR340*30500","v":91500},null,null,null,null,null,null,null,null,null,null,null,null,null,null,null,null,null,null,1892857.6421688418,1892900]
["Netřebice",460,545643,1,0,0,0,0,"Jihočeský kraj",545821,"Velešín",545562,"Kaplice",545562,"Kaplice",545562,"Kaplice",109798.82229147109,null,null,null,null,null,null,null,null,null,null,null,null,null,null,null,null,null,null,null,null,null,null,null,null,null,null,null,null,null,null,null,null,null,null,null,null,null,null,null,null,null,null,null,null,null,109798.82229147109,109800]
["Nevězice",134,549657,1,0,0,0,0,"Jihočeský kraj",549681,"Orlík nad Vltavou",549592,"Mirovice",549592,"Mirovice",549240,"Písek",71941.662785630979,null,null,null,null,null,null,null,null,null,null,null,null,null,null,null,null,null,null,null,null,null,null,null,null,null,null,null,null,null,null,null,null,null,null,null,null,null,null,null,null,null,null,null,null,null,71941.662785630979,71900]
["Nicov",85,529893,1,0,0,0,0,"Jihočeský kraj",550515,"Stachy",550647,"Vimperk",550647,"Vimperk",550647,"Vimperk",71941.662785630979,null,null,null,null,null,null,null,null,null,null,null,null,null,null,null,null,null,null,null,null,null,null,null,null,null,null,null,null,null,null,null,null,null,null,null,null,null,null,null,null,null,null,null,null,null,71941.662785630979,71900]
["Nihošovice",310,551520,1,0,0,0,0,"Jihočeský kraj",551970,"Volyně",551970,"Volyně",551970,"Volyně",550787,"Strakonice",74315.690586406286,null,null,null,null,null,null,null,null,null,null,null,null,null,null,null,null,null,null,null,null,null,null,null,null,null,null,null,null,null,null,null,null,null,null,null,null,null,null,null,null,null,null,null,null,null,74315.690586406286,74300]
["Nišovice",252,536962,1,0,0,0,0,"Jihočeský kraj",551970,"Volyně",551970,"Volyně",551970,"Volyně",550787,"Strakonice",71941.662785630979,null,null,null,null,null,null,null,null,null,null,null,null,null,null,null,null,null,null,null,null,null,null,null,null,null,null,null,null,null,null,null,null,null,null,null,null,null,null,null,null,null,null,null,null,null,71941.662785630979,71900]
["Nová Bystřice",3199,546798,1,1,1,1,0,"Jihočeský kraj",546798,"Nová Bystřice",546798,"Nová Bystřice",546798,"Nová Bystřice",545881,"Jindřichův Hradec",734587.31769641943,{"$f":"SUMIFS($B:$B,$J:$J,$C346)","v":4352},236363.50112978261,0,{"$f":"U346*768","v":0},26,{"$f":"W346*3072","v":79872},27,{"$f":"Y346*1024","v":27648},11,{"$f":"AA346*256","v":2816},{"$f":"SUMIFS($B:$B,$L:$L,$C346)","v":4352},{"$f":"(koeficienty!$C$4/(koeficienty!$B$4 + SQRT(IF(AC346<300,0.3,AC346/1000)))) * (IF(AC346<300,0.3,AC346/1000))","v":544465.98380927963},null,null,{"$f":"SUMIFS($B:$B,$N:$N,$C346)","v":4352},492221.80375817709,null,null,null,null,null,null,null,null,null,3,{"$f":"AR346*30500","v":91500},null,null,null,null,null,null,null,null,null,null,null,null,null,null,null,null,null,null,2209474.6063936586,2209500]
["Nová Olešná",123,562734,1,0,0,0,0,"Jihočeský kraj",547239,"Strmilov",545881,"Jindřichův Hradec",545881,"Jindřichův Hradec",545881,"Jindřichův Hradec",71941.662785630979,null,null,null,null,null,null,null,null,null,null,null,null,null,null,null,null,null,null,null,null,null,null,null,null,null,null,null,null,null,null,null,null,null,null,null,null,null,null,null,null,null,null,null,null,null,71941.662785630979,71900]
["Nová Pec",443,550451,1,0,0,0,0,"Jihočeský kraj",550671,"Volary",550671,"Volary",550671,"Volary",550094,"Prachatice",105788.60877983049,null,null,null,null,null,null,null,null,null,null,null,null,null,null,null,null,null,null,null,null,null,null,null,null,null,null,null,null,null,null,null,null,null,null,null,null,null,null,null,null,null,null,null,null,null,105788.60877983049,105800]
["Nová Včelnice",2176,546801,1,1,1,0,0,"Jihočeský kraj",546801,"Nová Včelnice",546801,"Nová Včelnice",545881,"Jindřichův Hradec",545881,"Jindřichův Hradec",505089.28369983012,{"$f":"SUMIFS($B:$B,$J:$J,$C349)","v":3256},176991.01481239739,0,{"$f":"U349*768","v":0},8,{"$f":"W349*3072","v":24576},18,{"$f":"Y349*1024","v":18432},5,{"$f":"AA349*256","v":1280},{"$f":"SUMIFS($B:$B,$L:$L,$C349)","v":4156},{"$f":"(koeficienty!$C$4/(koeficienty!$B$4 + SQRT(IF(AC349<300,0.3,AC349/1000)))) * (IF(AC349<300,0.3,AC349/1000))","v":520143.51641221426},null,null,null,null,null,null,null,null,null,null,null,null,null,2,{"$f":"AR349*30500","v":61000},null,null,null,null,null,null,null,null,null,null,null,null,null,null,null,null,null,null,1307511.8149244417,1307500]
["Nová Ves",105,560201,1,0,0,0,0,"Jihočeský kraj",550957,"Čestice",551970,"Volyně",551970,"Volyně",550787,"Strakonice",71941.662785630979,null,null,null,null,null,null,null,null,null,null,null,null,null,null,null,null,null,null,null,null,null,null,null,null,null,null,null,null,null,null,null,null,null,null,null,null,null,null,null,null,null,null,null,null,null,71941.662785630979,71900]
["Nová Ves",773,535648,1,0,0,0,0,"Jihočeský kraj",544256,"České Budějovice",544256,"České Budějovice",544256,"České Budějovice",544256,"České Budějovice",183201.0661386867,null,null,null,null,null,null,null,null,null,null,null,null,null,null,null,null,null,null,null,null,null,null,null,null,null,null,null,null,null,null,null,null,null,null,null,null,null,null,null,null,null,null,null,null,null,183201.0661386867,183200]
["Nová Ves",407,513661,1,0,0,0,0,"Jihočeský kraj",545431,"Brloh",545571,"Křemže",545392,"Český Krumlov",545392,"Český Krumlov",97287.335812924561,null,null,null,null,null,null,null,null,null,null,null,null,null,null,null,null,null,null,null,null,null,null,null,null,null,null,null,null,null,null,null,null,null,null,null,null,null,null,null,null,null,null,null,null,null,97287.335812924561,97300]
["Nová Ves nad Lužnicí",352,562360,1,0,0,0,0,"Jihočeský kraj",546089,"České Velenice",546089,"České Velenice",546089,"České Velenice",547336,"Třeboň",84274.399045847385,null,null,null,null,null,null,null,null,null,null,null,null,null,null,null,null,null,null,null,null,null,null,null,null,null,null,null,null,null,null,null,null,null,null,null,null,null,null,null,null,null,null,null,null,null,84274.399045847385,84300]
["Nová Ves u Chýnova",325,552763,1,0,0,0,0,"Jihočeský kraj",552496,"Chýnov",552496,"Chýnov",552046,"Tábor",552046,"Tábor",77874.605211360598,null,null,null,null,null,null,null,null,null,null,null,null,null,null,null,null,null,null,null,null,null,null,null,null,null,null,null,null,null,null,null,null,null,null,null,null,null,null,null,null,null,null,null,null,null,77874.605211360598,77900]
["Nová Ves u Mladé Vožice",197,563455,1,0,0,0,0,"Jihočeský kraj",552704,"Mladá Vožice",552704,"Mladá Vožice",552704,"Mladá Vožice",552046,"Tábor",71941.662785630979,null,null,null,null,null,null,null,null,null,null,null,null,null,null,null,null,null,null,null,null,null,null,null,null,null,null,null,null,null,null,null,null,null,null,null,null,null,null,null,null,null,null,null,null,null,71941.662785630979,71900]
["Nové Hrady",2469,544868,1,1,1,1,0,"Jihočeský kraj",544868,"Nové Hrady",544868,"Nové Hrady",544868,"Nové Hrady",545171,"Trhové Sviny",571200.98931325111,{"$f":"SUMIFS($B:$B,$J:$J,$C356)","v":3024},164412.89716833289,0,{"$f":"U356*768","v":0},39,{"$f":"W356*3072","v":119808},19,{"$f":"Y356*1024","v":19456},7,{"$f":"AA356*256","v":1792},{"$f":"SUMIFS($B:$B,$L:$L,$C356)","v":4516},{"$f":"(koeficienty!$C$4/(koeficienty!$B$4 + SQRT(IF(AC356<300,0.3,AC356/1000)))) * (IF(AC356<300,0.3,AC356/1000))","v":564806.8760995894},null,null,{"$f":"SUMIFS($B:$B,$N:$N,$C356)","v":4516},510661.17014740588,null,null,null,null,null,null,null,null,null,2,{"$f":"AR356*30500","v":61000},null,null,null,null,null,null,null,null,null,null,null,null,null,null,null,null,null,null,2013137.9327285793,2013100]
["Nové Hutě",100,561568,1,0,0,0,0,"Jihočeský kraj",550647,"Vimperk",550647,"Vimperk",550647,"Vimperk",550647,"Vimperk",71941.662785630979,null,null,null,null,null,null,null,null,null,null,null,null,null,null,null,null,null,null,null,null,null,null,null,null,null,1,{"$f":"AR357*30500","v":30500},null,null,null,null,null,null,null,null,null,null,null,null,null,null,null,null,null,null,102441.66278563098,102400]
["Novosedly",338,551554,1,0,0,0,0,"Jihočeský kraj",551201,"Katovice",550787,"Strakonice",550787,"Strakonice",550787,"Strakonice",80956.976049460005,null,null,null,null,null,null,null,null,null,null,null,null,null,null,null,null,null,null,null,null,null,null,null,null,null,null,null,null,null,null,null,null,null,null,null,null,null,null,null,null,null,null,null,null,null,80956.976049460005,81000]
["Novosedly nad Nežárkou",691,546844,1,0,0,0,0,"Jihočeský kraj",546674,"Lomnice nad Lužnicí",547336,"Třeboň",547336,"Třeboň",547336,"Třeboň",164044.61200580059,null,null,null,null,null,null,null,null,null,null,null,null,null,null,null,null,null,null,null,null,null,null,null,null,null,null,null,null,null,null,null,null,null,null,null,null,null,null,null,null,null,null,null,null,null,164044.61200580059,164000]
["Okrouhlá",67,529877,1,0,0,0,0,"Jihočeský kraj",549576,"Milevsko",549576,"Milevsko",549576,"Milevsko",549576,"Milevsko",71941.662785630979,null,null,null,null,null,null,null,null,null,null,null,null,null,null,null,null,null,null,null,null,null,null,null,null,null,null,null,null,null,null,null,null,null,null,null,null,null,null,null,null,null,null,null,null,null,71941.662785630979,71900]
["Okrouhlá Radouň",217,562475,1,0,0,0,0,"Jihočeský kraj",546801,"Nová Včelnice",546801,"Nová Včelnice",545881,"Jindřichův Hradec",545881,"Jindřichův Hradec",71941.662785630979,null,null,null,null,null,null,null,null,null,null,null,null,null,null,null,null,null,null,null,null,null,null,null,null,null,null,null,null,null,null,null,null,null,null,null,null,null,null,null,null,null,null,null,null,null,71941.662785630979,71900]
["Oldřichov",245,552798,1,0,0,0,0,"Jihočeský kraj",552704,"Mladá Vožice",552704,"Mladá Vožice",552704,"Mladá Vožice",552046,"Tábor",71941.662785630979,null,null,null,null,null,null,null,null,null,null,null,null,null,null,null,null,null,null,null,null,null,null,null,null,null,null,null,null,null,null,null,null,null,null,null,null,null,null,null,null,null,null,null,null,null,71941.662785630979,71900]
["Olešná",136,562190,1,0,0,0,0,"Jihočeský kraj",549240,"Písek",549266,"Bernartice",549240,"Písek",549240,"Písek",71941.662785630979,null,null,null,null,null,null,null,null,null,null,null,null,null,null,null,null,null,null,null,null,null,null,null,null,null,null,null,null,null,null,null,null,null,null,null,null,null,null,null,null,null,null,null,null,null,71941.662785630979,71900]
["Olešnice",897,544884,1,0,0,0,0,"Jihočeský kraj",545171,"Trhové Sviny",545171,"Trhové Sviny",545171,"Trhové Sviny",545171,"Trhové Sviny",212080.87655447159,null,null,null,null,null,null,null,null,null,null,null,null,null,null,null,null,null,null,null,null,null,null,null,null,null,null,null,null,null,null,null,null,null,null,null,null,null,null,null,null,null,null,null,null,null,212080.87655447159,212100]
["Olešník",822,544892,1,0,0,0,0,"Jihočeský kraj",544426,"Dříteň",544485,"Hluboká nad Vltavou",544485,"Hluboká nad Vltavou",544256,"České Budějovice",194625.60264129439,null,null,null,null,null,null,null,null,null,null,null,null,null,null,null,null,null,null,null,null,null,null,null,null,null,null,null,null,null,null,null,null,null,null,null,null,null,null,null,null,null,null,null,null,null,194625.60264129439,194600]
["Olšovice",60,537365,1,0,0,0,0,"Jihočeský kraj",550442,"Netolice",550442,"Netolice",550442,"Netolice",550094,"Prachatice",71941.662785630979,null,null,null,null,null,null,null,null,null,null,null,null,null,null,null,null,null,null,null,null,null,null,null,null,null,null,null,null,null,null,null,null,null,null,null,null,null,null,null,null,null,null,null,null,null,71941.662785630979,71900]
["Omlenice",582,545660,1,0,0,0,0,"Jihočeský kraj",545562,"Kaplice",545562,"Kaplice",545562,"Kaplice",545562,"Kaplice",138502.6125617635,null,null,null,null,null,null,null,null,null,null,null,null,null,null,null,null,null,null,null,null,null,null,null,null,null,null,null,null,null,null,null,null,null,null,null,null,null,null,null,null,null,null,null,null,null,138502.6125617635,138500]
["Opařany",1433,552801,1,1,0,0,0,"Jihočeský kraj",552801,"Opařany",552046,"Tábor",552046,"Tábor",552046,"Tábor",335853.2888204336,{"$f":"SUMIFS($B:$B,$J:$J,$C368)","v":1719},93583.807811238687,0,{"$f":"U368*768","v":0},4,{"$f":"W368*3072","v":12288},7,{"$f":"Y368*1024","v":7168},4,{"$f":"AA368*256","v":1024},null,null,null,null,null,null,null,null,null,null,null,null,null,null,null,null,null,null,null,null,null,null,null,null,null,null,null,null,null,null,null,null,null,null,null,449917.09663167229,449900]
["Orlík nad Vltavou",301,549681,1,1,0,0,0,"Jihočeský kraj",549681,"Orlík nad Vltavou",549592,"Mirovice",549592,"Mirovice",549240,"Písek",72179.117314643285,{"$f":"SUMIFS($B:$B,$J:$J,$C369)","v":761},41485.425117523882,0,{"$f":"U369*768","v":0},15,{"$f":"W369*3072","v":46080},6,{"$f":"Y369*1024","v":6144},0,{"$f":"AA369*256","v":0},null,null,null,null,null,null,null,null,null,null,null,null,null,null,null,null,null,null,null,null,null,null,null,null,null,null,null,null,null,null,null,null,null,null,null,165888.54243216716,165900]
["Osek",148,598828,1,0,0,0,0,"Jihočeský kraj",549576,"Milevsko",549576,"Milevsko",549576,"Milevsko",549576,"Milevsko",71941.662785630979,null,null,null,null,null,null,null,null,null,null,null,null,null,null,null,null,null,null,null,null,null,null,null,null,null,null,null,null,null,null,null,null,null,null,null,null,null,null,null,null,null,null,null,null,null,71941.662785630979,71900]
["Osek",661,551562,1,0,0,0,0,"Jihočeský kraj",551660,"Radomyšl",550787,"Strakonice",550787,"Strakonice",550787,"Strakonice",157023.84099877579,null,null,null,null,null,null,null,null,null,null,null,null,null,null,null,null,null,null,null,null,null,null,null,null,null,48,{"$f":"AR371*30500","v":1464000},null,null,null,null,null,null,null,null,null,null,null,null,null,null,null,null,null,null,1621023.8409987758,1621000]
["Oslov",336,549703,1,0,0,0,0,"Jihočeský kraj",562165,"Zvíkovské Podhradí",549240,"Písek",549240,"Písek",549240,"Písek",80482.885651683697,null,null,null,null,null,null,null,null,null,null,null,null,null,null,null,null,null,null,null,null,null,null,null,null,null,null,null,null,null,null,null,null,null,null,null,null,null,null,null,null,null,null,null,null,null,80482.885651683697,80500]
["Ostrolovský Újezd",182,535231,1,0,0,0,0,"Jihočeský kraj",544281,"Borovany",544281,"Borovany",545171,"Trhové Sviny",545171,"Trhové Sviny",71941.662785630979,null,null,null,null,null,null,null,null,null,null,null,null,null,null,null,null,null,null,null,null,null,null,null,null,null,null,null,null,null,null,null,null,null,null,null,null,null,null,null,null,null,null,null,null,null,71941.662785630979,71900]
["Ostrovec",371,549711,1,0,0,0,0,"Jihočeský kraj",549584,"Mirotice",549240,"Písek",549240,"Písek",549240,"Písek",88773.288750552674,null,null,null,null,null,null,null,null,null,null,null,null,null,null,null,null,null,null,null,null,null,null,null,null,null,null,null,null,null,null,null,null,null,null,null,null,null,null,null,null,null,null,null,null,null,88773.288750552674,88800]
["Paračov",106,551571,1,0,0,0,0,"Jihočeský kraj",550787,"Strakonice",550787,"Strakonice",550787,"Strakonice",550787,"Strakonice",71941.662785630979,null,null,null,null,null,null,null,null,null,null,null,null,null,null,null,null,null,null,null,null,null,null,null,null,null,null,null,null,null,null,null,null,null,null,null,null,null,null,null,null,null,null,null,null,null,71941.662785630979,71900]
["Paseky",190,562254,1,0,0,0,0,"Jihočeský kraj",549771,"Protivín",549771,"Protivín",549771,"Protivín",549240,"Písek",71941.662785630979,null,null,null,null,null,null,null,null,null,null,null,null,null,null,null,null,null,null,null,null,null,null,null,null,null,null,null,null,null,null,null,null,null,null,null,null,null,null,null,null,null,null,null,null,null,71941.662785630979,71900]
["Peč",465,507717,1,0,0,0,0,"Jihočeský kraj",546127,"Dačice",546127,"Dačice",546127,"Dačice",546127,"Dačice",110977.7867469535,null,null,null,null,null,null,null,null,null,null,null,null,null,null,null,null,null,null,null,null,null,null,null,null,null,1,{"$f":"AR377*30500","v":30500},null,null,null,null,null,null,null,null,null,null,null,null,null,null,null,null,null,null,141477.7867469535,141500]
["Pěčnov",174,537543,1,0,0,0,0,"Jihočeský kraj",550663,"Vlachovo Březí",550094,"Prachatice",550094,"Prachatice",550094,"Prachatice",71941.662785630979,null,null,null,null,null,null,null,null,null,null,null,null,null,null,null,null,null,null,null,null,null,null,null,null,null,null,null,null,null,null,null,null,null,null,null,null,null,null,null,null,null,null,null,null,null,71941.662785630979,71900]
["Petříkov",310,535699,1,0,0,0,0,"Jihočeský kraj",545171,"Trhové Sviny",545171,"Trhové Sviny",545171,"Trhové Sviny",545171,"Trhové Sviny",74315.690586406286,null,null,null,null,null,null,null,null,null,null,null,null,null,null,null,null,null,null,null,null,null,null,null,null,null,null,null,null,null,null,null,null,null,null,null,null,null,null,null,null,null,null,null,null,null,74315.690586406286,74300]
["Písečné",488,546917,1,0,0,0,0,"Jihočeský kraj",547166,"Slavonice",547166,"Slavonice",547166,"Slavonice",546127,"Dačice",116398.0877286575,null,null,null,null,null,null,null,null,null,null,null,null,null,null,null,null,null,null,null,null,null,null,null,null,null,null,null,null,null,null,null,null,null,null,null,null,null,null,null,null,null,null,null,null,null,116398.0877286575,116400]
["Písek",31121,549240,1,1,1,1,1,"Jihočeský kraj",549240,"Písek",549240,"Písek",549240,"Písek",549240,"Písek",1347956.7356543399,{"$f":"SUMIFS($B:$B,$J:$J,$C381)","v":39916},861028.69742115436,796,{"$f":"U381*768","v":611328},144,{"$f":"W381*3072","v":442368},543,{"$f":"Y381*1024","v":556032},185,{"$f":"AA381*256","v":47360},{"$f":"SUMIFS($B:$B,$L:$L,$C381)","v":41495},2542289.4141071611,{"$f":"SUMIFS($B:$B,$P:$P,$C381)","v":54849},3210745.7012683731,{"$f":"SUMIFS($B:$B,$N:$N,$C381)","v":42542},7066352.5039140536,{"$f":"SUMIFS($B:$B,$P:$P,$C381)","v":54849},23251887.40983494,null,6169,{"$f":"AL381*141","v":869829},null,null,null,null,45,{"$f":"AR381*30500","v":1372500},364,{"$f":"AT381*2742","v":998088},1,{"$f":"AV381*914","v":914},2220,{"$f":"AX381*141","v":313020},2376,{"$f":"AZ381*343","v":814968},1102,{"$f":"BB381*109","v":120118},65,{"$f":"BD381*82","v":5330},1383,{"$f":"BF381*328","v":453624},62,{"$f":"BH381*410","v":25420},27,{"$f":"BJ381*219","v":5913},44917072.462200023,44917100]
["Pístina",110,561070,1,0,0,0,0,"Jihočeský kraj",547221,"Stráž nad Nežárkou",545881,"Jindřichův Hradec",545881,"Jindřichův Hradec",545881,"Jindřichův Hradec",71941.662785630979,null,null,null,null,null,null,null,null,null,null,null,null,null,null,null,null,null,null,null,null,null,null,null,null,null,null,null,null,null,null,null,null,null,null,null,null,null,null,null,null,null,null,null,null,null,71941.662785630979,71900]
["Pištín",667,535991,1,0,0,0,0,"Jihočeský kraj",545341,"Zliv",545341,"Zliv",545341,"Zliv",544256,"České Budějovice",158428.53739955,null,null,null,null,null,null,null,null,null,null,null,null,null,null,null,null,null,null,null,null,null,null,null,null,null,null,null,null,null,null,null,null,null,null,null,null,null,null,null,null,null,null,null,null,null,158428.53739955,158400]
["Pivkovice",93,598887,1,0,0,0,0,"Jihočeský kraj",550809,"Bavorov",551953,"Vodňany",551953,"Vodňany",551953,"Vodňany",71941.662785630979,null,null,null,null,null,null,null,null,null,null,null,null,null,null,null,null,null,null,null,null,null,null,null,null,null,null,null,null,null,null,null,null,null,null,null,null,null,null,null,null,null,null,null,null,null,71941.662785630979,71900]
["Planá",256,535176,1,0,0,0,0,"Jihočeský kraj",544299,"Boršov nad Vltavou",544256,"České Budějovice",544256,"České Budějovice",544256,"České Budějovice",71941.662785630979,null,null,null,null,null,null,null,null,null,null,null,null,null,null,null,null,null,null,null,null,null,null,null,null,null,null,null,null,null,null,null,null,null,null,null,null,null,null,null,null,null,null,null,null,null,71941.662785630979,71900]
["Planá nad Lužnicí",4614,552828,1,1,0,0,0,"Jihočeský kraj",552828,"Planá nad Lužnicí",553069,"Sezimovo Ústí",553069,"Sezimovo Ústí",552046,"Tábor",1046649.408128501,{"$f":"SUMIFS($B:$B,$J:$J,$C386)","v":7147},387466.3678114955,0,{"$f":"U386*768","v":0},30,{"$f":"W386*3072","v":92160},14,{"$f":"Y386*1024","v":14336},12,{"$f":"AA386*256","v":3072},null,null,null,null,null,null,null,null,null,null,null,null,null,null,null,1,{"$f":"AR386*30500","v":30500},null,null,null,null,null,null,null,null,null,null,null,null,null,null,null,null,null,null,1574183.7759399966,1574200]
["Plav",433,535346,1,0,0,0,0,"Jihočeský kraj",544256,"České Budějovice",544256,"České Budějovice",544256,"České Budějovice",544256,"České Budějovice",103428.3916912102,null,null,null,null,null,null,null,null,null,null,null,null,null,null,null,null,null,null,null,null,null,null,null,null,null,null,null,null,null,null,null,null,null,null,null,null,null,null,null,null,null,null,null,null,null,103428.3916912102,103400]
["Plavsko",480,509078,1,0,0,0,0,"Jihočeský kraj",547221,"Stráž nad Nežárkou",545881,"Jindřichův Hradec",545881,"Jindřichův Hradec",545881,"Jindřichův Hradec",114513.3085446271,null,null,null,null,null,null,null,null,null,null,null,null,null,null,null,null,null,null,null,null,null,null,null,null,null,null,null,null,null,null,null,null,null,null,null,null,null,null,null,null,null,null,null,null,null,{"$f":"SUMIF(R388:R388,\"<>\")+SUMIF(T388:T388,\"<>\")+SUMIF(V388:V388,\"<>\")+SUMIF(X388:X388,\"<>\")+SUMIF(Z388:Z388,\"<>\")+SUMIF(AB388:AB388,\"<>\")+SUMIF(AD388:AD388,\"<>\")+SUMIF(AF388:AF388,\"<>\")+SUMIF(AH388:AH388,\"<>\")+SUMIF(AJ388:AJ388,\"<>\")+SUMIF(AK388:AK388,\"<>\")+SUMIF(AM388:AM388,\"<>\")+SUMIF(AO388:AO388,\"<>\")+SUMIF(AQ388:AQ388,\"<>\")+SUMIF(AS388:AS388,\"<>\")+SUMIF(AU388:AU388,\"<>\")+SUMIF(AW388:AW388,\"<>\")+SUMIF(AY388:AY388,\"<>\")+SUMIF(BA388:BA388,\"<>\")+SUMIF(BC388:BC388,\"<>\")+SUMIF(BE388:BE388,\"<>\")+SUMIF(BG388:BG388,\"<>\")+SUMIF(BI388:BI388,\"<>\")+SUMIF(BK388:BK388,\"<>\")","v":114513.3085446271},{"$f":"ROUND(BL388/100,0)*100","v":114500}]
["Pleše",182,507628,1,0,0,0,0,"Jihočeský kraj",546542,"Kardašova Řečice",545881,"Jindřichův Hradec",545881,"Jindřichův Hradec",545881,"Jindřichův Hradec",71941.662785630979,null,null,null,null,null,null,null,null,null,null,null,null,null,null,null,null,null,null,null,null,null,null,null,null,null,null,null,null,null,null,null,null,null,null,null,null,null,null,null,null,null,null,null,null,null,71941.662785630979,71900]
["Pluhův Žďár",593,546968,1,0,0,0,0,"Jihočeský kraj",546542,"Kardašova Řečice",545881,"Jindřichův Hradec",545881,"Jindřichův Hradec",545881,"Jindřichův Hradec",141084.48269442661,null,null,null,null,null,null,null,null,null,null,null,null,null,null,null,null,null,null,null,null,null,null,null,null,null,null,null,null,null,null,null,null,null,null,null,null,null,null,null,null,null,null,null,null,null,141084.48269442661,141100]
["Podolí I",361,549754,1,0,0,0,0,"Jihočeský kraj",549240,"Písek",549266,"Bernartice",549240,"Písek",549240,"Písek",86405.924227142634,null,null,null,null,null,null,null,null,null,null,null,null,null,null,null,null,null,null,null,null,null,null,null,null,null,null,null,null,null,null,null,null,null,null,null,null,null,null,null,null,null,null,null,null,null,86405.924227142634,86400]
["Pohnánec",58,560553,1,0,0,0,0,"Jihočeský kraj",552992,"Ratibořské Hory",552704,"Mladá Vožice",552046,"Tábor",552046,"Tábor",71941.662785630979,null,null,null,null,null,null,null,null,null,null,null,null,null,null,null,null,null,null,null,null,null,null,null,null,null,null,null,null,null,null,null,null,null,null,null,null,null,null,null,null,null,null,null,null,null,71941.662785630979,71900]
["Pohnání",80,552852,1,0,0,0,0,"Jihočeský kraj",552992,"Ratibořské Hory",552704,"Mladá Vožice",552046,"Tábor",552046,"Tábor",71941.662785630979,null,null,null,null,null,null,null,null,null,null,null,null,null,null,null,null,null,null,null,null,null,null,null,null,null,null,null,null,null,null,null,null,null,null,null,null,null,null,null,null,null,null,null,null,null,71941.662785630979,71900]
["Pohorovice",77,536911,1,0,0,0,0,"Jihočeský kraj",551953,"Vodňany",551953,"Vodňany",551953,"Vodňany",551953,"Vodňany",71941.662785630979,null,null,null,null,null,null,null,null,null,null,null,null,null,null,null,null,null,null,null,null,null,null,null,null,null,null,null,null,null,null,null,null,null,null,null,null,null,null,null,null,null,null,null,null,null,71941.662785630979,71900]
["Pohorská Ves",231,545694,1,0,0,0,0,"Jihočeský kraj",545406,"Benešov nad Černou",545562,"Kaplice",545562,"Kaplice",545562,"Kaplice",71941.662785630979,null,null,null,null,null,null,null,null,null,null,null,null,null,null,null,null,null,null,null,null,null,null,null,null,null,null,null,null,null,null,null,null,null,null,null,null,null,null,null,null,null,null,null,null,null,71941.662785630979,71900]
["Pojbuky",103,552861,1,0,0,0,0,"Jihočeský kraj",552704,"Mladá Vožice",552704,"Mladá Vožice",552046,"Tábor",552046,"Tábor",71941.662785630979,null,null,null,null,null,null,null,null,null,null,null,null,null,null,null,null,null,null,null,null,null,null,null,null,null,null,null,null,null,null,null,null,null,null,null,null,null,null,null,null,null,null,null,null,null,71941.662785630979,71900]
["Polná na Šumavě",203,500194,1,0,0,0,0,"Jihočeský kraj",545554,"Kájov",545392,"Český Krumlov",545392,"Český Krumlov",545392,"Český Krumlov",71941.662785630979,null,null,null,null,null,null,null,null,null,null,null,null,null,null,null,null,null,null,null,null,null,null,null,null,null,null,null,null,null,null,null,null,null,null,null,null,null,null,null,null,null,null,null,null,null,71941.662785630979,71900]
["Polště",105,562459,1,0,0,0,0,"Jihočeský kraj",545881,"Jindřichův Hradec",545881,"Jindřichův Hradec",545881,"Jindřichův Hradec",545881,"Jindřichův Hradec",71941.662785630979,null,null,null,null,null,null,null,null,null,null,null,null,null,null,null,null,null,null,null,null,null,null,null,null,null,null,null,null,null,null,null,null,null,null,null,null,null,null,null,null,null,null,null,null,null,71941.662785630979,71900]
["Ponědraž",118,562670,1,0,0,0,0,"Jihočeský kraj",546674,"Lomnice nad Lužnicí",547336,"Třeboň",547336,"Třeboň",547336,"Třeboň",71941.662785630979,null,null,null,null,null,null,null,null,null,null,null,null,null,null,null,null,null,null,null,null,null,null,null,null,null,null,null,null,null,null,null,null,null,null,null,null,null,null,null,null,null,null,null,null,null,71941.662785630979,71900]
["Ponědrážka",80,562653,1,0,0,0,0,"Jihočeský kraj",546674,"Lomnice nad Lužnicí",547336,"Třeboň",547336,"Třeboň",547336,"Třeboň",71941.662785630979,null,null,null,null,null,null,null,null,null,null,null,null,null,null,null,null,null,null,null,null,null,null,null,null,null,null,null,null,null,null,null,null,null,null,null,null,null,null,null,null,null,null,null,null,null,71941.662785630979,71900]
["Popelín",471,546992,1,0,0,0,0,"Jihočeský kraj",545881,"Jindřichův Hradec",545881,"Jindřichův Hradec",545881,"Jindřichův Hradec",545881,"Jindřichův Hradec",112392.24132154509,null,null,null,null,null,null,null,null,null,null,null,null,null,null,null,null,null,null,null,null,null,null,null,null,null,null,null,null,null,null,null,null,null,null,null,null,null,null,null,null,null,null,null,null,null,112392.24132154509,112400]
["Pracejovice",322,551619,1,0,0,0,0,"Jihočeský kraj",550787,"Strakonice",550787,"Strakonice",550787,"Strakonice",550787,"Strakonice",77163.023986378481,null,null,null,null,null,null,null,null,null,null,null,null,null,null,null,null,null,null,null,null,null,null,null,null,null,null,null,null,null,null,null,null,null,null,null,null,null,null,null,null,null,null,null,null,null,77163.023986378481,77200]
["Prachatice",11119,550094,1,1,1,1,1,"Jihočeský kraj",550094,"Prachatice",550094,"Prachatice",550094,"Prachatice",550094,"Prachatice",514573.45348396769,{"$f":"SUMIFS($B:$B,$J:$J,$C403)","v":13543},291173.32830258901,147,{"$f":"U403*768","v":112896},33,{"$f":"W403*3072","v":101376},530,{"$f":"Y403*1024","v":542720},56,{"$f":"AA403*256","v":14336},{"$f":"SUMIFS($B:$B,$L:$L,$C403)","v":24253},1582154.509710937,{"$f":"SUMIFS($B:$B,$P:$P,$C403)","v":33775},2081152.4499288399,{"$f":"SUMIFS($B:$B,$N:$N,$C403)","v":24253},4225586.6207875675,{"$f":"SUMIFS($B:$B,$P:$P,$C403)","v":33775},17733995.324291851,null,3695,{"$f":"AL403*141","v":520995},null,null,null,null,8,{"$f":"AR403*30500","v":244000},49,{"$f":"AT403*2742","v":134358},145,{"$f":"AV403*914","v":132530},1251,{"$f":"AX403*141","v":176391},1300,{"$f":"AZ403*343","v":445900},177,{"$f":"BB403*109","v":19293},0,{"$f":"BD403*82","v":0},284,{"$f":"BF403*328","v":93152},0,{"$f":"BH403*410","v":0},15,{"$f":"BJ403*219","v":3285},28969867.686505754,28969900]
["Probulov",76,561509,1,0,0,0,0,"Jihočeský kraj",549681,"Orlík nad Vltavou",549592,"Mirovice",549592,"Mirovice",549240,"Písek",71941.662785630979,null,null,null,null,null,null,null,null,null,null,null,null,null,null,null,null,null,null,null,null,null,null,null,null,null,2,{"$f":"AR404*30500","v":61000},null,null,null,null,null,null,null,null,null,null,null,null,null,null,null,null,null,null,132941.66278563096,132900]
["Protivín",4764,549771,1,1,1,1,0,"Jihočeský kraj",549771,"Protivín",549771,"Protivín",549771,"Protivín",549240,"Písek",1079412.78190434,{"$f":"SUMIFS($B:$B,$J:$J,$C405)","v":5694},308965.21855441341,0,{"$f":"U405*768","v":0},14,{"$f":"W405*3072","v":43008},34,{"$f":"Y405*1024","v":34816},7,{"$f":"AA405*256","v":1792},{"$f":"SUMIFS($B:$B,$L:$L,$C405)","v":5694},{"$f":"(koeficienty!$C$4/(koeficienty!$B$4 + SQRT(IF(AC405<300,0.3,AC405/1000)))) * (IF(AC405<300,0.3,AC405/1000))","v":710646.93078880815},null,null,{"$f":"SUMIFS($B:$B,$N:$N,$C405)","v":5694},642943.6493201867,null,null,null,null,null,null,null,null,null,5,{"$f":"AR405*30500","v":152500},null,null,null,null,null,null,null,null,null,null,null,null,null,null,null,null,null,null,2974084.5805677483,2974100]
["Přeborov",142,561517,1,0,0,0,0,"Jihočeský kraj",549576,"Milevsko",549576,"Milevsko",549576,"Milevsko",549576,"Milevsko",71941.662785630979,null,null,null,null,null,null,null,null,null,null,null,null,null,null,null,null,null,null,null,null,null,null,null,null,null,null,null,null,null,null,null,null,null,null,null,null,null,null,null,null,null,null,null,null,null,71941.662785630979,71900]
["Předmíř",289,551627,1,0,0,0,0,"Jihočeský kraj",551350,"Lnáře",550850,"Blatná",550850,"Blatná",550850,"Blatná",71941.662785630979,null,null,null,null,null,null,null,null,null,null,null,null,null,null,null,null,null,null,null,null,null,null,null,null,null,null,null,null,null,null,null,null,null,null,null,null,null,null,null,null,null,null,null,null,null,71941.662785630979,71900]
["Přední Výtoň",190,545716,1,0,0,0,0,"Jihočeský kraj",545481,"Frymburk",545848,"Vyšší Brod",545848,"Vyšší Brod",545392,"Český Krumlov",71941.662785630979,null,null,null,null,null,null,null,null,null,null,null,null,null,null,null,null,null,null,null,null,null,null,null,null,null,null,null,null,null,null,null,null,null,null,null,null,null,null,null,null,null,null,null,null,null,71941.662785630979,71900]
["Přední Zborovice",94,536792,1,0,0,0,0,"Jihočeský kraj",550787,"Strakonice",550787,"Strakonice",550787,"Strakonice",550787,"Strakonice",71941.662785630979,null,null,null,null,null,null,null,null,null,null,null,null,null,null,null,null,null,null,null,null,null,null,null,null,null,null,null,null,null,null,null,null,null,null,null,null,null,null,null,null,null,null,null,null,null,71941.662785630979,71900]
["Předotice",598,509621,1,0,0,0,0,"Jihočeský kraj",549240,"Písek",549240,"Písek",549240,"Písek",549240,"Písek",142257.73702933651,null,null,null,null,null,null,null,null,null,null,null,null,null,null,null,null,null,null,null,null,null,null,null,null,null,null,null,null,null,null,null,null,null,null,null,null,null,null,null,null,null,null,null,null,null,142257.73702933651,142300]
["Předslavice",243,551635,1,0,0,0,0,"Jihočeský kraj",551970,"Volyně",551970,"Volyně",551970,"Volyně",550787,"Strakonice",71941.662785630979,null,null,null,null,null,null,null,null,null,null,null,null,null,null,null,null,null,null,null,null,null,null,null,null,null,1,{"$f":"AR411*30500","v":30500},null,null,null,null,null,null,null,null,null,null,null,null,null,null,null,null,null,null,102441.66278563098,102400]
["Přehořov",345,552895,1,0,0,0,0,"Jihočeský kraj",553131,"Soběslav",553131,"Soběslav",553131,"Soběslav",553131,"Soběslav",82615.950967563855,null,null,null,null,null,null,null,null,null,null,null,null,null,null,null,null,null,null,null,null,null,null,null,null,null,null,null,null,null,null,null,null,null,null,null,null,null,null,null,null,null,null,null,null,null,82615.950967563855,82600]
["Přechovice",147,536547,1,0,0,0,0,"Jihočeský kraj",551970,"Volyně",551970,"Volyně",551970,"Volyně",550787,"Strakonice",71941.662785630979,null,null,null,null,null,null,null,null,null,null,null,null,null,null,null,null,null,null,null,null,null,null,null,null,null,null,null,null,null,null,null,null,null,null,null,null,null,null,null,null,null,null,null,null,null,71941.662785630979,71900]
["Přeštěnice",271,549797,1,0,0,0,0,"Jihočeský kraj",549576,"Milevsko",549576,"Milevsko",549576,"Milevsko",549576,"Milevsko",71941.662785630979,null,null,null,null,null,null,null,null,null,null,null,null,null,null,null,null,null,null,null,null,null,null,null,null,null,null,null,null,null,null,null,null,null,null,null,null,null,null,null,null,null,null,null,null,null,71941.662785630979,71900]
["Přešťovice",479,551643,1,0,0,0,0,"Jihočeský kraj",551856,"Štěkeň",550787,"Strakonice",550787,"Strakonice",550787,"Strakonice",114277.6706410692,null,null,null,null,null,null,null,null,null,null,null,null,null,null,null,null,null,null,null,null,null,null,null,null,null,null,null,null,null,null,null,null,null,null,null,null,null,null,null,null,null,null,null,null,null,114277.6706410692,114300]
["Příbraz",270,561088,1,0,0,0,0,"Jihočeský kraj",547221,"Stráž nad Nežárkou",545881,"Jindřichův Hradec",545881,"Jindřichův Hradec",545881,"Jindřichův Hradec",71941.662785630979,null,null,null,null,null,null,null,null,null,null,null,null,null,null,null,null,null,null,null,null,null,null,null,null,null,null,null,null,null,null,null,null,null,null,null,null,null,null,null,null,null,null,null,null,null,71941.662785630979,71900]
["Přídolí",705,545724,1,0,0,0,0,"Jihočeský kraj",545392,"Český Krumlov",545392,"Český Krumlov",545392,"Český Krumlov",545392,"Český Krumlov",167318.67550318479,null,null,null,null,null,null,null,null,null,null,null,null,null,null,null,null,null,null,null,null,null,null,null,null,null,null,null,null,null,null,null,null,null,null,null,null,null,null,null,null,null,null,null,null,null,167318.67550318479,167300]
["Přísečná",208,545732,1,0,0,0,0,"Jihočeský kraj",545392,"Český Krumlov",545392,"Český Krumlov",545392,"Český Krumlov",545392,"Český Krumlov",71941.662785630979,null,null,null,null,null,null,null,null,null,null,null,null,null,null,null,null,null,null,null,null,null,null,null,null,null,null,null,null,null,null,null,null,null,null,null,null,null,null,null,null,null,null,null,null,null,71941.662785630979,71900]
["Psárov",112,563374,1,0,0,0,0,"Jihočeský kraj",552470,"Choustník",552046,"Tábor",552046,"Tábor",552046,"Tábor",71941.662785630979,null,null,null,null,null,null,null,null,null,null,null,null,null,null,null,null,null,null,null,null,null,null,null,null,null,null,null,null,null,null,null,null,null,null,null,null,null,null,null,null,null,null,null,null,null,71941.662785630979,71900]
["Putim",552,549801,1,0,0,0,0,"Jihočeský kraj",549240,"Písek",549240,"Písek",549240,"Písek",549240,"Písek",131456.11160288111,null,null,null,null,null,null,null,null,null,null,null,null,null,null,null,null,null,null,null,null,null,null,null,null,null,null,null,null,null,null,null,null,null,null,null,null,null,null,null,null,null,null,null,null,null,131456.11160288111,131500]
["Radějovice",46,536423,1,0,0,0,0,"Jihočeský kraj",550787,"Strakonice",550787,"Strakonice",550787,"Strakonice",550787,"Strakonice",71941.662785630979,null,null,null,null,null,null,null,null,null,null,null,null,null,null,null,null,null,null,null,null,null,null,null,null,null,null,null,null,null,null,null,null,null,null,null,null,null,null,null,null,null,null,null,null,null,71941.662785630979,71900]
["Radenín",497,552917,1,0,0,0,0,"Jihočeský kraj",552496,"Chýnov",552496,"Chýnov",552046,"Tábor",552046,"Tábor",118517.7802290488,null,null,null,null,null,null,null,null,null,null,null,null,null,null,null,null,null,null,null,null,null,null,null,null,null,3,{"$f":"AR422*30500","v":91500},null,null,null,null,null,null,null,null,null,null,null,null,null,null,null,null,null,null,210017.7802290488,210000]
["Radětice",251,552925,1,0,0,0,0,"Jihočeský kraj",552054,"Bechyně",552054,"Bechyně",552054,"Bechyně",552046,"Tábor",71941.662785630979,null,null,null,null,null,null,null,null,null,null,null,null,null,null,null,null,null,null,null,null,null,null,null,null,null,null,null,null,null,null,null,null,null,null,null,null,null,null,null,null,null,null,null,null,null,71941.662785630979,71900]
["Radhostice",149,550485,1,0,0,0,0,"Jihočeský kraj",550663,"Vlachovo Březí",550094,"Prachatice",550094,"Prachatice",550094,"Prachatice",71941.662785630979,null,null,null,null,null,null,null,null,null,null,null,null,null,null,null,null,null,null,null,null,null,null,null,null,null,null,null,null,null,null,null,null,null,null,null,null,null,null,null,null,null,null,null,null,null,71941.662785630979,71900]
["Radimovice u Tábora",62,563196,1,0,0,0,0,"Jihočeský kraj",552046,"Tábor",552046,"Tábor",552046,"Tábor",552046,"Tábor",71941.662785630979,null,null,null,null,null,null,null,null,null,null,null,null,null,null,null,null,null,null,null,null,null,null,null,null,null,null,null,null,null,null,null,null,null,null,null,null,null,null,null,null,null,null,null,null,null,71941.662785630979,71900]
["Radimovice u Želče",444,552933,1,0,0,0,0,"Jihočeský kraj",552666,"Malšice",552046,"Tábor",552046,"Tábor",552046,"Tábor",106024.5785016243,null,null,null,null,null,null,null,null,null,null,null,null,null,null,null,null,null,null,null,null,null,null,null,null,null,null,null,null,null,null,null,null,null,null,null,null,null,null,null,null,null,null,null,null,null,106024.5785016243,106000]
["Radkov",169,552941,1,0,0,0,0,"Jihočeský kraj",552046,"Tábor",552046,"Tábor",552046,"Tábor",552046,"Tábor",71941.662785630979,null,null,null,null,null,null,null,null,null,null,null,null,null,null,null,null,null,null,null,null,null,null,null,null,null,null,null,null,null,null,null,null,null,null,null,null,null,null,null,null,null,null,null,null,null,71941.662785630979,71900]
["Radomyšl",1366,551660,1,1,0,0,0,"Jihočeský kraj",551660,"Radomyšl",550787,"Strakonice",550787,"Strakonice",550787,"Strakonice",320467.19566848013,{"$f":"SUMIFS($B:$B,$J:$J,$C428)","v":2846},154759.8348601881,0,{"$f":"U428*768","v":0},13,{"$f":"W428*3072","v":39936},7,{"$f":"Y428*1024","v":7168},2,{"$f":"AA428*256","v":512},null,null,null,null,null,null,null,null,null,null,null,null,null,null,null,null,null,null,null,null,null,null,null,null,null,null,null,null,null,null,null,null,null,null,null,522843.0305286682,522800]
["Radošovice",632,551678,1,0,0,0,0,"Jihočeský kraj",550787,"Strakonice",550787,"Strakonice",550787,"Strakonice",550787,"Strakonice",150230.59173374431,null,null,null,null,null,null,null,null,null,null,null,null,null,null,null,null,null,null,null,null,null,null,null,null,null,1,{"$f":"AR429*30500","v":30500},null,null,null,null,null,null,null,null,null,null,null,null,null,null,null,null,null,null,180730.59173374431,180700]
["Radošovice",204,544965,1,0,0,0,0,"Jihočeský kraj",544442,"Dubné",544256,"České Budějovice",544256,"České Budějovice",544256,"České Budějovice",71941.662785630979,null,null,null,null,null,null,null,null,null,null,null,null,null,null,null,null,null,null,null,null,null,null,null,null,null,null,null,null,null,null,null,null,null,null,null,null,null,null,null,null,null,null,null,null,null,71941.662785630979,71900]
["Rakovice",225,562068,1,0,0,0,0,"Jihočeský kraj",549339,"Čimelice",549584,"Mirotice",549584,"Mirotice",549240,"Písek",71941.662785630979,null,null,null,null,null,null,null,null,null,null,null,null,null,null,null,null,null,null,null,null,null,null,null,null,null,4,{"$f":"AR431*30500","v":122000},null,null,null,null,null,null,null,null,null,null,null,null,null,null,null,null,null,null,193941.66278563096,193900]
["Rapšach",601,547069,1,0,0,0,0,"Jihočeský kraj",547280,"Suchdol nad Lužnicí",547280,"Suchdol nad Lužnicí",547280,"Suchdol nad Lužnicí",547336,"Třeboň",142961.59328417431,null,null,null,null,null,null,null,null,null,null,null,null,null,null,null,null,null,null,null,null,null,null,null,null,null,1,{"$f":"AR432*30500","v":30500},null,null,null,null,null,null,null,null,null,null,null,null,null,null,null,null,null,null,173461.59328417431,173500]
["Rataje",219,552976,1,0,0,0,0,"Jihočeský kraj",552054,"Bechyně",552054,"Bechyně",552054,"Bechyně",552046,"Tábor",71941.662785630979,null,null,null,null,null,null,null,null,null,null,null,null,null,null,null,null,null,null,null,null,null,null,null,null,null,null,null,null,null,null,null,null,null,null,null,null,null,null,null,null,null,null,null,null,null,71941.662785630979,71900]
["Ratiboř",206,507784,1,0,0,0,0,"Jihočeský kraj",545881,"Jindřichův Hradec",545881,"Jindřichův Hradec",545881,"Jindřichův Hradec",545881,"Jindřichův Hradec",71941.662785630979,null,null,null,null,null,null,null,null,null,null,null,null,null,null,null,null,null,null,null,null,null,null,null,null,null,null,null,null,null,null,null,null,null,null,null,null,null,null,null,null,null,null,null,null,null,71941.662785630979,71900]
["Ratibořské Hory",815,552992,1,1,0,0,0,"Jihočeský kraj",552992,"Ratibořské Hory",552046,"Tábor",552046,"Tábor",552046,"Tábor",192994.53205385481,{"$f":"SUMIFS($B:$B,$J:$J,$C435)","v":1175},64012.676890846567,0,{"$f":"U435*768","v":0},5,{"$f":"W435*3072","v":15360},3,{"$f":"Y435*1024","v":3072},1,{"$f":"AA435*256","v":256},null,null,null,null,null,null,null,null,null,null,null,null,null,null,null,null,null,null,null,null,null,null,null,null,null,null,null,null,null,null,null,null,null,null,null,275695.20894470136,275700]
["Ražice",406,549827,1,0,0,0,0,"Jihočeský kraj",549240,"Písek",549240,"Písek",549240,"Písek",549240,"Písek",97051.009771999277,null,null,null,null,null,null,null,null,null,null,null,null,null,null,null,null,null,null,null,null,null,null,null,null,null,null,null,null,null,null,null,null,null,null,null,null,null,null,null,null,null,null,null,null,null,97051.009771999277,97100]
["Rodná",94,560626,1,0,0,0,0,"Jihočeský kraj",552992,"Ratibořské Hory",552704,"Mladá Vožice",552046,"Tábor",552046,"Tábor",71941.662785630979,null,null,null,null,null,null,null,null,null,null,null,null,null,null,null,null,null,null,null,null,null,null,null,null,null,null,null,null,null,null,null,null,null,null,null,null,null,null,null,null,null,null,null,null,null,71941.662785630979,71900]
["Rodvínov",631,547085,1,0,0,0,0,"Jihočeský kraj",545881,"Jindřichův Hradec",545881,"Jindřichův Hradec",545881,"Jindřichův Hradec",545881,"Jindřichův Hradec",149996.22583169799,null,null,null,null,null,null,null,null,null,null,null,null,null,null,null,null,null,null,null,null,null,null,null,null,null,null,null,null,null,null,null,null,null,null,null,null,null,null,null,null,null,null,null,null,null,149996.22583169799,150000]
["Roseč",221,508004,1,0,0,0,0,"Jihočeský kraj",545881,"Jindřichův Hradec",545881,"Jindřichův Hradec",545881,"Jindřichův Hradec",545881,"Jindřichův Hradec",71941.662785630979,null,null,null,null,null,null,null,null,null,null,null,null,null,null,null,null,null,null,null,null,null,null,null,null,null,null,null,null,null,null,null,null,null,null,null,null,null,null,null,null,null,null,null,null,null,71941.662785630979,71900]
["Rosička",63,560995,1,0,0,0,0,"Jihočeský kraj",546151,"Deštná",545881,"Jindřichův Hradec",545881,"Jindřichův Hradec",545881,"Jindřichův Hradec",71941.662785630979,null,null,null,null,null,null,null,null,null,null,null,null,null,null,null,null,null,null,null,null,null,null,null,null,null,null,null,null,null,null,null,null,null,null,null,null,null,null,null,null,null,null,null,null,null,71941.662785630979,71900]
["Roudná",568,553018,1,0,0,0,0,"Jihočeský kraj",553131,"Soběslav",553131,"Soběslav",553131,"Soběslav",553131,"Soběslav",135215.16989925879,null,null,null,null,null,null,null,null,null,null,null,null,null,null,null,null,null,null,null,null,null,null,null,null,null,null,null,null,null,null,null,null,null,null,null,null,null,null,null,null,null,null,null,null,null,135215.16989925879,135200]
["Roudné",1514,544973,1,0,0,0,0,"Jihočeský kraj",544256,"České Budějovice",544256,"České Budějovice",544256,"České Budějovice",544256,"České Budějovice",354424.57210460649,null,null,null,null,null,null,null,null,null,null,null,null,null,null,null,null,null,null,null,null,null,null,null,null,null,null,null,null,null,null,null,null,null,null,null,null,null,null,null,null,null,null,null,null,null,354424.57210460649,354400]
["Rovná",247,536865,1,0,0,0,0,"Jihočeský kraj",550787,"Strakonice",550787,"Strakonice",550787,"Strakonice",550787,"Strakonice",71941.662785630979,null,null,null,null,null,null,null,null,null,null,null,null,null,null,null,null,null,null,null,null,null,null,null,null,null,null,null,null,null,null,null,null,null,null,null,null,null,null,null,null,null,null,null,null,null,71941.662785630979,71900]
["Rožmberk nad Vltavou",375,545767,1,0,0,0,0,"Jihočeský kraj",545848,"Vyšší Brod",545848,"Vyšší Brod",545848,"Vyšší Brod",545392,"Český Krumlov",89719.944018305061,null,null,null,null,null,null,null,null,null,null,null,null,null,null,null,null,null,null,null,null,null,null,null,null,null,null,null,null,null,null,null,null,null,null,null,null,null,null,null,null,null,null,null,null,null,89719.944018305061,89700]
["Rožmitál na Šumavě",418,545775,1,1,0,0,0,"Jihočeský kraj",545775,"Rožmitál na Šumavě",545562,"Kaplice",545562,"Kaplice",545562,"Kaplice",99886.274863869141,{"$f":"SUMIFS($B:$B,$J:$J,$C445)","v":1044},56886.829218634091,0,{"$f":"U445*768","v":0},9,{"$f":"W445*3072","v":27648},2,{"$f":"Y445*1024","v":2048},1,{"$f":"AA445*256","v":256},null,null,null,null,null,null,null,null,null,null,null,null,null,null,null,null,null,null,null,null,null,null,null,null,null,null,null,null,null,null,null,null,null,null,null,186725.10408250324,186700]
["Rudolfov",2587,544981,1,1,1,0,0,"Jihočeský kraj",544981,"Rudolfov",544981,"Rudolfov",544256,"České Budějovice",544256,"České Budějovice",597735.98653053585,{"$f":"SUMIFS($B:$B,$J:$J,$C446)","v":6660},361166.68635026342,0,{"$f":"U446*768","v":0},18,{"$f":"W446*3072","v":55296},16,{"$f":"Y446*1024","v":16384},4,{"$f":"AA446*256","v":1024},{"$f":"SUMIFS($B:$B,$L:$L,$C446)","v":6660},{"$f":"(koeficienty!$C$4/(koeficienty!$B$4 + SQRT(IF(AC446<300,0.3,AC446/1000)))) * (IF(AC446<300,0.3,AC446/1000))","v":829916.4823647436},null,null,null,null,null,null,null,null,null,null,null,null,null,2,{"$f":"AR446*30500","v":61000},null,null,null,null,null,null,null,null,null,null,null,null,null,null,null,null,null,null,1922523.155245543,1922500]
["Řemíčov",99,560511,1,0,0,0,0,"Jihočeský kraj",552704,"Mladá Vožice",552704,"Mladá Vožice",552704,"Mladá Vožice",552046,"Tábor",71941.662785630979,null,null,null,null,null,null,null,null,null,null,null,null,null,null,null,null,null,null,null,null,null,null,null,null,null,null,null,null,null,null,null,null,null,null,null,null,null,null,null,null,null,null,null,null,null,71941.662785630979,71900]
["Řepeč",286,553034,1,0,0,0,0,"Jihočeský kraj",552801,"Opařany",552046,"Tábor",552046,"Tábor",552046,"Tábor",71941.662785630979,null,null,null,null,null,null,null,null,null,null,null,null,null,null,null,null,null,null,null,null,null,null,null,null,null,null,null,null,null,null,null,null,null,null,null,null,null,null,null,null,null,null,null,null,null,71941.662785630979,71900]
["Řepice",442,536849,1,0,0,0,0,"Jihočeský kraj",550787,"Strakonice",550787,"Strakonice",550787,"Strakonice",550787,"Strakonice",105552.6296400314,null,null,null,null,null,null,null,null,null,null,null,null,null,null,null,null,null,null,null,null,null,null,null,null,null,null,null,null,null,null,null,null,null,null,null,null,null,null,null,null,null,null,null,null,null,105552.6296400314,105600]
["Římov",1025,545007,1,0,0,0,0,"Jihočeský kraj",544663,"Kamenný Újezd",544256,"České Budějovice",544256,"České Budějovice",544256,"České Budějovice",241788.28464743489,null,null,null,null,null,null,null,null,null,null,null,null,null,null,null,null,null,null,null,null,null,null,null,null,null,null,null,null,null,null,null,null,null,null,null,null,null,null,null,null,null,null,null,null,null,241788.28464743489,241800]
["Řípec",339,599115,1,0,0,0,0,"Jihočeský kraj",553271,"Veselí nad Lužnicí",553271,"Veselí nad Lužnicí",553271,"Veselí nad Lužnicí",553131,"Soběslav",81194.00493711629,null,null,null,null,null,null,null,null,null,null,null,null,null,null,null,null,null,null,null,null,null,null,null,null,null,null,null,null,null,null,null,null,null,null,null,null,null,null,null,null,null,null,null,null,null,81194.00493711629,81200]
["Sedlec",534,545015,1,0,0,0,0,"Jihočeský kraj",545341,"Zliv",544256,"České Budějovice",544256,"České Budějovice",544256,"České Budějovice",127224.6062684153,null,null,null,null,null,null,null,null,null,null,null,null,null,null,null,null,null,null,null,null,null,null,null,null,null,null,null,null,null,null,null,null,null,null,null,null,null,null,null,null,null,null,null,null,null,{"$f":"SUMIF(R452:R452,\"<>\")+SUMIF(T452:T452,\"<>\")+SUMIF(V452:V452,\"<>\")+SUMIF(X452:X452,\"<>\")+SUMIF(Z452:Z452,\"<>\")+SUMIF(AB452:AB452,\"<>\")+SUMIF(AD452:AD452,\"<>\")+SUMIF(AF452:AF452,\"<>\")+SUMIF(AH452:AH452,\"<>\")+SUMIF(AJ452:AJ452,\"<>\")+SUMIF(AK452:AK452,\"<>\")+SUMIF(AM452:AM452,\"<>\")+SUMIF(AO452:AO452,\"<>\")+SUMIF(AQ452:AQ452,\"<>\")+SUMIF(AS452:AS452,\"<>\")+SUMIF(AU452:AU452,\"<>\")+SUMIF(AW452:AW452,\"<>\")+SUMIF(AY452:AY452,\"<>\")+SUMIF(BA452:BA452,\"<>\")+SUMIF(BC452:BC452,\"<>\")+SUMIF(BE452:BE452,\"<>\")+SUMIF(BG452:BG452,\"<>\")+SUMIF(BI452:BI452,\"<>\")+SUMIF(BK452:BK452,\"<>\")","v":127224.6062684153},{"$f":"ROUND(BL452/100,0)*100","v":127200}]
["Sedlečko u Soběslavě",222,599263,1,0,0,0,0,"Jihočeský kraj",553131,"Soběslav",553131,"Soběslav",553131,"Soběslav",553131,"Soběslav",71941.662785630979,null,null,null,null,null,null,null,null,null,null,null,null,null,null,null,null,null,null,null,null,null,null,null,null,null,null,null,null,null,null,null,null,null,null,null,null,null,null,null,null,null,null,null,null,null,71941.662785630979,71900]
["Sedlice",1276,551716,1,1,0,0,0,"Jihočeský kraj",551716,"Sedlice",550850,"Blatná",550850,"Blatná",550850,"Blatná",299763.04155022069,{"$f":"SUMIFS($B:$B,$J:$J,$C454)","v":1703},92714.497156321304,0,{"$f":"U454*768","v":0},3,{"$f":"W454*3072","v":9216},9,{"$f":"Y454*1024","v":9216},4,{"$f":"AA454*256","v":1024},null,null,null,null,null,null,null,null,null,null,null,null,null,null,null,null,null,null,null,null,null,null,null,null,null,null,null,null,null,null,null,null,null,null,null,411933.53870654199,411900]
["Sepekov",1356,549843,1,1,0,0,0,"Jihočeský kraj",549843,"Sepekov",549576,"Milevsko",549576,"Milevsko",549576,"Milevsko",318168.80900002568,{"$f":"SUMIFS($B:$B,$J:$J,$C455)","v":1703},92714.497156321304,0,{"$f":"U455*768","v":0},12,{"$f":"W455*3072","v":36864},6,{"$f":"Y455*1024","v":6144},0,{"$f":"AA455*256","v":0},null,null,null,null,null,null,null,null,null,null,null,null,null,null,null,null,null,null,null,null,null,null,null,null,null,null,null,null,null,null,null,null,null,null,null,453891.30615634698,453900]
["Sezimovo Ústí",7097,553069,1,1,1,1,0,"Jihočeský kraj",553069,"Sezimovo Ústí",553069,"Sezimovo Ústí",553069,"Sezimovo Ústí",552046,"Tábor",1582317.8831872139,{"$f":"SUMIFS($B:$B,$J:$J,$C456)","v":7097},384766.70762309968,0,{"$f":"U456*768","v":0},16,{"$f":"W456*3072","v":49152},20,{"$f":"Y456*1024","v":20480},11,{"$f":"AA456*256","v":2816},{"$f":"SUMIFS($B:$B,$L:$L,$C456)","v":12889},{"$f":"(koeficienty!$C$4/(koeficienty!$B$4 + SQRT(IF(AC456<300,0.3,AC456/1000)))) * (IF(AC456<300,0.3,AC456/1000))","v":1593258.592911951},null,null,{"$f":"SUMIFS($B:$B,$N:$N,$C456)","v":12485},1400926.9595087541,null,null,null,null,null,null,null,null,null,4,{"$f":"AR456*30500","v":122000},null,null,null,null,null,null,null,null,null,null,null,null,null,null,null,null,null,null,5155718.1432310184,5155700]
["Skalice",537,553077,1,0,0,0,0,"Jihočeský kraj",553131,"Soběslav",553131,"Soběslav",553131,"Soběslav",553131,"Soběslav",127930.04765215921,null,null,null,null,null,null,null,null,null,null,null,null,null,null,null,null,null,null,null,null,null,null,null,null,null,null,null,null,null,null,null,null,null,null,null,null,null,null,null,null,null,null,null,null,null,127930.04765215921,127900]
["Skály",77,598909,1,0,0,0,0,"Jihočeský kraj",550787,"Strakonice",550787,"Strakonice",550787,"Strakonice",550787,"Strakonice",71941.662785630979,null,null,null,null,null,null,null,null,null,null,null,null,null,null,null,null,null,null,null,null,null,null,null,null,null,null,null,null,null,null,null,null,null,null,null,null,null,null,null,null,null,null,null,null,null,71941.662785630979,71900]
["Skály",318,549851,1,0,0,0,0,"Jihočeský kraj",549771,"Protivín",549771,"Protivín",549771,"Protivín",549240,"Písek",76214.092833710165,null,null,null,null,null,null,null,null,null,null,null,null,null,null,null,null,null,null,null,null,null,null,null,null,null,null,null,null,null,null,null,null,null,null,null,null,null,null,null,null,null,null,null,null,null,76214.092833710165,76200]
["Skočice",237,551741,1,0,0,0,0,"Jihočeský kraj",551953,"Vodňany",551953,"Vodňany",551953,"Vodňany",551953,"Vodňany",71941.662785630979,null,null,null,null,null,null,null,null,null,null,null,null,null,null,null,null,null,null,null,null,null,null,null,null,null,null,null,null,null,null,null,null,null,null,null,null,null,null,null,null,null,null,null,null,null,71941.662785630979,71900]
["Skopytce",170,553085,1,0,0,0,0,"Jihočeský kraj",552470,"Choustník",552046,"Tábor",552046,"Tábor",552046,"Tábor",71941.662785630979,null,null,null,null,null,null,null,null,null,null,null,null,null,null,null,null,null,null,null,null,null,null,null,null,null,null,null,null,null,null,null,null,null,null,null,null,null,null,null,null,null,null,null,null,null,71941.662785630979,71900]
["Skrýchov u Malšic",150,560669,1,0,0,0,0,"Jihočeský kraj",552828,"Planá nad Lužnicí",552046,"Tábor",552046,"Tábor",552046,"Tábor",71941.662785630979,null,null,null,null,null,null,null,null,null,null,null,null,null,null,null,null,null,null,null,null,null,null,null,null,null,null,null,null,null,null,null,null,null,null,null,null,null,null,null,null,null,null,null,null,null,71941.662785630979,71900]
["Slabčice",370,549860,1,0,0,0,0,"Jihočeský kraj",549240,"Písek",549266,"Bernartice",549240,"Písek",549240,"Písek",88536.599103819099,null,null,null,null,null,null,null,null,null,null,null,null,null,null,null,null,null,null,null,null,null,null,null,null,null,null,null,null,null,null,null,null,null,null,null,null,null,null,null,null,null,null,null,null,null,88536.599103819099,88500]
["Slaník",147,536776,1,0,0,0,0,"Jihočeský kraj",551856,"Štěkeň",550787,"Strakonice",550787,"Strakonice",550787,"Strakonice",71941.662785630979,null,null,null,null,null,null,null,null,null,null,null,null,null,null,null,null,null,null,null,null,null,null,null,null,null,null,null,null,null,null,null,null,null,null,null,null,null,null,null,null,null,null,null,null,null,71941.662785630979,71900]
["Slapsko",126,599026,1,0,0,0,0,"Jihočeský kraj",552704,"Mladá Vožice",552704,"Mladá Vožice",552704,"Mladá Vožice",552046,"Tábor",71941.662785630979,null,null,null,null,null,null,null,null,null,null,null,null,null,null,null,null,null,null,null,null,null,null,null,null,null,null,null,null,null,null,null,null,null,null,null,null,null,null,null,null,null,null,null,null,null,71941.662785630979,71900]
["Slapy",511,599042,1,0,0,0,0,"Jihočeský kraj",552666,"Malšice",552046,"Tábor",552046,"Tábor",552046,"Tábor",121813.6559350817,null,null,null,null,null,null,null,null,null,null,null,null,null,null,null,null,null,null,null,null,null,null,null,null,null,null,null,null,null,null,null,null,null,null,null,null,null,null,null,null,null,null,null,null,null,121813.6559350817,121800]
["Slavče",742,545023,1,0,0,0,0,"Jihočeský kraj",545171,"Trhové Sviny",545171,"Trhové Sviny",545171,"Trhové Sviny",545171,"Trhové Sviny",175964.66817382359,null,null,null,null,null,null,null,null,null,null,null,null,null,null,null,null,null,null,null,null,null,null,null,null,null,null,null,null,null,null,null,null,null,null,null,null,null,null,null,null,null,null,null,null,null,175964.66817382359,176000]
["Slavonice",2229,547166,1,1,1,1,0,"Jihočeský kraj",547166,"Slavonice",547166,"Slavonice",547166,"Slavonice",546127,"Dačice",517072.40173750313,{"$f":"SUMIFS($B:$B,$J:$J,$C468)","v":2717},147762.61565756419,0,{"$f":"U468*768","v":0},6,{"$f":"W468*3072","v":18432},4,{"$f":"Y468*1024","v":4096},6,{"$f":"AA468*256","v":1536},{"$f":"SUMIFS($B:$B,$L:$L,$C468)","v":3350},{"$f":"(koeficienty!$C$4/(koeficienty!$B$4 + SQRT(IF(AC468<300,0.3,AC468/1000)))) * (IF(AC468<300,0.3,AC468/1000))","v":419971.71138474625},null,null,{"$f":"SUMIFS($B:$B,$N:$N,$C468)","v":3350},379427.34032368648,null,null,null,null,null,null,null,null,null,3,{"$f":"AR468*30500","v":91500},null,null,null,null,null,null,null,null,null,null,null,null,null,null,null,null,null,null,1579798.0691034999,1579800]
["Smetanova Lhota",272,549878,1,0,0,0,0,"Jihočeský kraj",549339,"Čimelice",549584,"Mirotice",549584,"Mirotice",549240,"Písek",71941.662785630979,null,null,null,null,null,null,null,null,null,null,null,null,null,null,null,null,null,null,null,null,null,null,null,null,null,null,null,null,null,null,null,null,null,null,null,null,null,null,null,null,null,null,null,null,null,71941.662785630979,71900]
["Smilovy Hory",357,553123,1,0,0,0,0,"Jihočeský kraj",552704,"Mladá Vožice",552704,"Mladá Vožice",552704,"Mladá Vožice",552046,"Tábor",85458.685346803439,null,null,null,null,null,null,null,null,null,null,null,null,null,null,null,null,null,null,null,null,null,null,null,null,null,1,{"$f":"AR470*30500","v":30500},null,null,null,null,null,null,null,null,null,null,null,null,null,null,null,null,null,null,115958.68534680344,116000]
["Smržov",110,561045,1,0,0,0,0,"Jihočeský kraj",546674,"Lomnice nad Lužnicí",547336,"Třeboň",547336,"Třeboň",547336,"Třeboň",71941.662785630979,null,null,null,null,null,null,null,null,null,null,null,null,null,null,null,null,null,null,null,null,null,null,null,null,null,null,null,null,null,null,null,null,null,null,null,null,null,null,null,null,null,null,null,null,null,71941.662785630979,71900]
["Soběnov",380,545805,1,0,0,0,0,"Jihočeský kraj",545562,"Kaplice",545562,"Kaplice",545562,"Kaplice",545562,"Kaplice",90903.031727811001,null,null,null,null,null,null,null,null,null,null,null,null,null,null,null,null,null,null,null,null,null,null,null,null,null,null,null,null,null,null,null,null,null,null,null,null,null,null,null,null,null,null,null,null,null,90903.031727811001,90900]
["Soběslav",7070,553131,1,1,1,1,1,"Jihočeský kraj",553131,"Soběslav",553131,"Soběslav",553131,"Soběslav",553131,"Soběslav",334076.10848105722,{"$f":"SUMIFS($B:$B,$J:$J,$C473)","v":11811},267778.38301136368,1,{"$f":"U473*768","v":768},45,{"$f":"W473*3072","v":138240},44,{"$f":"Y473*1024","v":45056},34,{"$f":"AA473*256","v":8704},{"$f":"SUMIFS($B:$B,$L:$L,$C473)","v":13680},897308.26592782256,{"$f":"SUMIFS($B:$B,$P:$P,$C473)","v":22659},1414706.086694832,{"$f":"SUMIFS($B:$B,$N:$N,$C473)","v":13680},2428809.2279088022,{"$f":"SUMIFS($B:$B,$P:$P,$C473)","v":22659},13879787.082990911,null,2974,{"$f":"AL473*141","v":419334},null,null,null,null,2,{"$f":"AR473*30500","v":61000},211,{"$f":"AT473*2742","v":578562},1,{"$f":"AV473*914","v":914},1026,{"$f":"AX473*141","v":144666},852,{"$f":"AZ473*343","v":292236},1248,{"$f":"BB473*109","v":136032},109,{"$f":"BD473*82","v":8938},1670,{"$f":"BF473*328","v":547760},108,{"$f":"BH473*410","v":44280},44,{"$f":"BJ473*219","v":9636},21658591.155014791,21658600]
["Sousedovice",349,551759,1,0,0,0,0,"Jihočeský kraj",550787,"Strakonice",550787,"Strakonice",550787,"Strakonice",550787,"Strakonice",83563.699734347145,null,null,null,null,null,null,null,null,null,null,null,null,null,null,null,null,null,null,null,null,null,null,null,null,null,null,null,null,null,null,null,null,null,null,null,null,null,null,null,null,null,null,null,null,null,83563.699734347145,83600]
["Srnín",366,536245,1,0,0,0,0,"Jihočeský kraj",545392,"Český Krumlov",545392,"Český Krumlov",545392,"Český Krumlov",545392,"Český Krumlov",87589.736754300058,null,null,null,null,null,null,null,null,null,null,null,null,null,null,null,null,null,null,null,null,null,null,null,null,null,null,null,null,null,null,null,null,null,null,null,null,null,null,null,null,null,null,null,null,null,87589.736754300058,87600]
["Srubec",2998,545066,1,0,0,0,0,"Jihočeský kraj",544256,"České Budějovice",544256,"České Budějovice",544256,"České Budějovice",544256,"České Budějovice",689778.48897498637,null,null,null,null,null,null,null,null,null,null,null,null,null,null,null,null,null,null,null,null,null,null,null,null,null,null,null,null,null,null,null,null,null,null,null,null,null,null,null,null,null,null,null,null,null,689778.48897498637,689800]
["Stádlec",588,553140,1,1,0,0,0,"Jihočeský kraj",553140,"Stádlec",552046,"Tábor",552046,"Tábor",552046,"Tábor",139911.026852735,{"$f":"SUMIFS($B:$B,$J:$J,$C477)","v":588},32064.856928339861,0,{"$f":"U477*768","v":0},2,{"$f":"W477*3072","v":6144},0,{"$f":"Y477*1024","v":0},1,{"$f":"AA477*256","v":256},null,null,null,null,null,null,null,null,null,null,null,null,null,null,null,1,{"$f":"AR477*30500","v":30500},null,null,null,null,null,null,null,null,null,null,null,null,null,null,null,null,null,null,208875.88378107487,208900]
["Stachy",1114,550515,1,1,0,0,0,"Jihočeský kraj",550515,"Stachy",550647,"Vimperk",550647,"Vimperk",550647,"Vimperk",262385.89382440172,{"$f":"SUMIFS($B:$B,$J:$J,$C478)","v":1199},65317.957095686012,0,{"$f":"U478*768","v":0},7,{"$f":"W478*3072","v":21504},18,{"$f":"Y478*1024","v":18432},1,{"$f":"AA478*256","v":256},null,null,null,null,null,null,null,null,null,null,null,null,null,null,null,5,{"$f":"AR478*30500","v":152500},null,null,null,null,null,null,null,null,null,null,null,null,null,null,null,null,null,null,520395.85092008772,520400]
["Staňkov",202,562378,1,0,0,0,0,"Jihočeský kraj",546461,"Chlum u Třeboně",547336,"Třeboň",547336,"Třeboň",547336,"Třeboň",71941.662785630979,null,null,null,null,null,null,null,null,null,null,null,null,null,null,null,null,null,null,null,null,null,null,null,null,null,null,null,null,null,null,null,null,null,null,null,null,null,null,null,null,null,null,null,null,null,71941.662785630979,71900]
["Staré Hobzí",522,547204,1,0,0,0,0,"Jihočeský kraj",546127,"Dačice",546127,"Dačice",546127,"Dačice",546127,"Dačice",124402.0711220909,null,null,null,null,null,null,null,null,null,null,null,null,null,null,null,null,null,null,null,null,null,null,null,null,null,null,null,null,null,null,null,null,null,null,null,null,null,null,null,null,null,null,null,null,null,124402.0711220909,124400]
["Staré Hodějovice",1345,545074,1,0,0,0,0,"Jihočeský kraj",544256,"České Budějovice",544256,"České Budějovice",544256,"České Budějovice",544256,"České Budějovice",315639.99024278711,null,null,null,null,null,null,null,null,null,null,null,null,null,null,null,null,null,null,null,null,null,null,null,null,null,null,null,null,null,null,null,null,null,null,null,null,null,null,null,null,null,null,null,null,null,315639.99024278711,315600]
["Staré Město pod Landštejnem",475,547212,1,0,0,0,0,"Jihočeský kraj",546798,"Nová Bystřice",546798,"Nová Bystřice",546798,"Nová Bystřice",545881,"Jindřichův Hradec",113335.028581123,null,null,null,null,null,null,null,null,null,null,null,null,null,null,null,null,null,null,null,null,null,null,null,null,null,null,null,null,null,null,null,null,null,null,null,null,null,null,null,null,null,null,null,null,null,113335.028581123,113300]
["Stehlovice",88,529885,1,0,0,0,0,"Jihočeský kraj",549576,"Milevsko",549576,"Milevsko",549576,"Milevsko",549576,"Milevsko",71941.662785630979,null,null,null,null,null,null,null,null,null,null,null,null,null,null,null,null,null,null,null,null,null,null,null,null,null,null,null,null,null,null,null,null,null,null,null,null,null,null,null,null,null,null,null,null,null,71941.662785630979,71900]
["Stožec",220,550523,1,0,0,0,0,"Jihočeský kraj",550671,"Volary",550671,"Volary",550671,"Volary",550094,"Prachatice",71941.662785630979,null,null,null,null,null,null,null,null,null,null,null,null,null,null,null,null,null,null,null,null,null,null,null,null,null,null,null,null,null,null,null,null,null,null,null,null,null,null,null,null,null,null,null,null,null,71941.662785630979,71900]
["Stožice",486,530034,1,0,0,0,0,"Jihočeský kraj",551953,"Vodňany",551953,"Vodňany",551953,"Vodňany",551953,"Vodňany",115926.94680124021,null,null,null,null,null,null,null,null,null,null,null,null,null,null,null,null,null,null,null,null,null,null,null,null,null,null,null,null,null,null,null,null,null,null,null,null,null,null,null,null,null,null,null,null,null,115926.94680124021,115900]
["Strakonice",22355,550787,1,1,1,1,1,"Jihočeský kraj",550787,"Strakonice",550787,"Strakonice",550787,"Strakonice",550787,"Strakonice",992370.65913065011,{"$f":"SUMIFS($B:$B,$J:$J,$C486)","v":27373},586804.5094813446,503,{"$f":"U486*768","v":386304},124,{"$f":"W486*3072","v":380928},592,{"$f":"Y486*1024","v":606208},132,{"$f":"AA486*256","v":33792},{"$f":"SUMIFS($B:$B,$L:$L,$C486)","v":37616},2370401.7779072919,{"$f":"SUMIFS($B:$B,$P:$P,$C486)","v":45205},2694017.5230614678,{"$f":"SUMIFS($B:$B,$N:$N,$C486)","v":37616},6352652.8272524588,{"$f":"SUMIFS($B:$B,$P:$P,$C486)","v":45205},20865497.566293079,null,5573,{"$f":"AL486*141","v":785793},null,null,null,null,27,{"$f":"AR486*30500","v":823500},321,{"$f":"AT486*2742","v":880182},0,{"$f":"AV486*914","v":0},1943,{"$f":"AX486*141","v":273963},1488,{"$f":"AZ486*343","v":510384},554,{"$f":"BB486*109","v":60386},8,{"$f":"BD486*82","v":656},630,{"$f":"BF486*328","v":206640},9,{"$f":"BH486*410","v":3690},0,{"$f":"BJ486*219","v":0},38814170.863126293,38814200]
["Strašice",175,551775,1,0,0,0,0,"Jihočeský kraj",551201,"Katovice",550787,"Strakonice",550787,"Strakonice",550787,"Strakonice",71941.662785630979,null,null,null,null,null,null,null,null,null,null,null,null,null,null,null,null,null,null,null,null,null,null,null,null,null,null,null,null,null,null,null,null,null,null,null,null,null,null,null,null,null,null,null,null,null,71941.662785630979,71900]
["Stráž nad Nežárkou",879,547221,1,1,0,0,0,"Jihočeský kraj",547221,"Stráž nad Nežárkou",545881,"Jindřichův Hradec",545881,"Jindřichův Hradec",545881,"Jindřichův Hradec",207894.98169426899,{"$f":"SUMIFS($B:$B,$J:$J,$C488)","v":2581},140384.33710839789,0,{"$f":"U488*768","v":0},10,{"$f":"W488*3072","v":30720},10,{"$f":"Y488*1024","v":10240},4,{"$f":"AA488*256","v":1024},null,null,null,null,null,null,null,null,null,null,null,null,null,null,null,1,{"$f":"AR488*30500","v":30500},null,null,null,null,null,null,null,null,null,null,null,null,null,null,null,null,null,null,420763.31880266685,420800]
["Strážkovice",535,545082,1,0,0,0,0,"Jihočeský kraj",544256,"České Budějovice",544256,"České Budějovice",544256,"České Budějovice",544256,"České Budějovice",127459.7619103789,null,null,null,null,null,null,null,null,null,null,null,null,null,null,null,null,null,null,null,null,null,null,null,null,null,1,{"$f":"AR489*30500","v":30500},null,null,null,null,null,null,null,null,null,null,null,null,null,null,null,null,null,null,157959.7619103789,158000]
["Strážný",392,550531,1,0,0,0,0,"Jihočeský kraj",550647,"Vimperk",550647,"Vimperk",550647,"Vimperk",550647,"Vimperk",93741.403510419361,null,null,null,null,null,null,null,null,null,null,null,null,null,null,null,null,null,null,null,null,null,null,null,null,null,null,null,null,null,null,null,null,null,null,null,null,null,null,null,null,null,null,null,null,null,93741.403510419361,93700]
["Strmilov",1403,547239,1,1,0,0,0,"Jihočeský kraj",547239,"Strmilov",545881,"Jindřichův Hradec",545881,"Jindřichův Hradec",545881,"Jindřichův Hradec",328966.79382157518,{"$f":"SUMIFS($B:$B,$J:$J,$C491)","v":2008},109281.6303605257,0,{"$f":"U491*768","v":0},9,{"$f":"W491*3072","v":27648},10,{"$f":"Y491*1024","v":10240},1,{"$f":"AA491*256","v":256},null,null,null,null,null,null,null,null,null,null,null,null,null,null,null,null,null,null,null,null,null,null,null,null,null,null,null,null,null,null,null,null,null,null,null,476392.42418210086,476400]
["Strunkovice nad Blanicí",1317,550540,1,1,0,0,0,"Jihočeský kraj",550540,"Strunkovice nad Blanicí",550094,"Prachatice",550094,"Prachatice",550094,"Prachatice",309200.17284468061,{"$f":"SUMIFS($B:$B,$J:$J,$C492)","v":2221},120846.5525783003,0,{"$f":"U492*768","v":0},6,{"$f":"W492*3072","v":18432},4,{"$f":"Y492*1024","v":4096},7,{"$f":"AA492*256","v":1792},null,null,null,null,null,null,null,null,null,null,null,null,null,null,null,1,{"$f":"AR492*30500","v":30500},null,null,null,null,null,null,null,null,null,null,null,null,null,null,null,null,null,null,484866.7254229809,484900]
["Strunkovice nad Volyňkou",130,536784,1,0,0,0,0,"Jihočeský kraj",550787,"Strakonice",551970,"Volyně",551970,"Volyně",550787,"Strakonice",71941.662785630979,null,null,null,null,null,null,null,null,null,null,null,null,null,null,null,null,null,null,null,null,null,null,null,null,null,null,null,null,null,null,null,null,null,null,null,null,null,null,null,null,null,null,null,null,null,71941.662785630979,71900]
["Strýčice",54,536032,1,0,0,0,0,"Jihočeský kraj",544442,"Dubné",544256,"České Budějovice",544256,"České Budějovice",544256,"České Budějovice",71941.662785630979,null,null,null,null,null,null,null,null,null,null,null,null,null,null,null,null,null,null,null,null,null,null,null,null,null,null,null,null,null,null,null,null,null,null,null,null,null,null,null,null,null,null,null,null,null,71941.662785630979,71900]
["Střelské Hoštice",905,551791,1,1,0,0,0,"Jihočeský kraj",551791,"Střelské Hoštice",550787,"Strakonice",550787,"Strakonice",550787,"Strakonice",213940.6025689989,{"$f":"SUMIFS($B:$B,$J:$J,$C495)","v":1592},86682.971937919807,0,{"$f":"U495*768","v":0},5,{"$f":"W495*3072","v":15360},7,{"$f":"Y495*1024","v":7168},2,{"$f":"AA495*256","v":512},null,null,null,null,null,null,null,null,null,null,null,null,null,null,null,1,{"$f":"AR495*30500","v":30500},null,null,null,null,null,null,null,null,null,null,null,null,null,null,null,null,null,null,354163.57450691873,354200]
["Stříbřec",425,547247,1,0,0,0,0,"Jihočeský kraj",547336,"Třeboň",547336,"Třeboň",547336,"Třeboň",547336,"Třeboň",101539.5321889257,null,null,null,null,null,null,null,null,null,null,null,null,null,null,null,null,null,null,null,null,null,null,null,null,null,null,null,null,null,null,null,null,null,null,null,null,null,null,null,null,null,null,null,null,null,101539.5321889257,101500]
["Střítež",422,551538,1,0,0,0,0,"Jihočeský kraj",545562,"Kaplice",545562,"Kaplice",545562,"Kaplice",545562,"Kaplice",100831.0513444518,null,null,null,null,null,null,null,null,null,null,null,null,null,null,null,null,null,null,null,null,null,null,null,null,null,null,null,null,null,null,null,null,null,null,null,null,null,null,null,null,null,null,null,null,null,100831.0513444518,100800]
["Střížov",220,545091,1,0,0,0,0,"Jihočeský kraj",544256,"České Budějovice",544256,"České Budějovice",544256,"České Budějovice",544256,"České Budějovice",71941.662785630979,null,null,null,null,null,null,null,null,null,null,null,null,null,null,null,null,null,null,null,null,null,null,null,null,null,null,null,null,null,null,null,null,null,null,null,null,null,null,null,null,null,null,null,null,null,71941.662785630979,71900]
["Střížovice",563,508152,1,0,0,0,0,"Jihočeský kraj",546615,"Kunžak",545881,"Jindřichův Hradec",545881,"Jindřichův Hradec",545881,"Jindřichův Hradec",134040.69252852959,null,null,null,null,null,null,null,null,null,null,null,null,null,null,null,null,null,null,null,null,null,null,null,null,null,null,null,null,null,null,null,null,null,null,null,null,null,null,null,null,null,null,null,null,null,134040.69252852959,134000]
["Studená",2190,547263,1,1,1,0,0,"Jihočeský kraj",547263,"Studená",547263,"Studená",546127,"Dačice",546127,"Dačice",508255.70522233029,{"$f":"SUMIFS($B:$B,$J:$J,$C500)","v":2475},134632.62502775271,0,{"$f":"U500*768","v":0},9,{"$f":"W500*3072","v":27648},14,{"$f":"Y500*1024","v":14336},5,{"$f":"AA500*256","v":1280},{"$f":"SUMIFS($B:$B,$L:$L,$C500)","v":2608},{"$f":"(koeficienty!$C$4/(koeficienty!$B$4 + SQRT(IF(AC500<300,0.3,AC500/1000)))) * (IF(AC500<300,0.3,AC500/1000))","v":327518.8363771119},null,null,null,null,null,null,null,null,null,null,null,null,null,null,null,null,null,null,null,null,null,null,null,null,null,null,null,null,null,null,null,null,null,1013671.166627195,1013700]
["Sudoměřice u Bechyně",776,553166,1,0,0,0,0,"Jihočeský kraj",552054,"Bechyně",552054,"Bechyně",552054,"Bechyně",552046,"Tábor",183901.00398417501,null,null,null,null,null,null,null,null,null,null,null,null,null,null,null,null,null,null,null,null,null,null,null,null,null,null,null,null,null,null,null,null,null,null,null,null,null,null,null,null,null,null,null,null,null,183901.00398417501,183900]
["Sudoměřice u Tábora",330,553174,1,0,0,0,0,"Jihočeský kraj",552461,"Chotoviny",552046,"Tábor",552046,"Tábor",552046,"Tábor",79060.352244789989,null,null,null,null,null,null,null,null,null,null,null,null,null,null,null,null,null,null,null,null,null,null,null,null,null,null,null,null,null,null,null,null,null,null,null,null,null,null,null,null,null,null,null,null,null,79060.352244789989,79100]
["Suchdol nad Lužnicí",3597,547280,1,1,1,1,0,"Jihočeský kraj",547280,"Suchdol nad Lužnicí",547280,"Suchdol nad Lužnicí",547280,"Suchdol nad Lužnicí",547336,"Třeboň",822940.95570891933,{"$f":"SUMIFS($B:$B,$J:$J,$C503)","v":4740},257364.5308821176,0,{"$f":"U503*768","v":0},14,{"$f":"W503*3072","v":43008},20,{"$f":"Y503*1024","v":20480},11,{"$f":"AA503*256","v":2816},{"$f":"SUMIFS($B:$B,$L:$L,$C503)","v":4740},{"$f":"(koeficienty!$C$4/(koeficienty!$B$4 + SQRT(IF(AC503<300,0.3,AC503/1000)))) * (IF(AC503<300,0.3,AC503/1000))","v":592574.36511558294},null,null,{"$f":"SUMIFS($B:$B,$N:$N,$C503)","v":4740},535837.19981179235,null,null,null,null,null,null,null,null,null,2,{"$f":"AR503*30500","v":61000},null,null,null,null,null,null,null,null,null,null,null,null,null,null,null,null,null,null,2336021.0515184123,2336000]
["Svatá Maří",615,550558,1,0,0,0,0,"Jihočeský kraj",550647,"Vimperk",550647,"Vimperk",550647,"Vimperk",550647,"Vimperk",146245.3065976451,null,null,null,null,null,null,null,null,null,null,null,null,null,null,null,null,null,null,null,null,null,null,null,null,null,1,{"$f":"AR504*30500","v":30500},null,null,null,null,null,null,null,null,null,null,null,null,null,null,null,null,null,null,176745.3065976451,176700]
["Svatý Jan nad Malší",640,545104,1,0,0,0,0,"Jihočeský kraj",545171,"Trhové Sviny",545171,"Trhové Sviny",545171,"Trhové Sviny",545171,"Trhové Sviny",152105.23909009781,null,null,null,null,null,null,null,null,null,null,null,null,null,null,null,null,null,null,null,null,null,null,null,null,null,null,null,null,null,null,null,null,null,null,null,null,null,null,null,null,null,null,null,null,null,152105.23909009781,152100]
["Světce",141,561029,1,0,0,0,0,"Jihočeský kraj",546151,"Deštná",545881,"Jindřichův Hradec",545881,"Jindřichův Hradec",545881,"Jindřichův Hradec",71941.662785630979,null,null,null,null,null,null,null,null,null,null,null,null,null,null,null,null,null,null,null,null,null,null,null,null,null,1,{"$f":"AR506*30500","v":30500},null,null,null,null,null,null,null,null,null,null,null,null,null,null,null,null,null,null,102441.66278563098,102400]
["Světlík",234,545813,1,0,0,0,0,"Jihočeský kraj",545830,"Větřní",545392,"Český Krumlov",545392,"Český Krumlov",545392,"Český Krumlov",71941.662785630979,null,null,null,null,null,null,null,null,null,null,null,null,null,null,null,null,null,null,null,null,null,null,null,null,null,null,null,null,null,null,null,null,null,null,null,null,null,null,null,null,null,null,null,null,null,71941.662785630979,71900]
["Sviny",334,553182,1,0,0,0,0,"Jihočeský kraj",553271,"Veselí nad Lužnicí",553271,"Veselí nad Lužnicí",553271,"Veselí nad Lužnicí",553131,"Soběslav",80008.751643555675,null,null,null,null,null,null,null,null,null,null,null,null,null,null,null,null,null,null,null,null,null,null,null,null,null,null,null,null,null,null,null,null,null,null,null,null,null,null,null,null,null,null,null,null,null,80008.751643555675,80000]
["Svrabov",51,563170,1,0,0,0,0,"Jihočeský kraj",552046,"Tábor",552046,"Tábor",552046,"Tábor",552046,"Tábor",71941.662785630979,null,null,null,null,null,null,null,null,null,null,null,null,null,null,null,null,null,null,null,null,null,null,null,null,null,null,null,null,null,null,null,null,null,null,null,null,null,null,null,null,null,null,null,null,null,71941.662785630979,71900]
["Šebířov",353,553204,1,0,0,0,0,"Jihočeský kraj",552704,"Mladá Vožice",552704,"Mladá Vožice",552704,"Mladá Vožice",552046,"Tábor",84511.27751876309,null,null,null,null,null,null,null,null,null,null,null,null,null,null,null,null,null,null,null,null,null,null,null,null,null,null,null,null,null,null,null,null,null,null,null,null,null,null,null,null,null,null,null,null,null,84511.27751876309,84500]
["Ševětín",1367,545121,1,1,0,0,0,"Jihočeský kraj",545121,"Ševětín",544256,"České Budějovice",544256,"České Budějovice",544256,"České Budějovice",320697.00616156543,{"$f":"SUMIFS($B:$B,$J:$J,$C511)","v":3697},200890.1329013241,0,{"$f":"U511*768","v":0},10,{"$f":"W511*3072","v":30720},13,{"$f":"Y511*1024","v":13312},3,{"$f":"AA511*256","v":768},null,null,null,null,null,null,null,null,null,null,null,null,null,null,null,null,null,null,null,null,null,null,null,null,null,null,null,null,null,null,null,null,null,null,null,566387.1390628895,566400]
["Škvořetice",315,551830,1,0,0,0,0,"Jihočeský kraj",551716,"Sedlice",550850,"Blatná",550850,"Blatná",550850,"Blatná",75502.276685008284,null,null,null,null,null,null,null,null,null,null,null,null,null,null,null,null,null,null,null,null,null,null,null,null,null,null,null,null,null,null,null,null,null,null,null,null,null,null,null,null,null,null,null,null,null,75502.276685008284,75500]
["Štěchovice",198,536920,1,0,0,0,0,"Jihočeský kraj",551201,"Katovice",550787,"Strakonice",550787,"Strakonice",550787,"Strakonice",71941.662785630979,null,null,null,null,null,null,null,null,null,null,null,null,null,null,null,null,null,null,null,null,null,null,null,null,null,null,null,null,null,null,null,null,null,null,null,null,null,null,null,null,null,null,null,null,null,71941.662785630979,71900]
["Štěkeň",889,551856,1,1,0,0,0,"Jihočeský kraj",551856,"Štěkeň",550787,"Strakonice",550787,"Strakonice",550787,"Strakonice",210220.73802621421,{"$f":"SUMIFS($B:$B,$J:$J,$C514)","v":2452},133384.49491748301,0,{"$f":"U514*768","v":0},13,{"$f":"W514*3072","v":39936},11,{"$f":"Y514*1024","v":11264},1,{"$f":"AA514*256","v":256},null,null,null,null,null,null,null,null,null,null,null,null,null,null,null,null,null,null,null,null,null,null,null,null,null,null,null,null,null,null,null,null,null,null,null,395061.23294369725,395100]
["Štěpánovice",997,545139,1,0,0,0,0,"Jihočeský kraj",544779,"Lišov",544779,"Lišov",544779,"Lišov",544256,"České Budějovice",235298.42429803489,null,null,null,null,null,null,null,null,null,null,null,null,null,null,null,null,null,null,null,null,null,null,null,null,null,null,null,null,null,null,null,null,null,null,null,null,null,null,null,null,null,null,null,null,null,235298.42429803489,235300]
["Šumavské Hoštice",416,550574,1,1,0,0,0,"Jihočeský kraj",550574,"Šumavské Hoštice",550647,"Vimperk",550647,"Vimperk",550647,"Vimperk",99413.82839429492,{"$f":"SUMIFS($B:$B,$J:$J,$C516)","v":848},46221.272476990103,0,{"$f":"U516*768","v":0},4,{"$f":"W516*3072","v":12288},2,{"$f":"Y516*1024","v":2048},0,{"$f":"AA516*256","v":0},null,null,null,null,null,null,null,null,null,null,null,null,null,null,null,null,null,null,null,null,null,null,null,null,null,null,null,null,null,null,null,null,null,null,null,{"$f":"SUMIF(R516:R516,\"<>\")+SUMIF(T516:T516,\"<>\")+SUMIF(V516:V516,\"<>\")+SUMIF(X516:X516,\"<>\")+SUMIF(Z516:Z516,\"<>\")+SUMIF(AB516:AB516,\"<>\")+SUMIF(AD516:AD516,\"<>\")+SUMIF(AF516:AF516,\"<>\")+SUMIF(AH516:AH516,\"<>\")+SUMIF(AJ516:AJ516,\"<>\")+SUMIF(AK516:AK516,\"<>\")+SUMIF(AM516:AM516,\"<>\")+SUMIF(AO516:AO516,\"<>\")+SUMIF(AQ516:AQ516,\"<>\")+SUMIF(AS516:AS516,\"<>\")+SUMIF(AU516:AU516,\"<>\")+SUMIF(AW516:AW516,\"<>\")+SUMIF(AY516:AY516,\"<>\")+SUMIF(BA516:BA516,\"<>\")+SUMIF(BC516:BC516,\"<>\")+SUMIF(BE516:BE516,\"<>\")+SUMIF(BG516:BG516,\"<>\")+SUMIF(BI516:BI516,\"<>\")+SUMIF(BK516:BK516,\"<>\")","v":159971.10087128502},{"$f":"ROUND(BL516/100,0)*100","v":160000}]
["Tábor",34356,552046,1,1,1,1,1,"Jihočeský kraj",552046,"Tábor",552046,"Tábor",552046,"Tábor",552046,"Tábor",1476156.8979367011,{"$f":"SUMIFS($B:$B,$J:$J,$C517)","v":36133},747812.54298682406,675,{"$f":"U517*768","v":518400},133,{"$f":"W517*3072","v":408576},685,{"$f":"Y517*1024","v":701440},198,{"$f":"AA517*256","v":50688},{"$f":"SUMIFS($B:$B,$L:$L,$C517)","v":49099},3012533.43007018,{"$f":"SUMIFS($B:$B,$P:$P,$C517)","v":81602},4803526.9266378032,{"$f":"SUMIFS($B:$B,$N:$N,$C517)","v":57565},9471982.3293061815,{"$f":"SUMIFS($B:$B,$P:$P,$C517)","v":81602},29840754.10062933,null,9439,{"$f":"AL517*141","v":1330899},null,null,null,null,46,{"$f":"AR517*30500","v":1403000},384,{"$f":"AT517*2742","v":1052928},41,{"$f":"AV517*914","v":37474},3197,{"$f":"AX517*141","v":450777},3536,{"$f":"AZ517*343","v":1212848},813,{"$f":"BB517*109","v":88617},105,{"$f":"BD517*82","v":8610},1030,{"$f":"BF517*328","v":337840},118,{"$f":"BH517*410","v":48380},16,{"$f":"BJ517*219","v":3504},57006747.227567017,57006700]
["Tálín",170,549932,1,0,0,0,0,"Jihočeský kraj",549771,"Protivín",549771,"Protivín",549771,"Protivín",549240,"Písek",71941.662785630979,null,null,null,null,null,null,null,null,null,null,null,null,null,null,null,null,null,null,null,null,null,null,null,null,null,null,null,null,null,null,null,null,null,null,null,null,null,null,null,null,null,null,null,null,null,71941.662785630979,71900]
["Temelín",905,545155,1,1,0,0,0,"Jihočeský kraj",545155,"Temelín",545201,"Týn nad Vltavou",545201,"Týn nad Vltavou",545201,"Týn nad Vltavou",213940.6025689989,{"$f":"SUMIFS($B:$B,$J:$J,$C519)","v":2095},114005.80299460021,0,{"$f":"U519*768","v":0},9,{"$f":"W519*3072","v":27648},7,{"$f":"Y519*1024","v":7168},2,{"$f":"AA519*256","v":512},null,null,null,null,null,null,null,null,null,null,null,null,null,null,null,null,null,null,null,null,null,null,null,null,null,null,null,null,null,null,null,null,null,null,null,363274.40556359908,363300]
["Temešvár",132,562271,1,0,0,0,0,"Jihočeský kraj",550027,"Záhoří",549240,"Písek",549240,"Písek",549240,"Písek",71941.662785630979,null,null,null,null,null,null,null,null,null,null,null,null,null,null,null,null,null,null,null,null,null,null,null,null,null,null,null,null,null,null,null,null,null,null,null,null,null,null,null,null,null,null,null,null,null,71941.662785630979,71900]
["Těšovice",320,550582,1,0,0,0,0,"Jihočeský kraj",550094,"Prachatice",550094,"Prachatice",550094,"Prachatice",550094,"Prachatice",76688.580783371697,null,null,null,null,null,null,null,null,null,null,null,null,null,null,null,null,null,null,null,null,null,null,null,null,null,null,null,null,null,null,null,null,null,null,null,null,null,null,null,null,null,null,null,null,null,76688.580783371697,76700]
["Tchořovice",238,536598,1,0,0,0,0,"Jihočeský kraj",551350,"Lnáře",550850,"Blatná",550850,"Blatná",550850,"Blatná",71941.662785630979,null,null,null,null,null,null,null,null,null,null,null,null,null,null,null,null,null,null,null,null,null,null,null,null,null,null,null,null,null,null,null,null,null,null,null,null,null,null,null,null,null,null,null,null,null,71941.662785630979,71900]
["Trhové Sviny",5262,545171,1,1,1,1,1,"Jihočeský kraj",545171,"Trhové Sviny",545171,"Trhové Sviny",545171,"Trhové Sviny",545171,"Trhové Sviny",251503.17868100299,{"$f":"SUMIFS($B:$B,$J:$J,$C523)","v":10385},240542.56243469939,0,{"$f":"U523*768","v":0},34,{"$f":"W523*3072","v":104448},45,{"$f":"Y523*1024","v":46080},29,{"$f":"AA523*256","v":7424},{"$f":"SUMIFS($B:$B,$L:$L,$C523)","v":10385},686038.10684887855,{"$f":"SUMIFS($B:$B,$P:$P,$C523)","v":19687},1241006.071215356,{"$f":"SUMIFS($B:$B,$N:$N,$C523)","v":15171},2713739.644142922,{"$f":"SUMIFS($B:$B,$P:$P,$C523)","v":19687},12746566.977874789,null,2417,{"$f":"AL523*141","v":340797},null,null,null,null,4,{"$f":"AR523*30500","v":122000},154,{"$f":"AT523*2742","v":422268},7,{"$f":"AV523*914","v":6398},803,{"$f":"AX523*141","v":113223},714,{"$f":"AZ523*343","v":244902},273,{"$f":"BB523*109","v":29757},13,{"$f":"BD523*82","v":1066},242,{"$f":"BF523*328","v":79376},15,{"$f":"BH523*410","v":6150},10,{"$f":"BJ523*219","v":2190},19405475.54119765,19405500]
["Truskovice",211,536512,1,0,0,0,0,"Jihočeský kraj",551953,"Vodňany",551953,"Vodňany",551953,"Vodňany",551953,"Vodňany",71941.662785630979,null,null,null,null,null,null,null,null,null,null,null,null,null,null,null,null,null,null,null,null,null,null,null,null,null,null,null,null,null,null,null,null,null,null,null,null,null,null,null,null,null,null,null,null,null,71941.662785630979,71900]
["Třebějice",70,563153,1,0,0,0,0,"Jihočeský kraj",552208,"Dírná",553131,"Soběslav",553131,"Soběslav",553131,"Soběslav",71941.662785630979,null,null,null,null,null,null,null,null,null,null,null,null,null,null,null,null,null,null,null,null,null,null,null,null,null,null,null,null,null,null,null,null,null,null,null,null,null,null,null,null,null,null,null,null,null,71941.662785630979,71900]
["Třebětice",324,562327,1,0,0,0,0,"Jihočeský kraj",546127,"Dačice",546127,"Dačice",546127,"Dačice",546127,"Dačice",77637.422589392256,null,null,null,null,null,null,null,null,null,null,null,null,null,null,null,null,null,null,null,null,null,null,null,null,null,null,null,null,null,null,null,null,null,null,null,null,null,null,null,null,null,null,null,null,null,77637.422589392256,77600]
["Třebohostice",309,551899,1,0,0,0,0,"Jihočeský kraj",551660,"Radomyšl",550787,"Strakonice",550787,"Strakonice",550787,"Strakonice",74078.339317696707,null,null,null,null,null,null,null,null,null,null,null,null,null,null,null,null,null,null,null,null,null,null,null,null,null,null,null,null,null,null,null,null,null,null,null,null,null,null,null,null,null,null,null,null,null,74078.339317696707,74100]
["Třeboň",8270,547336,1,1,1,1,1,"Jihočeský kraj",547336,"Třeboň",547336,"Třeboň",547336,"Třeboň",547336,"Třeboň",388157.77610983088,{"$f":"SUMIFS($B:$B,$J:$J,$C528)","v":9639},205687.9939909137,1,{"$f":"U528*768","v":768},76,{"$f":"W528*3072","v":233472},53,{"$f":"Y528*1024","v":54272},48,{"$f":"AA528*256","v":12288},{"$f":"SUMIFS($B:$B,$L:$L,$C528)","v":16104},1052941.8264776189,{"$f":"SUMIFS($B:$B,$P:$P,$C528)","v":24803},1540396.1939598781,{"$f":"SUMIFS($B:$B,$N:$N,$C528)","v":16104},2843002.740237325,{"$f":"SUMIFS($B:$B,$P:$P,$C528)","v":24803},14660993.588894811,null,3187,{"$f":"AL528*141","v":449367},null,null,null,null,6,{"$f":"AR528*30500","v":183000},191,{"$f":"AT528*2742","v":523722},0,{"$f":"AV528*914","v":0},1283,{"$f":"AX528*141","v":180903},976,{"$f":"AZ528*343","v":334768},1223,{"$f":"BB528*109","v":133307},171,{"$f":"BD528*82","v":14022},1364,{"$f":"BF528*328","v":447392},175,{"$f":"BH528*410","v":71750},64,{"$f":"BJ528*219","v":14016},23344227.119670376,23344200]
["Třešovice",67,536679,1,0,0,0,0,"Jihočeský kraj",550787,"Strakonice",550787,"Strakonice",550787,"Strakonice",550787,"Strakonice",71941.662785630979,null,null,null,null,null,null,null,null,null,null,null,null,null,null,null,null,null,null,null,null,null,null,null,null,null,null,null,null,null,null,null,null,null,null,null,null,null,null,null,null,null,null,null,null,null,71941.662785630979,71900]
["Tučapy",813,553239,1,1,0,0,0,"Jihočeský kraj",553239,"Tučapy",553131,"Soběslav",553131,"Soběslav",553131,"Soběslav",192528.45084248201,{"$f":"SUMIFS($B:$B,$J:$J,$C530)","v":1375},74888.037389311095,0,{"$f":"U530*768","v":0},7,{"$f":"W530*3072","v":21504},15,{"$f":"Y530*1024","v":15360},1,{"$f":"AA530*256","v":256},null,null,null,null,null,null,null,null,null,null,null,null,null,null,null,null,null,null,null,null,null,null,null,null,null,null,null,null,null,null,null,null,null,null,null,304536.4882317931,304500]
["Turovec",284,551601,1,0,0,0,0,"Jihočeský kraj",552496,"Chýnov",552496,"Chýnov",552046,"Tábor",552046,"Tábor",71941.662785630979,null,null,null,null,null,null,null,null,null,null,null,null,null,null,null,null,null,null,null,null,null,null,null,null,null,null,null,null,null,null,null,null,null,null,null,null,null,null,null,null,null,null,null,null,null,71941.662785630979,71900]
["Tvrzice",130,550604,1,0,0,0,0,"Jihočeský kraj",550663,"Vlachovo Březí",550094,"Prachatice",550094,"Prachatice",550094,"Prachatice",71941.662785630979,null,null,null,null,null,null,null,null,null,null,null,null,null,null,null,null,null,null,null,null,null,null,null,null,null,null,null,null,null,null,null,null,null,null,null,null,null,null,null,null,null,null,null,null,null,71941.662785630979,71900]
["Týn nad Vltavou",7774,545201,1,1,1,1,1,"Jihočeský kraj",545201,"Týn nad Vltavou",545201,"Týn nad Vltavou",545201,"Týn nad Vltavou",545201,"Týn nad Vltavou",365869.02653043281,{"$f":"SUMIFS($B:$B,$J:$J,$C533)","v":10091},219897.0273172101,0,{"$f":"U533*768","v":0},37,{"$f":"W533*3072","v":113664},35,{"$f":"Y533*1024","v":35840},27,{"$f":"AA533*256","v":6912},{"$f":"SUMIFS($B:$B,$L:$L,$C533)","v":14092},918920.87639765732,{"$f":"SUMIFS($B:$B,$P:$P,$C533)","v":14092},909812.31087306212,{"$f":"SUMIFS($B:$B,$N:$N,$C533)","v":14092},2493625.331340516,{"$f":"SUMIFS($B:$B,$P:$P,$C533)","v":14092},10538281.121892489,null,2570,{"$f":"AL533*141","v":362370},null,null,null,null,9,{"$f":"AR533*30500","v":274500},117,{"$f":"AT533*2742","v":320814},11,{"$f":"AV533*914","v":10054},934,{"$f":"AX533*141","v":131694},578,{"$f":"AZ533*343","v":198254},372,{"$f":"BB533*109","v":40548},11,{"$f":"BD533*82","v":902},572,{"$f":"BF533*328","v":187616},12,{"$f":"BH533*410","v":4920},0,{"$f":"BJ533*219","v":0},17134493.694351368,17134500]
["Újezdec",81,537535,1,0,0,0,0,"Jihočeský kraj",550663,"Vlachovo Březí",550094,"Prachatice",550094,"Prachatice",550094,"Prachatice",71941.662785630979,null,null,null,null,null,null,null,null,null,null,null,null,null,null,null,null,null,null,null,null,null,null,null,null,null,null,null,null,null,null,null,null,null,null,null,null,null,null,null,null,null,null,null,null,null,71941.662785630979,71900]
["Újezdec",69,507644,1,0,0,0,0,"Jihočeský kraj",546542,"Kardašova Řečice",545881,"Jindřichův Hradec",545881,"Jindřichův Hradec",545881,"Jindřichův Hradec",71941.662785630979,null,null,null,null,null,null,null,null,null,null,null,null,null,null,null,null,null,null,null,null,null,null,null,null,null,null,null,null,null,null,null,null,null,null,null,null,null,null,null,null,null,null,null,null,null,71941.662785630979,71900]
["Úlehle",90,536695,1,0,0,0,0,"Jihočeský kraj",551970,"Volyně",550787,"Strakonice",550787,"Strakonice",550787,"Strakonice",71941.662785630979,null,null,null,null,null,null,null,null,null,null,null,null,null,null,null,null,null,null,null,null,null,null,null,null,null,null,null,null,null,null,null,null,null,null,null,null,null,null,null,null,null,null,null,null,null,71941.662785630979,71900]
["Únice",65,563951,1,0,0,0,0,"Jihočeský kraj",551660,"Radomyšl",550787,"Strakonice",550787,"Strakonice",550787,"Strakonice",71941.662785630979,null,null,null,null,null,null,null,null,null,null,null,null,null,null,null,null,null,null,null,null,null,null,null,null,null,null,null,null,null,null,null,null,null,null,null,null,null,null,null,null,null,null,null,null,null,71941.662785630979,71900]
["Úsilné",487,535494,1,0,0,0,0,"Jihočeský kraj",544256,"České Budějovice",544256,"České Budějovice",544256,"České Budějovice",544256,"České Budějovice",116162.5217425017,null,null,null,null,null,null,null,null,null,null,null,null,null,null,null,null,null,null,null,null,null,null,null,null,null,null,null,null,null,null,null,null,null,null,null,null,null,null,null,null,null,null,null,null,null,116162.5217425017,116200]
["Ústrašice",404,599123,1,0,0,0,0,"Jihočeský kraj",552828,"Planá nad Lužnicí",553069,"Sezimovo Ústí",552046,"Tábor",552046,"Tábor",96578.328084377848,null,null,null,null,null,null,null,null,null,null,null,null,null,null,null,null,null,null,null,null,null,null,null,null,null,null,null,null,null,null,null,null,null,null,null,null,null,null,null,null,null,null,null,null,null,96578.328084377848,96600]
["Uzenice",102,551937,1,0,0,0,0,"Jihočeský kraj",550817,"Bělčice",550850,"Blatná",550850,"Blatná",550850,"Blatná",71941.662785630979,null,null,null,null,null,null,null,null,null,null,null,null,null,null,null,null,null,null,null,null,null,null,null,null,null,null,null,null,null,null,null,null,null,null,null,null,null,null,null,null,null,null,null,null,null,71941.662785630979,71900]
["Uzeničky",116,536890,1,0,0,0,0,"Jihočeský kraj",550817,"Bělčice",550850,"Blatná",550850,"Blatná",550850,"Blatná",71941.662785630979,null,null,null,null,null,null,null,null,null,null,null,null,null,null,null,null,null,null,null,null,null,null,null,null,null,null,null,null,null,null,null,null,null,null,null,null,null,null,null,null,null,null,null,null,null,71941.662785630979,71900]
["Vacov",1467,550621,1,1,0,0,0,"Jihočeský kraj",550621,"Vacov",550647,"Vimperk",550647,"Vimperk",550647,"Vimperk",343652.56522716139,{"$f":"SUMIFS($B:$B,$J:$J,$C542)","v":1529},83259.132577576704,0,{"$f":"U542*768","v":0},24,{"$f":"W542*3072","v":73728},16,{"$f":"Y542*1024","v":16384},2,{"$f":"AA542*256","v":512},null,null,null,null,null,null,null,null,null,null,null,null,null,null,null,25,{"$f":"AR542*30500","v":762500},null,null,null,null,null,null,null,null,null,null,null,null,null,null,null,null,null,null,1280035.6978047381,1280000]
["Vacovice",52,536504,1,0,0,0,0,"Jihočeský kraj",550957,"Čestice",551970,"Volyně",551970,"Volyně",550787,"Strakonice",71941.662785630979,null,null,null,null,null,null,null,null,null,null,null,null,null,null,null,null,null,null,null,null,null,null,null,null,null,null,null,null,null,null,null,null,null,null,null,null,null,null,null,null,null,null,null,null,null,71941.662785630979,71900]
["Val",253,553255,1,0,0,0,0,"Jihočeský kraj",553271,"Veselí nad Lužnicí",553271,"Veselí nad Lužnicí",553271,"Veselí nad Lužnicí",553131,"Soběslav",71941.662785630979,null,null,null,null,null,null,null,null,null,null,null,null,null,null,null,null,null,null,null,null,null,null,null,null,null,null,null,null,null,null,null,null,null,null,null,null,null,null,null,null,null,null,null,null,null,71941.662785630979,71900]
["Varvažov",186,562211,1,0,0,0,0,"Jihočeský kraj",549339,"Čimelice",549584,"Mirotice",549584,"Mirotice",549240,"Písek",71941.662785630979,null,null,null,null,null,null,null,null,null,null,null,null,null,null,null,null,null,null,null,null,null,null,null,null,null,null,null,null,null,null,null,null,null,null,null,null,null,null,null,null,null,null,null,null,null,71941.662785630979,71900]
["Včelná",2274,545228,1,0,0,0,0,"Jihočeský kraj",544663,"Kamenný Újezd",544256,"České Budějovice",544256,"České Budějovice",544256,"České Budějovice",527238.16996376333,null,null,null,null,null,null,null,null,null,null,null,null,null,null,null,null,null,null,null,null,null,null,null,null,null,2,{"$f":"AR546*30500","v":61000},null,null,null,null,null,null,null,null,null,null,null,null,null,null,null,null,null,null,588238.16996376333,588200]
["Velešín",3861,545821,1,1,0,0,0,"Jihočeský kraj",545821,"Velešín",545562,"Kaplice",545562,"Kaplice",545562,"Kaplice",881287.57941408036,{"$f":"SUMIFS($B:$B,$J:$J,$C547)","v":4417},239882.33000908149,1,{"$f":"U547*768","v":768},13,{"$f":"W547*3072","v":39936},10,{"$f":"Y547*1024","v":10240},15,{"$f":"AA547*256","v":3840},null,null,null,null,null,null,null,null,null,null,null,null,null,null,null,4,{"$f":"AR547*30500","v":122000},null,null,null,null,null,null,null,null,null,null,null,null,null,null,null,null,null,null,1297953.9094231618,1298000]
["Velká Turná",174,536741,1,0,0,0,0,"Jihočeský kraj",551660,"Radomyšl",550787,"Strakonice",550787,"Strakonice",550787,"Strakonice",71941.662785630979,null,null,null,null,null,null,null,null,null,null,null,null,null,null,null,null,null,null,null,null,null,null,null,null,null,1,{"$f":"AR548*30500","v":30500},null,null,null,null,null,null,null,null,null,null,null,null,null,null,null,null,null,null,102441.66278563098,102400]
["Velký Ratmírov",235,562599,1,0,0,0,0,"Jihočeský kraj",545881,"Jindřichův Hradec",545881,"Jindřichův Hradec",545881,"Jindřichův Hradec",545881,"Jindřichův Hradec",71941.662785630979,null,null,null,null,null,null,null,null,null,null,null,null,null,null,null,null,null,null,null,null,null,null,null,null,null,null,null,null,null,null,null,null,null,null,null,null,null,null,null,null,null,null,null,null,null,71941.662785630979,71900]
["Vesce",306,553263,1,0,0,0,0,"Jihočeský kraj",553131,"Soběslav",553131,"Soběslav",553131,"Soběslav",553131,"Soběslav",73366.217065850942,null,null,null,null,null,null,null,null,null,null,null,null,null,null,null,null,null,null,null,null,null,null,null,null,null,null,null,null,null,null,null,null,null,null,null,null,null,null,null,null,null,null,null,null,null,73366.217065850942,73400]
["Veselí nad Lužnicí",6515,553271,1,1,1,1,0,"Jihočeský kraj",553271,"Veselí nad Lužnicí",553271,"Veselí nad Lužnicí",553271,"Veselí nad Lužnicí",553131,"Soběslav",1457958.2200822311,{"$f":"SUMIFS($B:$B,$J:$J,$C551)","v":8979},486305.20349770552,0,{"$f":"U551*768","v":0},23,{"$f":"W551*3072","v":70656},50,{"$f":"Y551*1024","v":51200},34,{"$f":"AA551*256","v":8704},{"$f":"SUMIFS($B:$B,$L:$L,$C551)","v":8979},{"$f":"(koeficienty!$C$4/(koeficienty!$B$4 + SQRT(IF(AC551<300,0.3,AC551/1000)))) * (IF(AC551<300,0.3,AC551/1000))","v":1115182.2660467825},null,null,{"$f":"SUMIFS($B:$B,$N:$N,$C551)","v":8979},1010484.786365423,null,null,null,null,null,null,null,null,null,9,{"$f":"AR551*30500","v":274500},null,null,null,null,null,null,null,null,null,null,null,null,null,null,null,null,null,null,4474990.4759921422,4475000]
["Veselíčko",222,549975,1,0,0,0,0,"Jihočeský kraj",549266,"Bernartice",549266,"Bernartice",549576,"Milevsko",549576,"Milevsko",71941.662785630979,null,null,null,null,null,null,null,null,null,null,null,null,null,null,null,null,null,null,null,null,null,null,null,null,null,null,null,null,null,null,null,null,null,null,null,null,null,null,null,null,null,null,null,null,null,71941.662785630979,71900]
["Větřní",3761,545830,1,1,0,0,0,"Jihočeský kraj",545830,"Větřní",545392,"Český Krumlov",545392,"Český Krumlov",545392,"Český Krumlov",859210.22896107158,{"$f":"SUMIFS($B:$B,$J:$J,$C553)","v":4289},232952.70355467839,0,{"$f":"U553*768","v":0},13,{"$f":"W553*3072","v":39936},11,{"$f":"Y553*1024","v":11264},17,{"$f":"AA553*256","v":4352},null,null,null,null,null,null,null,null,null,null,null,null,null,null,null,2,{"$f":"AR553*30500","v":61000},null,null,null,null,null,null,null,null,null,null,null,null,null,null,null,null,null,null,1208714.9325157499,1208700]
["Věžovatá Pláně",162,536300,1,0,0,0,0,"Jihočeský kraj",545392,"Český Krumlov",545392,"Český Krumlov",545392,"Český Krumlov",545392,"Český Krumlov",71941.662785630979,null,null,null,null,null,null,null,null,null,null,null,null,null,null,null,null,null,null,null,null,null,null,null,null,null,null,null,null,null,null,null,null,null,null,null,null,null,null,null,null,null,null,null,null,null,71941.662785630979,71900]
["Vícemil",71,561037,1,0,0,0,0,"Jihočeský kraj",546151,"Deštná",545881,"Jindřichův Hradec",545881,"Jindřichův Hradec",545881,"Jindřichův Hradec",71941.662785630979,null,null,null,null,null,null,null,null,null,null,null,null,null,null,null,null,null,null,null,null,null,null,null,null,null,null,null,null,null,null,null,null,null,null,null,null,null,null,null,null,null,null,null,null,null,71941.662785630979,71900]
["Vidov",594,535737,1,0,0,0,0,"Jihočeský kraj",544256,"České Budějovice",544256,"České Budějovice",544256,"České Budějovice",544256,"České Budějovice",141319.14965281141,null,null,null,null,null,null,null,null,null,null,null,null,null,null,null,null,null,null,null,null,null,null,null,null,null,null,null,null,null,null,null,null,null,null,null,null,null,null,null,null,null,null,null,null,null,141319.14965281141,141300]
["Vilice",153,553280,1,0,0,0,0,"Jihočeský kraj",552704,"Mladá Vožice",552704,"Mladá Vožice",552704,"Mladá Vožice",552046,"Tábor",71941.662785630979,null,null,null,null,null,null,null,null,null,null,null,null,null,null,null,null,null,null,null,null,null,null,null,null,null,null,null,null,null,null,null,null,null,null,null,null,null,null,null,null,null,null,null,null,null,71941.662785630979,71900]
["Vimperk",7289,550647,1,1,1,1,1,"Jihočeský kraj",550647,"Vimperk",550647,"Vimperk",550647,"Vimperk",550647,"Vimperk",343986.53524236311,{"$f":"SUMIFS($B:$B,$J:$J,$C558)","v":9250},200791.03960799571,0,{"$f":"U558*768","v":0},46,{"$f":"W558*3072","v":141312},69,{"$f":"Y558*1024","v":70656},42,{"$f":"AA558*256","v":10752},{"$f":"SUMIFS($B:$B,$L:$L,$C558)","v":17286},1143882.037459282,{"$f":"SUMIFS($B:$B,$P:$P,$C558)","v":17286},1069230.3314283821,{"$f":"SUMIFS($B:$B,$N:$N,$C558)","v":17286},3061997.78773516,{"$f":"SUMIFS($B:$B,$P:$P,$C558)","v":17286},11633220.009004859,null,2371,{"$f":"AL558*141","v":334311},null,null,null,null,9,{"$f":"AR558*30500","v":274500},111,{"$f":"AT558*2742","v":304362},7,{"$f":"AV558*914","v":6398},865,{"$f":"AX558*141","v":121965},683,{"$f":"AZ558*343","v":234269},1035,{"$f":"BB558*109","v":112815},133,{"$f":"BD558*82","v":10906},960,{"$f":"BF558*328","v":314880},139,{"$f":"BH558*410","v":56990},10,{"$f":"BJ558*219","v":2190},19449413.740478043,19449400]
["Višňová",99,507652,1,0,0,0,0,"Jihočeský kraj",546542,"Kardašova Řečice",545881,"Jindřichův Hradec",545881,"Jindřichův Hradec",545881,"Jindřichův Hradec",71941.662785630979,null,null,null,null,null,null,null,null,null,null,null,null,null,null,null,null,null,null,null,null,null,null,null,null,null,null,null,null,null,null,null,null,null,null,null,null,null,null,null,null,null,null,null,null,null,71941.662785630979,71900]
["Vitějovice",529,550655,1,0,0,0,0,"Jihočeský kraj",550094,"Prachatice",550094,"Prachatice",550094,"Prachatice",550094,"Prachatice",126048.7000062897,null,null,null,null,null,null,null,null,null,null,null,null,null,null,null,null,null,null,null,null,null,null,null,null,null,null,null,null,null,null,null,null,null,null,null,null,null,null,null,null,null,null,null,null,null,126048.7000062897,126000]
["Vitín",487,535893,1,0,0,0,0,"Jihočeský kraj",545121,"Ševětín",544256,"České Budějovice",544256,"České Budějovice",544256,"České Budějovice",116162.5217425017,null,null,null,null,null,null,null,null,null,null,null,null,null,null,null,null,null,null,null,null,null,null,null,null,null,null,null,null,null,null,null,null,null,null,null,null,null,null,null,null,null,null,null,null,null,116162.5217425017,116200]
["Vlachovo Březí",1750,550663,1,1,0,0,0,"Jihočeský kraj",550663,"Vlachovo Březí",550094,"Prachatice",550094,"Prachatice",550094,"Prachatice",408355.96249598492,{"$f":"SUMIFS($B:$B,$J:$J,$C562)","v":3282},178400.39719729041,0,{"$f":"U562*768","v":0},18,{"$f":"W562*3072","v":55296},6,{"$f":"Y562*1024","v":6144},6,{"$f":"AA562*256","v":1536},null,null,null,null,null,null,null,null,null,null,null,null,null,null,null,2,{"$f":"AR562*30500","v":61000},null,null,null,null,null,null,null,null,null,null,null,null,null,null,null,null,null,null,710732.3596932753,710700]
["Vlastec",234,598844,1,0,0,0,0,"Jihočeský kraj",550027,"Záhoří",549240,"Písek",549240,"Písek",549240,"Písek",71941.662785630979,null,null,null,null,null,null,null,null,null,null,null,null,null,null,null,null,null,null,null,null,null,null,null,null,null,null,null,null,null,null,null,null,null,null,null,null,null,null,null,null,null,null,null,null,null,71941.662785630979,71900]
["Vlastiboř",332,553298,1,0,0,0,0,"Jihočeský kraj",553131,"Soběslav",553131,"Soběslav",553131,"Soběslav",553131,"Soběslav",79534.573887523016,null,null,null,null,null,null,null,null,null,null,null,null,null,null,null,null,null,null,null,null,null,null,null,null,null,null,null,null,null,null,null,null,null,null,null,null,null,null,null,null,null,null,null,null,null,79534.573887523016,79500]
["Vlčetínec",51,598640,1,0,0,0,0,"Jihočeský kraj",546801,"Nová Včelnice",546801,"Nová Včelnice",545881,"Jindřichův Hradec",545881,"Jindřichův Hradec",71941.662785630979,null,null,null,null,null,null,null,null,null,null,null,null,null,null,null,null,null,null,null,null,null,null,null,null,null,null,null,null,null,null,null,null,null,null,null,null,null,null,null,null,null,null,null,null,null,71941.662785630979,71900]
["Vlčeves",104,563447,1,0,0,0,0,"Jihočeský kraj",552470,"Choustník",552046,"Tábor",552046,"Tábor",552046,"Tábor",71941.662785630979,null,null,null,null,null,null,null,null,null,null,null,null,null,null,null,null,null,null,null,null,null,null,null,null,null,null,null,null,null,null,null,null,null,null,null,null,null,null,null,null,null,null,null,null,null,71941.662785630979,71900]
["Vlkov",180,553310,1,0,0,0,0,"Jihočeský kraj",553271,"Veselí nad Lužnicí",553271,"Veselí nad Lužnicí",553271,"Veselí nad Lužnicí",553131,"Soběslav",71941.662785630979,null,null,null,null,null,null,null,null,null,null,null,null,null,null,null,null,null,null,null,null,null,null,null,null,null,null,null,null,null,null,null,null,null,null,null,null,null,null,null,null,null,null,null,null,null,71941.662785630979,71900]
["Vlkov",49,535915,1,0,0,0,0,"Jihočeský kraj",545121,"Ševětín",544256,"České Budějovice",544256,"České Budějovice",544256,"České Budějovice",71941.662785630979,null,null,null,null,null,null,null,null,null,null,null,null,null,null,null,null,null,null,null,null,null,null,null,null,null,null,null,null,null,null,null,null,null,null,null,null,null,null,null,null,null,null,null,null,null,71941.662785630979,71900]
["Vlksice",147,598852,1,0,0,0,0,"Jihočeský kraj",549452,"Chyšky",549576,"Milevsko",549576,"Milevsko",549576,"Milevsko",71941.662785630979,null,null,null,null,null,null,null,null,null,null,null,null,null,null,null,null,null,null,null,null,null,null,null,null,null,null,null,null,null,null,null,null,null,null,null,null,null,null,null,null,null,null,null,null,null,71941.662785630979,71900]
["Vodice",154,553328,1,0,0,0,0,"Jihočeský kraj",552496,"Chýnov",552046,"Tábor",552046,"Tábor",552046,"Tábor",71941.662785630979,null,null,null,null,null,null,null,null,null,null,null,null,null,null,null,null,null,null,null,null,null,null,null,null,null,null,null,null,null,null,null,null,null,null,null,null,null,null,null,null,null,null,null,null,null,71941.662785630979,71900]
["Vodňany",7383,551953,1,1,1,1,1,"Jihočeský kraj",551953,"Vodňany",551953,"Vodňany",551953,"Vodňany",551953,"Vodňany",348234.64169272268,{"$f":"SUMIFS($B:$B,$J:$J,$C571)","v":10329},228054.0192329899,0,{"$f":"U571*768","v":0},60,{"$f":"W571*3072","v":184320},96,{"$f":"Y571*1024","v":98304},41,{"$f":"AA571*256","v":10496},{"$f":"SUMIFS($B:$B,$L:$L,$C571)","v":12559},816532.82481799985,{"$f":"SUMIFS($B:$B,$P:$P,$C571)","v":12559},899736.2968995542,{"$f":"SUMIFS($B:$B,$N:$N,$C571)","v":12559},2225866.9711216148,{"$f":"SUMIFS($B:$B,$P:$P,$C571)","v":12559},10491955.61595103,null,2209,{"$f":"AL571*141","v":311469},null,null,null,null,9,{"$f":"AR571*30500","v":274500},58,{"$f":"AT571*2742","v":159036},3,{"$f":"AV571*914","v":2742},694,{"$f":"AX571*141","v":97854},489,{"$f":"AZ571*343","v":167727},500,{"$f":"BB571*109","v":54500},84,{"$f":"BD571*82","v":6888},914,{"$f":"BF571*328","v":299792},87,{"$f":"BH571*410","v":35670},81,{"$f":"BJ571*219","v":17739},16731417.36971591,16731400]
["Vojníkov",90,562289,1,0,0,0,0,"Jihočeský kraj",550027,"Záhoří",549240,"Písek",549240,"Písek",549240,"Písek",71941.662785630979,null,null,null,null,null,null,null,null,null,null,null,null,null,null,null,null,null,null,null,null,null,null,null,null,null,null,null,null,null,null,null,null,null,null,null,null,null,null,null,null,null,null,null,null,null,71941.662785630979,71900]
["Volary",3692,550671,1,1,1,1,0,"Jihočeský kraj",550671,"Volary",550671,"Volary",550671,"Volary",550094,"Prachatice",843960.12985853455,{"$f":"SUMIFS($B:$B,$J:$J,$C573)","v":5588},303234.22454833699,1,{"$f":"U573*768","v":768},46,{"$f":"W573*3072","v":141312},18,{"$f":"Y573*1024","v":18432},12,{"$f":"AA573*256","v":3072},{"$f":"SUMIFS($B:$B,$L:$L,$C573)","v":5588},{"$f":"(koeficienty!$C$4/(koeficienty!$B$4 + SQRT(IF(AC573<300,0.3,AC573/1000)))) * (IF(AC573<300,0.3,AC573/1000))","v":697542.18972823455},null,null,{"$f":"SUMIFS($B:$B,$N:$N,$C573)","v":5588},631051.91726273741,null,null,null,null,null,null,null,null,null,3,{"$f":"AR573*30500","v":91500},null,null,null,null,null,null,null,null,null,null,null,null,null,null,null,null,null,null,2730872.4613978434,2730900]
["Volenice",582,551961,1,0,0,0,0,"Jihočeský kraj",551201,"Katovice",550787,"Strakonice",550787,"Strakonice",550787,"Strakonice",138502.6125617635,null,null,null,null,null,null,null,null,null,null,null,null,null,null,null,null,null,null,null,null,null,null,null,null,null,null,null,null,null,null,null,null,null,null,null,null,null,null,null,null,null,null,null,null,null,138502.6125617635,138500]
["Volfířov",744,547441,1,0,0,0,0,"Jihočeský kraj",546127,"Dačice",546127,"Dačice",546127,"Dačice",546127,"Dačice",176431.73810009679,null,null,null,null,null,null,null,null,null,null,null,null,null,null,null,null,null,null,null,null,null,null,null,null,null,null,null,null,null,null,null,null,null,null,null,null,null,null,null,null,null,null,null,null,null,176431.73810009679,176400]
["Volyně",3036,551970,1,1,1,1,0,"Jihočeský kraj",551970,"Volyně",551970,"Volyně",551970,"Volyně",550787,"Strakonice",698259.81432980997,{"$f":"SUMIFS($B:$B,$J:$J,$C576)","v":5648},306478.25549549417,1,{"$f":"U576*768","v":768},26,{"$f":"W576*3072","v":79872},34,{"$f":"Y576*1024","v":34816},15,{"$f":"AA576*256","v":3840},{"$f":"SUMIFS($B:$B,$L:$L,$C576)","v":7589},{"$f":"(koeficienty!$C$4/(koeficienty!$B$4 + SQRT(IF(AC576<300,0.3,AC576/1000)))) * (IF(AC576<300,0.3,AC576/1000))","v":944365.63902826444},null,null,{"$f":"SUMIFS($B:$B,$N:$N,$C576)","v":7589},855187.69722202828,null,null,null,null,null,null,null,null,null,1,{"$f":"AR576*30500","v":30500},null,null,null,null,null,null,null,null,null,null,null,null,null,null,null,null,null,null,2954087.4060755968,2954100]
["Vrábče",868,545261,1,0,0,0,0,"Jihočeský kraj",544299,"Boršov nad Vltavou",544256,"České Budějovice",544256,"České Budějovice",544256,"České Budějovice",205335.89685551749,null,null,null,null,null,null,null,null,null,null,null,null,null,null,null,null,null,null,null,null,null,null,null,null,null,null,null,null,null,null,null,null,null,null,null,null,null,null,null,null,null,null,null,null,null,205335.89685551749,205300]
["Vráto",505,535796,1,0,0,0,0,"Jihočeský kraj",544981,"Rudolfov",544981,"Rudolfov",544256,"České Budějovice",544256,"České Budějovice",120401.34872941719,null,null,null,null,null,null,null,null,null,null,null,null,null,null,null,null,null,null,null,null,null,null,null,null,null,null,null,null,null,null,null,null,null,null,null,null,null,null,null,null,null,null,null,null,null,120401.34872941719,120400]
["Vráž",320,549991,1,0,0,0,0,"Jihočeský kraj",549240,"Písek",549240,"Písek",549240,"Písek",549240,"Písek",76688.580783371697,null,null,null,null,null,null,null,null,null,null,null,null,null,null,null,null,null,null,null,null,null,null,null,null,null,null,null,null,null,null,null,null,null,null,null,null,null,null,null,null,null,null,null,null,null,76688.580783371697,76700]
["Vrbice",62,529915,1,0,0,0,0,"Jihočeský kraj",550621,"Vacov",550647,"Vimperk",550647,"Vimperk",550647,"Vimperk",71941.662785630979,null,null,null,null,null,null,null,null,null,null,null,null,null,null,null,null,null,null,null,null,null,null,null,null,null,null,null,null,null,null,null,null,null,null,null,null,null,null,null,null,null,null,null,null,null,{"$f":"SUMIF(R580:R580,\"<>\")+SUMIF(T580:T580,\"<>\")+SUMIF(V580:V580,\"<>\")+SUMIF(X580:X580,\"<>\")+SUMIF(Z580:Z580,\"<>\")+SUMIF(AB580:AB580,\"<>\")+SUMIF(AD580:AD580,\"<>\")+SUMIF(AF580:AF580,\"<>\")+SUMIF(AH580:AH580,\"<>\")+SUMIF(AJ580:AJ580,\"<>\")+SUMIF(AK580:AK580,\"<>\")+SUMIF(AM580:AM580,\"<>\")+SUMIF(AO580:AO580,\"<>\")+SUMIF(AQ580:AQ580,\"<>\")+SUMIF(AS580:AS580,\"<>\")+SUMIF(AU580:AU580,\"<>\")+SUMIF(AW580:AW580,\"<>\")+SUMIF(AY580:AY580,\"<>\")+SUMIF(BA580:BA580,\"<>\")+SUMIF(BC580:BC580,\"<>\")+SUMIF(BE580:BE580,\"<>\")+SUMIF(BG580:BG580,\"<>\")+SUMIF(BI580:BI580,\"<>\")+SUMIF(BK580:BK580,\"<>\")","v":71941.662785630979},{"$f":"ROUND(BL580/100,0)*100","v":71900}]
["Vrcovice",194,550001,1,0,0,0,0,"Jihočeský kraj",550027,"Záhoří",549240,"Písek",549240,"Písek",549240,"Písek",71941.662785630979,null,null,null,null,null,null,null,null,null,null,null,null,null,null,null,null,null,null,null,null,null,null,null,null,null,null,null,null,null,null,null,null,null,null,null,null,null,null,null,null,null,null,null,null,null,71941.662785630979,71900]
["Všemyslice",1190,545287,1,0,0,0,0,"Jihočeský kraj",545155,"Temelín",545201,"Týn nad Vltavou",545201,"Týn nad Vltavou",545201,"Týn nad Vltavou",279938.87391799572,null,null,null,null,null,null,null,null,null,null,null,null,null,null,null,null,null,null,null,null,null,null,null,null,null,1,{"$f":"AR582*30500","v":30500},null,null,null,null,null,null,null,null,null,null,null,null,null,null,null,null,null,null,310438.87391799572,310400]
["Vydří",122,562629,1,0,0,0,0,"Jihočeský kraj",547221,"Stráž nad Nežárkou",545881,"Jindřichův Hradec",545881,"Jindřichův Hradec",545881,"Jindřichův Hradec",71941.662785630979,null,null,null,null,null,null,null,null,null,null,null,null,null,null,null,null,null,null,null,null,null,null,null,null,null,null,null,null,null,null,null,null,null,null,null,null,null,null,null,null,null,null,null,null,null,71941.662785630979,71900]
["Vyšší Brod",2597,545848,1,1,1,1,0,"Jihočeský kraj",545848,"Vyšší Brod",545848,"Vyšší Brod",545848,"Vyšší Brod",545392,"Český Krumlov",599982.41158563073,{"$f":"SUMIFS($B:$B,$J:$J,$C584)","v":3140},170702.4294432193,0,{"$f":"U584*768","v":0},10,{"$f":"W584*3072","v":30720},7,{"$f":"Y584*1024","v":7168},9,{"$f":"AA584*256","v":2304},{"$f":"SUMIFS($B:$B,$L:$L,$C584)","v":5495},{"$f":"(koeficienty!$C$4/(koeficienty!$B$4 + SQRT(IF(AC584<300,0.3,AC584/1000)))) * (IF(AC584<300,0.3,AC584/1000))","v":686041.73507739825},null,null,{"$f":"SUMIFS($B:$B,$N:$N,$C584)","v":5495},620616.79997952713,null,null,null,null,null,null,null,null,null,1,{"$f":"AR584*30500","v":30500},null,null,null,null,null,null,null,null,null,null,null,null,null,null,null,null,null,null,2148035.3760857754,2148000]
["Záblatí",313,550680,1,0,0,0,0,"Jihočeský kraj",550230,"Husinec",550094,"Prachatice",550094,"Prachatice",550094,"Prachatice",75027.676217933433,null,null,null,null,null,null,null,null,null,null,null,null,null,null,null,null,null,null,null,null,null,null,null,null,null,null,null,null,null,null,null,null,null,null,null,null,null,null,null,null,null,null,null,null,null,75027.676217933433,75000]
["Záblatí",102,508683,1,0,0,0,0,"Jihočeský kraj",546674,"Lomnice nad Lužnicí",547336,"Třeboň",547336,"Třeboň",547336,"Třeboň",71941.662785630979,null,null,null,null,null,null,null,null,null,null,null,null,null,null,null,null,null,null,null,null,null,null,null,null,null,null,null,null,null,null,null,null,null,null,null,null,null,null,null,null,null,null,null,null,null,71941.662785630979,71900]
["Záboří",340,551988,1,0,0,0,0,"Jihočeský kraj",550850,"Blatná",550850,"Blatná",550850,"Blatná",550850,"Blatná",81431.022973213185,null,null,null,null,null,null,null,null,null,null,null,null,null,null,null,null,null,null,null,null,null,null,null,null,null,2,{"$f":"AR587*30500","v":61000},null,null,null,null,null,null,null,null,null,null,null,null,null,null,null,null,null,null,142431.02297321317,142400]
["Záboří",366,545317,1,0,0,0,0,"Jihočeský kraj",544442,"Dubné",544256,"České Budějovice",544256,"České Budějovice",544256,"České Budějovice",87589.736754300058,null,null,null,null,null,null,null,null,null,null,null,null,null,null,null,null,null,null,null,null,null,null,null,null,null,null,null,null,null,null,null,null,null,null,null,null,null,null,null,null,null,null,null,null,null,87589.736754300058,87600]
["Zábrdí",66,537195,1,0,0,0,0,"Jihočeský kraj",550230,"Husinec",550094,"Prachatice",550094,"Prachatice",550094,"Prachatice",71941.662785630979,null,null,null,null,null,null,null,null,null,null,null,null,null,null,null,null,null,null,null,null,null,null,null,null,null,null,null,null,null,null,null,null,null,null,null,null,null,null,null,null,null,null,null,null,null,71941.662785630979,71900]
["Zadní Střítež",36,563927,1,0,0,0,0,"Jihočeský kraj",552496,"Chýnov",552046,"Tábor",552046,"Tábor",552046,"Tábor",71941.662785630979,null,null,null,null,null,null,null,null,null,null,null,null,null,null,null,null,null,null,null,null,null,null,null,null,null,null,null,null,null,null,null,null,null,null,null,null,null,null,null,null,null,null,null,null,null,71941.662785630979,71900]
["Zahájí",463,536016,1,0,0,0,0,"Jihočeský kraj",545341,"Zliv",545341,"Zliv",545341,"Zliv",544256,"České Budějovice",110506.2285736023,null,null,null,null,null,null,null,null,null,null,null,null,null,null,null,null,null,null,null,null,null,null,null,null,null,null,null,null,null,null,null,null,null,null,null,null,null,null,null,null,null,null,null,null,null,110506.2285736023,110500]
["Zahorčice",51,536482,1,0,0,0,0,"Jihočeský kraj",550957,"Čestice",550787,"Strakonice",550787,"Strakonice",550787,"Strakonice",71941.662785630979,null,null,null,null,null,null,null,null,null,null,null,null,null,null,null,null,null,null,null,null,null,null,null,null,null,null,null,null,null,null,null,null,null,null,null,null,null,null,null,null,null,null,null,null,null,71941.662785630979,71900]
["Záhoří",69,599000,1,0,0,0,0,"Jihočeský kraj",552054,"Bechyně",552054,"Bechyně",552054,"Bechyně",552046,"Tábor",71941.662785630979,null,null,null,null,null,null,null,null,null,null,null,null,null,null,null,null,null,null,null,null,null,null,null,null,null,null,null,null,null,null,null,null,null,null,null,null,null,null,null,null,null,null,null,null,null,71941.662785630979,71900]
["Záhoří",802,550027,1,1,0,0,0,"Jihočeský kraj",550027,"Záhoří",549240,"Písek",549240,"Písek",549240,"Písek",189964.5170611658,{"$f":"SUMIFS($B:$B,$J:$J,$C594)","v":1718},93529.476612448954,0,{"$f":"U594*768","v":0},9,{"$f":"W594*3072","v":27648},11,{"$f":"Y594*1024","v":11264},1,{"$f":"AA594*256","v":256},null,null,null,null,null,null,null,null,null,null,null,null,null,null,null,null,null,null,null,null,null,null,null,null,null,null,null,null,null,null,null,null,null,null,null,322661.99367361475,322700]
["Záhoří",111,507695,1,0,0,0,0,"Jihočeský kraj",546542,"Kardašova Řečice",545881,"Jindřichův Hradec",545881,"Jindřichův Hradec",545881,"Jindřichův Hradec",71941.662785630979,null,null,null,null,null,null,null,null,null,null,null,null,null,null,null,null,null,null,null,null,null,null,null,null,null,null,null,null,null,null,null,null,null,null,null,null,null,null,null,null,null,null,null,null,null,71941.662785630979,71900]
["Zahrádky",251,547468,1,0,0,0,0,"Jihočeský kraj",547239,"Strmilov",545881,"Jindřichův Hradec",545881,"Jindřichův Hradec",545881,"Jindřichův Hradec",71941.662785630979,null,null,null,null,null,null,null,null,null,null,null,null,null,null,null,null,null,null,null,null,null,null,null,null,null,null,null,null,null,null,null,null,null,null,null,null,null,null,null,null,null,null,null,null,null,71941.662785630979,71900]
["Zálezly",346,550698,1,0,0,0,0,"Jihočeský kraj",550167,"Čkyně",550647,"Vimperk",550647,"Vimperk",550647,"Vimperk",82852.904245630634,null,null,null,null,null,null,null,null,null,null,null,null,null,null,null,null,null,null,null,null,null,null,null,null,null,null,null,null,null,null,null,null,null,null,null,null,null,null,null,null,null,null,null,null,null,82852.904245630634,82900]
["Zálší",241,553361,1,0,0,0,0,"Jihočeský kraj",553271,"Veselí nad Lužnicí",553271,"Veselí nad Lužnicí",553271,"Veselí nad Lužnicí",553131,"Soběslav",71941.662785630979,null,null,null,null,null,null,null,null,null,null,null,null,null,null,null,null,null,null,null,null,null,null,null,null,null,null,null,null,null,null,null,null,null,null,null,null,null,null,null,null,null,null,null,null,null,71941.662785630979,71900]
["Závraty",65,599778,1,0,0,0,0,"Jihočeský kraj",544299,"Boršov nad Vltavou",544256,"České Budějovice",544256,"České Budějovice",544256,"České Budějovice",71941.662785630979,null,null,null,null,null,null,null,null,null,null,null,null,null,null,null,null,null,null,null,null,null,null,null,null,null,null,null,null,null,null,null,null,null,null,null,null,null,null,null,null,null,null,null,null,null,71941.662785630979,71900]
["Zbelítov",324,550035,1,0,0,0,0,"Jihočeský kraj",549576,"Milevsko",549576,"Milevsko",549576,"Milevsko",549576,"Milevsko",77637.422589392256,null,null,null,null,null,null,null,null,null,null,null,null,null,null,null,null,null,null,null,null,null,null,null,null,null,null,null,null,null,null,null,null,null,null,null,null,null,null,null,null,null,null,null,null,null,77637.422589392256,77600]
["Zběšičky",165,550043,1,0,0,0,0,"Jihočeský kraj",549266,"Bernartice",549266,"Bernartice",549576,"Milevsko",549576,"Milevsko",71941.662785630979,null,null,null,null,null,null,null,null,null,null,null,null,null,null,null,null,null,null,null,null,null,null,null,null,null,46,{"$f":"AR601*30500","v":1403000},null,null,null,null,null,null,null,null,null,null,null,null,null,null,null,null,null,null,1474941.6627856309,1474900]
["Zbytiny",361,550701,1,0,0,0,0,"Jihočeský kraj",550671,"Volary",550671,"Volary",550671,"Volary",550094,"Prachatice",86405.924227142634,null,null,null,null,null,null,null,null,null,null,null,null,null,null,null,null,null,null,null,null,null,null,null,null,null,null,null,null,null,null,null,null,null,null,null,null,null,null,null,null,null,null,null,null,null,86405.924227142634,86400]
["Zdíkov",1721,550728,1,1,0,0,0,"Jihočeský kraj",550728,"Zdíkov",550647,"Vimperk",550647,"Vimperk",550647,"Vimperk",401742.57510296232,{"$f":"SUMIFS($B:$B,$J:$J,$C603)","v":1721},93692.469922467892,0,{"$f":"U603*768","v":0},8,{"$f":"W603*3072","v":24576},5,{"$f":"Y603*1024","v":5120},4,{"$f":"AA603*256","v":1024},null,null,null,null,null,null,null,null,null,null,null,null,null,null,null,null,null,null,null,null,null,null,null,null,null,null,null,null,null,null,null,null,null,null,null,526155.04502543015,526200]
["Zhoř",318,550060,1,0,0,0,0,"Jihočeský kraj",549576,"Milevsko",549576,"Milevsko",549576,"Milevsko",549576,"Milevsko",76214.092833710165,null,null,null,null,null,null,null,null,null,null,null,null,null,null,null,null,null,null,null,null,null,null,null,null,null,null,null,null,null,null,null,null,null,null,null,null,null,null,null,null,null,null,null,null,null,76214.092833710165,76200]
["Zhoř u Mladé Vožice",107,599034,1,0,0,0,0,"Jihočeský kraj",552704,"Mladá Vožice",552704,"Mladá Vožice",552704,"Mladá Vožice",552046,"Tábor",71941.662785630979,null,null,null,null,null,null,null,null,null,null,null,null,null,null,null,null,null,null,null,null,null,null,null,null,null,null,null,null,null,null,null,null,null,null,null,null,null,null,null,null,null,null,null,null,null,71941.662785630979,71900]
["Zhoř u Tábora",169,560430,1,0,0,0,0,"Jihočeský kraj",552828,"Planá nad Lužnicí",552046,"Tábor",552046,"Tábor",552046,"Tábor",71941.662785630979,null,null,null,null,null,null,null,null,null,null,null,null,null,null,null,null,null,null,null,null,null,null,null,null,null,null,null,null,null,null,null,null,null,null,null,null,null,null,null,null,null,null,null,null,null,71941.662785630979,71900]
["Zlatá Koruna",789,545864,1,1,0,0,0,"Jihočeský kraj",545864,"Zlatá Koruna",545392,"Český Krumlov",545392,"Český Krumlov",545392,"Český Krumlov",186933.34447013761,{"$f":"SUMIFS($B:$B,$J:$J,$C607)","v":789},43009.72192600675,0,{"$f":"U607*768","v":0},12,{"$f":"W607*3072","v":36864},2,{"$f":"Y607*1024","v":2048},1,{"$f":"AA607*256","v":256},null,null,null,null,null,null,null,null,null,null,null,null,null,null,null,null,null,null,null,null,null,null,null,null,null,null,null,null,null,null,null,null,null,null,null,269111.06639614434,269100]
["Zliv",3453,545341,1,1,1,1,0,"Jihočeský kraj",545341,"Zliv",545341,"Zliv",545341,"Zliv",544256,"České Budějovice",791029.41659789707,{"$f":"SUMIFS($B:$B,$J:$J,$C608)","v":6194},335990.42200962728,0,{"$f":"U608*768","v":0},30,{"$f":"W608*3072","v":92160},19,{"$f":"Y608*1024","v":19456},6,{"$f":"AA608*256","v":1536},{"$f":"SUMIFS($B:$B,$L:$L,$C608)","v":5510},{"$f":"(koeficienty!$C$4/(koeficienty!$B$4 + SQRT(IF(AC608<300,0.3,AC608/1000)))) * (IF(AC608<300,0.3,AC608/1000))","v":687896.83144052979},null,null,{"$f":"SUMIFS($B:$B,$N:$N,$C608)","v":5510},622299.99818661774,null,null,null,null,null,null,null,null,null,1,{"$f":"AR608*30500","v":30500},null,null,null,null,null,null,null,null,null,null,null,null,null,null,null,null,null,null,2580868.6682346719,2580900]
["Zlukov",290,599271,1,0,0,0,0,"Jihočeský kraj",553271,"Veselí nad Lužnicí",553271,"Veselí nad Lužnicí",553271,"Veselí nad Lužnicí",553131,"Soběslav",71941.662785630979,null,null,null,null,null,null,null,null,null,null,null,null,null,null,null,null,null,null,null,null,null,null,null,null,null,null,null,null,null,null,null,null,null,null,null,null,null,null,null,null,null,null,null,null,null,71941.662785630979,71900]
["Zubčice",432,545872,1,0,0,0,0,"Jihočeský kraj",545392,"Český Krumlov",545392,"Český Krumlov",545392,"Český Krumlov",545392,"Český Krumlov",103192.3177424024,null,null,null,null,null,null,null,null,null,null,null,null,null,null,null,null,null,null,null,null,null,null,null,null,null,null,null,null,null,null,null,null,null,null,null,null,null,null,null,null,null,null,null,null,null,103192.3177424024,103200]
["Zvěrotice",401,553409,1,0,0,0,0,"Jihočeský kraj",553131,"Soběslav",553131,"Soběslav",553131,"Soběslav",553131,"Soběslav",95869.231344216256,null,null,null,null,null,null,null,null,null,null,null,null,null,null,null,null,null,null,null,null,null,null,null,null,null,null,null,null,null,null,null,null,null,null,null,null,null,null,null,null,null,null,null,null,null,95869.231344216256,95900]
["Zvíkov",96,536237,1,0,0,0,0,"Jihočeský kraj",545821,"Velešín",545562,"Kaplice",545562,"Kaplice",545562,"Kaplice",71941.662785630979,null,null,null,null,null,null,null,null,null,null,null,null,null,null,null,null,null,null,null,null,null,null,null,null,null,null,null,null,null,null,null,null,null,null,null,null,null,null,null,null,null,null,null,null,null,71941.662785630979,71900]
["Zvíkov",260,535591,1,0,0,0,0,"Jihočeský kraj",544779,"Lišov",544779,"Lišov",544779,"Lišov",544256,"České Budějovice",71941.662785630979,null,null,null,null,null,null,null,null,null,null,null,null,null,null,null,null,null,null,null,null,null,null,null,null,null,null,null,null,null,null,null,null,null,null,null,null,null,null,null,null,null,null,null,null,null,71941.662785630979,71900]
["Zvíkovské Podhradí",201,562165,1,1,0,0,0,"Jihočeský kraj",562165,"Zvíkovské Podhradí",549240,"Písek",549240,"Písek",549240,"Písek",71941.662785630979,{"$f":"SUMIFS($B:$B,$J:$J,$C614)","v":537},29286.787775592489,0,{"$f":"U614*768","v":0},43,{"$f":"W614*3072","v":132096},4,{"$f":"Y614*1024","v":4096},1,{"$f":"AA614*256","v":256},null,null,null,null,null,null,null,null,null,null,null,null,null,null,null,null,null,null,null,null,null,null,null,null,null,null,null,null,null,null,null,null,null,null,null,237676.45056122346,237700]
["Zvotoky",56,536873,1,0,0,0,0,"Jihočeský kraj",551201,"Katovice",550787,"Strakonice",550787,"Strakonice",550787,"Strakonice",71941.662785630979,null,null,null,null,null,null,null,null,null,null,null,null,null,null,null,null,null,null,null,null,null,null,null,null,null,null,null,null,null,null,null,null,null,null,null,null,null,null,null,null,null,null,null,null,null,71941.662785630979,71900]
["Žabovřesky",443,545368,1,0,0,0,0,"Jihočeský kraj",544442,"Dubné",544256,"České Budějovice",544256,"České Budějovice",544256,"České Budějovice",105788.60877983049,null,null,null,null,null,null,null,null,null,null,null,null,null,null,null,null,null,null,null,null,null,null,null,null,null,null,null,null,null,null,null,null,null,null,null,null,null,null,null,null,null,null,null,null,null,105788.60877983049,105800]
["Žár",346,545376,1,0,0,0,0,"Jihočeský kraj",544868,"Nové Hrady",544868,"Nové Hrady",544868,"Nové Hrady",545171,"Trhové Sviny",82852.904245630634,null,null,null,null,null,null,null,null,null,null,null,null,null,null,null,null,null,null,null,null,null,null,null,null,null,1,{"$f":"AR617*30500","v":30500},null,null,null,null,null,null,null,null,null,null,null,null,null,null,null,null,null,null,113352.90424563063,113400]
["Žárovná",115,529923,1,0,0,0,0,"Jihočeský kraj",550574,"Šumavské Hoštice",550647,"Vimperk",550647,"Vimperk",550647,"Vimperk",71941.662785630979,null,null,null,null,null,null,null,null,null,null,null,null,null,null,null,null,null,null,null,null,null,null,null,null,null,null,null,null,null,null,null,null,null,null,null,null,null,null,null,null,null,null,null,null,null,71941.662785630979,71900]
["Žďár",252,598861,1,0,0,0,0,"Jihočeský kraj",549771,"Protivín",549771,"Protivín",549771,"Protivín",549240,"Písek",71941.662785630979,null,null,null,null,null,null,null,null,null,null,null,null,null,null,null,null,null,null,null,null,null,null,null,null,null,null,null,null,null,null,null,null,null,null,null,null,null,null,null,null,null,null,null,null,null,71941.662785630979,71900]
["Žďár",127,529761,1,0,0,0,0,"Jihočeský kraj",546801,"Nová Včelnice",546801,"Nová Včelnice",545881,"Jindřichův Hradec",545881,"Jindřichův Hradec",71941.662785630979,null,null,null,null,null,null,null,null,null,null,null,null,null,null,null,null,null,null,null,null,null,null,null,null,null,null,null,null,null,null,null,null,null,null,null,null,null,null,null,null,null,null,null,null,null,71941.662785630979,71900]
["Želeč",1036,553417,1,0,0,0,0,"Jihočeský kraj",552828,"Planá nad Lužnicí",552046,"Tábor",552046,"Tábor",552046,"Tábor",244336.58322265869,null,null,null,null,null,null,null,null,null,null,null,null,null,null,null,null,null,null,null,null,null,null,null,null,null,null,null,null,null,null,null,null,null,null,null,null,null,null,null,null,null,null,null,null,null,244336.58322265869,244300]
["Želnava",134,550761,1,0,0,0,0,"Jihočeský kraj",550671,"Volary",550671,"Volary",550671,"Volary",550094,"Prachatice",71941.662785630979,null,null,null,null,null,null,null,null,null,null,null,null,null,null,null,null,null,null,null,null,null,null,null,null,null,null,null,null,null,null,null,null,null,null,null,null,null,null,null,null,null,null,null,null,null,71941.662785630979,71900]
["Žernovice",344,537209,1,0,0,0,0,"Jihočeský kraj",550094,"Prachatice",550094,"Prachatice",550094,"Prachatice",550094,"Prachatice",82378.98693795054,null,null,null,null,null,null,null,null,null,null,null,null,null,null,null,null,null,null,null,null,null,null,null,null,null,null,null,null,null,null,null,null,null,null,null,null,null,null,null,null,null,null,null,null,null,82378.98693795054,82400]
["Žimutice",629,545384,1,0,0,0,0,"Jihočeský kraj",545201,"Týn nad Vltavou",545201,"Týn nad Vltavou",545201,"Týn nad Vltavou",545201,"Týn nad Vltavou",149527.47063324819,null,null,null,null,null,null,null,null,null,null,null,null,null,null,null,null,null,null,null,null,null,null,null,null,null,null,null,null,null,null,null,null,null,null,null,null,null,null,null,null,null,null,null,null,null,149527.47063324819,149500]
["Žíšov",288,563897,1,0,0,0,0,"Jihočeský kraj",553271,"Veselí nad Lužnicí",553271,"Veselí nad Lužnicí",553271,"Veselí nad Lužnicí",553131,"Soběslav",71941.662785630979,null,null,null,null,null,null,null,null,null,null,null,null,null,null,null,null,null,null,null,null,null,null,null,null,null,null,null,null,null,null,null,null,null,null,null,null,null,null,null,null,null,null,null,null,null,71941.662785630979,71900]
["Županovice",49,562424,1,0,0,0,0,"Jihočeský kraj",546143,"Dešná",547166,"Slavonice",547166,"Slavonice",546127,"Dačice",71941.662785630979,null,null,null,null,null,null,null,null,null,null,null,null,null,null,null,null,null,null,null,null,null,null,null,null,null,null,null,null,null,null,null,null,null,null,null,null,null,null,null,null,null,null,null,null,null,71941.662785630979,71900]